{"text_format":"1","workbook":"xlsx","n_sheets":8,"sheets":["Guidance","Using the planner","calendarteach","Occ Days List","Occasional Holidays","non working list 2023-24","Single Occ Date Sheet","Planner"],"not_rendered":{"charts":0,"images":2,"macros":1,"external_links":1,"defined_names":32,"comments":0,"pivot_tables":0},"unopened":[],"bounds":{"document_bytes":16777216,"sheet_cells":100000,"rows_first":2000,"rows_last":500,"rows_between":2000,"halvings":0,"cell_chars":16384,"cell_head_chars":4096},"cells_cut":0,"cells_raw":0,"read":"whole","date_system":"1900"}

{"sheet":"Guidance","index":0,"n_rows":145,"n_cols":9,"rows_kept":145,"cut":false,"hidden":false,"merged":[[108,0,108,14],[110,0,110,14],[111,0,111,14],[113,0,113,14],[144,0,144,14],[117,0,117,14],[119,0,119,14],[121,0,121,14],[123,0,123,14],[125,0,125,14],[130,0,130,14],[131,0,131,14],[133,0,133,14],[135,0,135,14],[140,0,140,14],[142,0,142,14],[115,0,115,14],[102,0,102,14],[104,0,104,14],[106,0,106,14],[58,0,58,14],[75,0,75,14],[79,0,79,14],[84,0,84,14],[63,0,63,14],[65,0,65,14],[68,0,68,14],[66,0,66,14],[70,0,70,14],[87,0,87,1],[89,0,89,14],[91,0,91,14],[56,0,56,14],[45,0,45,14],[50,0,50,14],[53,0,53,14],[35,0,35,14],[41,0,41,14],[39,0,39,14],[52,0,52,14],[54,0,54,14],[24,0,24,14],[26,0,26,14],[33,0,33,14],[37,0,37,14],[14,4,14,5],[14,6,14,7],[14,2,14,3],[19,1,19,14],[22,0,22,14],[15,4,15,5],[16,4,16,5],[17,4,17,5],[18,4,18,5],[15,6,15,7],[16,6,16,7],[17,6,17,7],[18,6,18,7],[16,0,16,1],[17,0,17,1],[18,0,18,1],[15,2,15,3],[16,2,16,3],[17,2,17,3],[18,2,18,3],[7,0,7,14],[9,0,9,14],[11,0,11,14],[14,0,14,1],[15,0,15,1],[28,0,28,14],[97,0,97,1],[97,2,97,3],[97,4,97,5],[95,0,95,1],[95,2,95,3],[95,4,95,5],[96,0,96,1],[96,2,96,3],[96,4,96,5],[93,0,93,1],[93,2,93,3],[93,4,93,5],[94,0,94,1],[94,2,94,3],[94,4,94,5]]}
[" Education & Children’s Services"]
[]
[]
["TEACHER FLEXIBLE DAYS – GUIDELINES FOR SCHOOLS (2023/24)"]
[]
["1.0 Introduction"]
[]
["The Teacher of Flexible Days will be contracted to work the total number of the schools Management Relief days where a Head Teacher is class committed. The contract will specify the number of fixed and flexible days that are required to be worked over the school session. "]
[]
["All days are automatically paid therefore there will be no requirement for claims to be submitted for any management or in-service days."]
[]
["The table below demonstrates the current number of management days allocated which takes into account nursery provision. For the lower two levels of management days the TFD teacher will work one fixed day a week with the balance of hours being worked flexibly over the year. For those in the higher bracket, two days will be fixed with the balance of hours worked flexibly. The teacher will be employed for the total number of days averaged and paid in 12 equal instalments."]
[]
[]
["Number of Management Days",null,"Number of Fixed Days to be worked each week*",null,"FTE",null,"Standard average hours TFD paid per week"]
[82,null,1,null,0.42,null,14.718]
[97.5,null,1,null,0.5,null,17.5]
[108,null,2,null,0.55000000000000004,null,19.384599999999999]
[118,null,2,null,0.6,null,21.179500000000001]
["*","Number of Fixed Days to be worked each week (balance will be worked flexibly)"]
[]
[]
["Please note that the scheduled usage of a TFD should be spread evenly across the school session to ensure that if the TFD leaves there will be sufficient days remaining to cover the replacements contract.  Any shortfall of days at the end of the school session would need to be met by the school from another devolved budget and claimed for by S56. "]
[]
["Head Teachers should meet with the Teacher of Flexible Days to agree when the flexible days will be worked to provide cover over the year."]
[]
["The Planner tab must be used to ensure that the contractual commitment of the teacher is being met and to avoid over/under payments.  This will be the only record of the hours being worked; therefore the school will need to update this spreadsheet on a continual basis."]
[]
["The Teacher Flexible Days contract hours includes entitlement to non class contact time.  Therefore the working pattern of the TFD should ensure that the teacher receives their entitlement to non class contact time in line with the Working Time Agreement. "]
[]
[]
["2.0 Recruitment of Teacher of Flexible Days "]
[]
["When advertising a Teacher of Flexible Days post, the total number of days over the school session to be worked and average number of hours per week should be identified in the advert text and explained to the prospective candidates at interview. If you do not have a record of this then please contact your E&CS Primary Accountant prior to submitting recruitment information to ensure the information for each vacancy is correct."]
[]
["When a new or replacement TFD is in post please contact Finance (Primary Accountant) so that the schools devolved management relief allocation can be removed to allow for payment to be made from a central budget.  The school should set up a new Planner for the TFD.  You will find a blank copy on Arcadia: HR Policies and Procedures/Contract Information/Teacher Flexible Days Planner ."]
[]
["The HR Transactional Team will complete the new start eform after all pre-employment checkes have been successfully carried out and a start date agreed with the Head Teacher.  "]
[]
["As per SNCT handbook, a salary adjustment will be required to be done for any teacher who commences part way through the school session. The later in the school session a teacher starts the greater the adjustmet will be.  This should also be expalined to the prospective candidates at interview."]
[]
["Please note that an eform for changes or leavers should be completed electronically by the school/Head Teacher.  The eform can be completed by accessing the askHR portal via the Quick Links table on the Arcadia homepage.  Log into the portal as a Line Manager > Notify or Request section > Employee Contract Change."]
[]
["3.0  Recording Hours Worked"]
[]
["Please refer to the ‘Using the Planner’ tab, for information on how to record the TFD’s hours."]
[]
[]
["3.1    Recording of Sick Leave "]
[]
["If the TFD is off sick, the planner should be completed as follows:"]
[]
["For sick days that are the TFD’s Fixed day(s) 7 hours sickness should be entered."]
["For sick days that have already been allocated to work in the first week of sickness i.e. flexible days, the allocated hours should be entered e.g 7 hrs or 3.5 hrs as sickness"]
["For all full weeks of absence thereafter, the TFDs fixed day/s should be entered as 7 hrs along with the average daily hours for the balance of days in that week.  Your planner will give you the figure that is to be used."]
[]
["For Information:  This average figure is based on the number of flexible days that can be worked over the year divided by 195 school days less fixed contract days.  Example:  82 days contract – 39 fixed days = 43 flexible days which can be worked over 156 days  (43/(195-39) = 0.275 days x 7 = 1.93 hours)"]
[]
["Please refer to the \"Using the Planner\" tab."]
[]
[]
["3.2   Recording of Maternity Leave"]
[]
["If the TFD is on Maternity leave, the planner should be completed as follows:"]
[]
["For days that are the TFD’s Fixed day(s) 7 hours maternity should be entered."]
["For all other days during the period of absence, the average daily hours should be entered on the sheet.  Your planner will give you the figure that is to be used."]
[]
["For Information:  This average figure is based on the number of flexible days that can be worked over the year divided by 195 school days less fixed contract days.  Example:  82 days contract – 39 fixed days = 43 flexible days which can be worked over 156 days  (43/(195-39) = 0.275 days x 7 = 1.93 hours)"]
[]
["Please refer to the \"Using the Planner\" tab."]
[]
[]
["3.3   Recording of Unpaid Special Leave"]
[]
["If a TFD takes unpaid special leave during the school session, the hours should be included on Planner.  These hours need to be recorded to ensure that the salary deduction is not made again at the end of the contracted period.  The same method for recording sickness should be used.  Please refer to the \"Using the Planner\" tab."]
[]
["3.4   Recording of Paid Special Leave"]
[]
["If a TFD takes paid special leave during the contract period, the hours should be included on the Planner.  Again the same method for recording sickness should be used.  Please refer to the \"Using the Planner\" tab."]
[]
[]
["4.0 Public Holidays"]
[]
["If a public holiday falls on a fixed day which would normally be worked by the TFD, this should not be recorded as worked on the Planner.  The day may need to be worked on another day to ensure that the total number of contracted days of the TFD has been worked over the school session. "]
[]
[]
["5.0 In Service days"]
[]
["The Teacher of Flexible Days contracts include the entitlement to In-Service days. Therefore the working pattern of the Teacher of Flexible Days should ensure that the teacher receives their entitlement to In-Service days (see table below).  These days should not be claimed for by S56 timesheet.  For further information regarding Working Time and In-Service please refer to the current Part Time Teachers Adjustments agreement, which can be accessed via the SNCT Handbook, Part 5 – Other LNCT agreements/Aberdeenshire."]
[]
["The entitlement to work in service days is calculated based on the standard 5 in service days:"]
[]
["FTE",null,"Days employed (inclusive of In Service entitlement)",null,"In Service entitlement to be worked",null,null,null," "]
[0.6,null,118,null,3]
[0.55000000000000004,null,108,null,3]
[0.5,null,97.5,null,2.5]
[0.42,null,82,null,2]
[]
[]
["6.  Submission of Planner to HR Support/TFD"]
[]
["A copy of the Planner will need to be sent in to askHR and/or the TFD under the following circumstances"]
[]
["          I.    When the Teacher – Flexible Days leaves part way through the school session or changes role (ie becomes a Class Teacher)."]
[]
["A calculation will require to be done by HR Transactional Team to identify if the TFD has worked more/less hours to their leaving date/change than they have been paid for and a salary adjustment made if they have been over/under paid."]
[]
["The school should submit an eform to remove the teacher from post, this should be sent along with a copy of the Planner completed up to the date that the teacher last worked/date of change.  The eform can be completed by accessing the askHR portal, please see section 2 above for information."]
[]
["A copy must be provided to the employee for their record of days worked."]
["        II.    At the end of each term "]
[]
["It is the Head Teacher’s responsibility to ensure that the total number of contracted days are worked over the school session. These could be subject to Audit.  \nA copy of the record should be provided to the current Teacher of Flexible Days for their record."]
[]
["       III.    If there is any change to the schools HT Management Days Entitlement "]
[]
["If for any reason there is an increase to the number of hours that the school is entitled to, the school will need to submit an eform to increase the number of hours \nthat the employee is being paid.   A copy of the Planner, completed up to the date of change, should be attached to the eform."]
[]
["Within the additional information section of the eform, please detail, the date of change, the additional number of hours to be given to the school until the end of the current school session and the new school roll.    The eform can be completed by accessing the askHR portal, please see section 2 above for information."]
[]
["For existing HTR moving to TFD contract, post information will be revised centrally. However any adjustment in post budget hours required to an existing TFD contract, an epost form should also be completed by the school and submitted in the normal manner to increase the budget hours for the post.  The eform can be completed by accessing the askHR portal, please see section 2 above for information. "]
[]
["A copy of the record to the date of change should be provided to the employee for their record."]
[]
["A new planner will need to be saved for the TFD with the new allocation and the date of increase input onto the planner tab.  "]
[]
[]
["7.0  Budget allocation and revision"]
[]
["Schools will receive their budget allocation at the beginning of each school session.  "]
["If the TFD leaves the school, please notify Finance (Primary Accountant)  who will reduce the budget as necessary to allow Supply Teachers to be used until a replacement TFD \ncan be put in to post. Any days worked by a Supply Teacher to cover a TFD vacancy should be coded to supply code 205."]
[]
["During the period which a TFD post is vacant within a school, Supply days will need to be used evenly across the period.  This will ensure there is adequate budget remaining when issuing a contract to the replacement TFD.  If there are insufficient days remaining when a replacement is to be put in to post, the school will be required to meet any difference from another devolved budget."]
[]
["Once a replacement TFD has been appointed please contact Finance (Primary Accountant) so that the schools devolved management relif allocation can be removed to allow for payment to be made from a central budget. "]
[]
[]
["8.0  Using non contracted days for Management Relief time"]
[]
["Carry forwards will not be allocated in to Management Relief budgets.  "]
[]
["There may be occasions where the school wish to use a carried forward budget to cover extra management relief time.  In this instance the day would need to be charged against the devolved supply code 140 and if required budget would be vired in from another devolved budget to cover the hours."]
[]
["Unused management days cannot be vired to other budgets and there will continue to be no carry forward for days remaining at the end of the school session. "]

{"sheet":"Using the planner","index":1,"n_rows":50,"n_cols":6,"rows_kept":50,"cut":false,"hidden":false,"merged":[[47,3,47,4],[42,3,42,4],[43,3,43,4],[44,3,44,4],[45,3,45,4],[46,3,46,4]]}
[]
["Teacher - Flexible Days "]
[]
["NB:"]
["Please copy and save a copy of this planner for your own records for each individual."]
["A new copy will be required at the start of each new school session, for any new starts and when TFD changes hours."]
[]
["Planner:"]
[]
[1,"Enter the employees name, payroll number and school/academy"]
[]
[2,"Enter the contracted days for the whole school session:"]
[]
[null,"For example if the employee is to work 2.5 days per week (0.5 fte) then (2.5 X 39*) = 97.5."]
[]
[3,"The start date and end date can be amended, so if the employee is not employed for the whole school session this is used to give the total hours "]
[null,"to be worked - using start & end dates."]
[]
[4,"The days to be worked that will be fixed are selected - Fixed Day 1 and Fixed Day 2.  These days will then be highlighted in pink in the Hours Planner."]
[null,"Please note that generally if the hours are under 97.51 then there will be 1 fixed day and over 97.5 there will be two.  One of the possible exceptions to this is"]
[null,"when there is a job share in place and the number hours per week for the indiviual are low. "]
[]
[6,"The in-service allocation and in-service days this session/average daily hours and relevant occasional days are displayed."]
[]
[7,"The hours to be worked each day can then be entered in the Hours Planner"]
[]
[8,"If the employee is absent, please refer to section 3 of the planner."]
[null,"Please note that if average daily hours are used, when you enter the 4 decimal figure it will display as 2 digit figure in the hours box."]
[]
[null,"After each box you enter hours in, there is an absence recording box with a dropdown, please see example below:"]
[]
[null,null,"Monday","M","Tuesday","Tu"]
[null,null,0,null,0]
[null,null,7,"Sck",7,"Sck"]
[null,null,0,null,0]
[null,null,0,null,0]
[]
[]
[]
[null,"If the employee is absence please use the relevant absence recording box and using the dropdown select the appropriate reason code for absence as listed below."]
[]
[null,null,"Key:"]
[null,null,"Dropdown ","Full description"]
[null,null,"Sck","Sickness Absence"]
[null,null,"Mat","Maternity Leave"]
[null,null,"Psl","Paid Special Leave"]
[null,null,"Usl","Unpaid Special Leave"]
[null,null,"Oth","Other"]
[]
[null,"If Other is selected please input the details in the comments column."]

{"sheet":"calendarteach","index":2,"n_rows":368,"n_cols":12,"rows_kept":368,"cut":false,"hidden":true,"merged":[]}
["Calendar for ","2022/23",null,null,null,null,null,null,null,null,null,"2 Occasional days takes it to 195 (should always be 195)"]
[null,"Date","Day","Holidays/non contractual",null,"working days","Non working days ",null,null,"day","month","total days in month"]
[{"$f":"B3","v":45159},"2023-08-21","Monday",null,"August",1,null,null,null,21,1,31]
[45160,"2023-08-22","Tuesday",null,"August",1,null,null,null,22,1,31]
[45161,"2023-08-23","Wednesday",null,"August",1,null,null,null,23,1,31]
[45162,"2023-08-24","Thursday",null,"August",1,null,null,null,24,1,31]
[45163,"2023-08-25","Friday",null,"August",1,null,null,null,25,1,31]
[45164,"2023-08-26","Saturday",null,"August",null,1,null,null,26,1,31]
[45165,"2023-08-27","Sunday",null,"August"," ",1,null,null,27,1,31]
[45166,"2023-08-28","Monday",null,"August",1,null,null,null,28,1,31]
[45167,"2023-08-29","Tuesday",null,"August",1,null,null,null,29,1,31]
[45168,"2023-08-30","Wednesday",null,"August",1,null,null,null,30,1,31]
[45169,"2023-08-31","Thursday",null,"August",1,null,null,null,31,1,31]
[45170,"2023-09-01","Friday",null,"September",1,null,null,null,1,2,30]
[45171,"2023-09-02","Saturday",null,"September",null,1,null,null,2,2,30]
[45172,"2023-09-03","Sunday",null,"September",null,1,null,null,3,2,30]
[45173,"2023-09-04","Monday",null,"September",1,null,null,null,4,2,30]
[45174,"2023-09-05","Tuesday",null,"September",1,null,null,null,5,2,30]
[45175,"2023-09-06","Wednesday",null,"September",1,null,null,null,6,2,30]
[45176,"2023-09-07","Thursday",null,"September",1,null,null,null,7,2,30]
[45177,"2023-09-08","Friday",null,"September",1,null,null,null,8,2,30]
[45178,"2023-09-09","Saturday",null,"September",null,1,null,null,9,2,30]
[45179,"2023-09-10","Sunday",null,"September",null,1,null,null,10,2,30]
[45180,"2023-09-11","Monday",null,"September",1,null,null,null,11,2,30]
[45181,"2023-09-12","Tuesday",null,"September",1,null,null,null,12,2,30]
[45182,"2023-09-13","Wednesday",null,"September",1,null,null,null,13,2,30]
[45183,"2023-09-14","Thursday",null,"September",1,null,null,null,14,2,30]
[45184,"2023-09-15","Friday",null,"September",1,null,null,null,15,2,30]
[45185,"2023-09-16","Saturday",null,"September",null,1,null,null,16,2,30]
[45186,"2023-09-17","Sunday",null,"September",null,1,null,null,17,2,30]
[45187,"2023-09-18","Monday",null,"September",1,null,null,null,18,2,30]
[45188,"2023-09-19","Tuesday",null,"September",1,null,null,null,19,2,30]
[45189,"2023-09-20","Wednesday",null,"September",1,null,null,null,20,2,30]
[45190,"2023-09-21","Thursday",null,"September",1,null,null,null,21,2,30]
[45191,"2023-09-22","Friday",null,"September",1,null,null,null,22,2,30]
[45192,"2023-09-23","Saturday",null,"September",null,1,null,null,23,2,30]
[45193,"2023-09-24","Sunday",null,"September"," ",1,null,null,24,2,30]
[45194,"2023-09-25","Monday",null,"September",1,null,null,null,25,2,30]
[45195,"2023-09-26","Tuesday",null,"September",1,null,null,null,26,2,30]
[45196,"2023-09-27","Wednesday",null,"September",1,null,null,null,27,2,30]
[45197,"2023-09-28","Thursday",null,"September",1,null,null,null,28,2,30]
[45198,"2023-09-29","Friday",null,"September",1,null,null,null,29,2,30]
[45199,"2023-09-30","Saturday",null,"September",null,1,null,null,30,2,30]
[45200,"2023-10-01","Sunday",null,"October",null,1,null,null,1,3,31]
[45201,"2023-10-02","Monday",null,"October",1,null,null,null,2,3,31]
[45202,"2023-10-03","Tuesday",null,"October",1,null,null,null,3,3,31]
[45203,"2023-10-04","Wednesday",null,"October",1,null,null,null,4,3,31]
[45204,"2023-10-05","Thursday",null,"October",1,null,null,null,5,3,31]
[45205,"2023-10-06","Friday",null,"October",1,null,null,null,6,3,31]
[45206,"2023-10-07","Saturday",null,"October",null,1,null,null,7,3,31]
[45207,"2023-10-08","Sunday",null,"October"," ",1,null,null,8,3,31]
[45208,"2023-10-09","Monday",null,"October",1,null,null,null,9,3,31]
[45209,"2023-10-10","Tuesday",null,"October",1,null,null,null,10,3,31]
[45210,"2023-10-11","Wednesday",null,"October",1,null,null,null,11,3,31]
[45211,"2023-10-12","Thursday",null,"October",1,null,null,null,12,3,31]
[45212,"2023-10-13","Friday",null,"October",1,null,null,null,13,3,31]
[45213,"2023-10-14","Saturday",null,"October",null,1,null,null,14,3,31]
[45214,"2023-10-15","Sunday",null,"October",null,1,null,null,15,3,31]
[45215,"2023-10-16","Monday","Hol","October",null,1,null,null,16,3,31]
[45216,"2023-10-17","Tuesday","Hol","October",null,1,null,null,17,3,31]
[45217,"2023-10-18","Wednesday","Hol","October",null,1,null,null,18,3,31]
[45218,"2023-10-19","Thursday","Hol","October",null,1,null,null,19,3,31]
[45219,"2023-10-20","Friday","Hol","October",null,1,null,null,20,3,31]
[45220,"2023-10-21","Saturday",null,"October",null,1,null,null,21,3,31]
[45221,"2023-10-22","Sunday",null,"October"," ",1,null,null,22,3,31]
[45222,"2023-10-23","Monday","Hol","October",null,1,null,null,23,3,31]
[{"$f":"B67","v":45223},"2023-10-24","Tuesday","Hol","October",null,1,null,null,24,3,31]
[45224,"2023-10-25","Wednesday","NC","October",null,1,null,null,25,3,31]
[45225,"2023-10-26","Thursday","NC","October",null,1,null,null,26,3,31]
[45226,"2023-10-27","Friday","NC","October",null,1,null,null,27,3,31]
[45227,"2023-10-28","Saturday",null,"October",null,1,null,null,28,3,31]
[45228,"2023-10-29","Sunday",null,"October",null,1,null,null,29,3,31]
[45229,"2023-10-30","Monday",null,"October",1,null,null,null,30,3,31]
[45230,"2023-10-31","Tuesday",null,"October",1,null,null,null,31,3,31]
[45231,"2023-11-01","Wednesday",null,"November",1,null,null,null,1,4,30]
[45232,"2023-11-02","Thursday",null,"November",1,null,null,null,2,4,30]
[45233,"2023-11-03","Friday",null,"November",1,null,null,null,3,4,30]
[45234,"2023-11-04","Saturday",null,"November",null,1,null,null,4,4,30]
[45235,"2023-11-05","Sunday",null,"November"," ",1,null,null,5,4,30]
[45236,"2023-11-06","Monday",null,"November",1,null,null,null,6,4,30]
[45237,"2023-11-07","Tuesday",null,"November",1,null,null,null,7,4,30]
[45238,"2023-11-08","Wednesday",null,"November",1,null,null,null,8,4,30]
[45239,"2023-11-09","Thursday",null,"November",1,null,null,null,9,4,30]
[45240,"2023-11-10","Friday",null,"November",1,null,null,null,10,4,30]
[45241,"2023-11-11","Saturday",null,"November",null,1,null,null,11,4,30]
[45242,"2023-11-12","Sunday",null,"November",null,1,null,null,12,4,30]
[45243,"2023-11-13","Monday",null,"November",1,null,null,null,13,4,30]
[45244,"2023-11-14","Tuesday",null,"November",1,null,null,null,14,4,30]
[45245,"2023-11-15","Wednesday",null,"November",1,null,null,null,15,4,30]
[45246,"2023-11-16","Thursday",null,"November",1,null,null,null,16,4,30]
[45247,"2023-11-17","Friday",null,"November",1,null,null,null,17,4,30]
[45248,"2023-11-18","Saturday",null,"November",null,1,null,null,18,4,30]
[45249,"2023-11-19","Sunday",null,"November"," ",1,null,null,19,4,30]
[45250,"2023-11-20","Monday",null,"November",1,null,null,null,20,4,30]
[45251,"2023-11-21","Tuesday",null,"November",1,null,null,null,21,4,30]
[45252,"2023-11-22","Wednesday",null,"November",1,null,null,null,22,4,30]
[45253,"2023-11-23","Thursday",null,"November",1,null,null,null,23,4,30]
[45254,"2023-11-24","Friday",null,"November",1,null,null,null,24,4,30]
[45255,"2023-11-25","Saturday",null,"November",null,1,null,null,25,4,30]
[45256,"2023-11-26","Sunday",null,"November",null,1,null,null,26,4,30]
[45257,"2023-11-27","Monday",null,"November",1,null,null,null,27,4,30]
[45258,"2023-11-28","Tuesday",null,"November",1,null,null,null,28,4,30]
[45259,"2023-11-29","Wednesday",null,"November",1,null,null,null,29,4,30]
[45260,"2023-11-30","Thursday",null,"November",1,null,null,null,30,4,30]
[45261,"2023-12-01","Friday",null,"December",1,null,null,null,1,5,31]
[45262,"2023-12-02","Saturday",null,"December",null,1,null,null,2,5,31]
[45263,"2023-12-03","Sunday",null,"December"," ",1,null,null,3,5,31]
[45264,"2023-12-04","Monday",null,"December",1,null,null,null,4,5,31]
[45265,"2023-12-05","Tuesday",null,"December",1,null,null,null,5,5,31]
[45266,"2023-12-06","Wednesday",null,"December",1,null,null,null,6,5,31]
[45267,"2023-12-07","Thursday",null,"December",1,null,null,null,7,5,31]
[45268,"2023-12-08","Friday",null,"December",1,null,null,null,8,5,31]
[45269,"2023-12-09","Saturday",null,"December",null,1,null,null,9,5,31]
[45270,"2023-12-10","Sunday",null,"December",null,1,null,null,10,5,31]
[45271,"2023-12-11","Monday",null,"December",1,null,null,null,11,5,31]
[45272,"2023-12-12","Tuesday",null,"December",1,null,null,null,12,5,31]
[45273,"2023-12-13","Wednesday",null,"December",1,null,null,null,13,5,31]
[45274,"2023-12-14","Thursday",null,"December",1,null,null,null,14,5,31]
[45275,"2023-12-15","Friday",null,"December",1,null,null,null,15,5,31]
[45276,"2023-12-16","Saturday",null,"December",null,1,null,null,16,5,31]
[45277,"2023-12-17","Sunday",null,"December"," ",1,null,null,17,5,31]
[45278,"2023-12-18","Monday",null,"December",1,null,null,null,18,5,31]
[45279,"2023-12-19","Tuesday",null,"December",1,null,null,null,19,5,31]
[45280,"2023-12-20","Wednesday",null,"December",1,null,null,null,20,5,31]
[45281,"2023-12-21","Thursday",null,"December",1,null,null,null,21,5,31]
[45282,"2023-12-22","Friday",null,"December",1,null,null,null,22,5,31]
[45283,"2023-12-23","Saturday",null,"December",null,1,null,null,23,5,31]
[45284,"2023-12-24","Sunday",null,"December",null,1,null,null,24,5,31]
[45285,"2023-12-25","Monday","Hol","December",null,1,null,null,25,5,31]
[45286,"2023-12-26","Tuesday","Hol","December",null,1,null,null,26,5,31]
[{"$f":"B131","v":45287},"2023-12-27","Wednesday","Hol","December",null,1,null,null,27,5,31]
[45288,"2023-12-28","Thursday","Hol","December",null,1,null,null,28,5,31]
[45289,"2023-12-29","Friday","Hol","December",null,1,null,null,29,5,31]
[45290,"2023-12-30","Saturday",null,"December",null,1,null,null,30,5,31]
[45291,"2023-12-31","Sunday",null,"December",null,1,null,null,31,5,31]
[45292,"2024-01-01","Monday","Hol","January",null,1,null,null,1,6,31]
[45293,"2024-01-02","Tuesday","Hol","January",null,1,null,null,2,6,31]
[45294,"2024-01-03","Wednesday","NC","January",null,1,null,null,3,6,31]
[45295,"2024-01-04","Thursday","NC","January",null,1,null,null,4,6,31]
[45296,"2024-01-05","Friday","NC","January",null,1,null,null,5,6,31]
[45297,"2024-01-06","Saturday",null,"January",null,1,null,null,6,6,31]
[45298,"2024-01-07","Sunday",null,"January",null,1,null,null,7,6,31]
[45299,"2024-01-08","Monday",null,"January",1,null,null,null,8,6,31]
[45300,"2024-01-09","Tuesday",null,"January",1,null,null,null,9,6,31]
[45301,"2024-01-10","Wednesday",null,"January",1,null,null,null,10,6,31]
[45302,"2024-01-11","Thursday",null,"January",1,null,null,null,11,6,31]
[45303,"2024-01-12","Friday",null,"January",1,null,null,null,12,6,31]
[45304,"2024-01-13","Saturday",null,"January",null,1,null,null,13,6,31]
[45305,"2024-01-14","Sunday",null,"January"," ",1,null,null,14,6,31]
[45306,"2024-01-15","Monday",null,"January",1,null,null,null,15,6,31]
[45307,"2024-01-16","Tuesday",null,"January",1,null,null,null,16,6,31]
[45308,"2024-01-17","Wednesday",null,"January",1,null,null,null,17,6,31]
[45309,"2024-01-18","Thursday",null,"January",1,null,null,null,18,6,31]
[45310,"2024-01-19","Friday",null,"January",1,null,null,null,19,6,31]
[45311,"2024-01-20","Saturday",null,"January",null,1,null,null,20,6,31]
[45312,"2024-01-21","Sunday",null,"January",null,1,null,null,21,6,31]
[45313,"2024-01-22","Monday",null,"January",1,null,null,null,22,6,31]
[45314,"2024-01-23","Tuesday",null,"January",1,null,null,null,23,6,31]
[45315,"2024-01-24","Wednesday",null,"January",1,null,null,null,24,6,31]
[45316,"2024-01-25","Thursday",null,"January",1,null,null,null,25,6,31]
[45317,"2024-01-26","Friday",null,"January",1,null,null,null,26,6,31]
[45318,"2024-01-27","Saturday",null,"January",null,1,null,null,27,6,31]
[45319,"2024-01-28","Sunday",null,"January"," ",1,null,null,28,6,31]
[45320,"2024-01-29","Monday",null,"January",1,null,null,null,29,6,31]
[45321,"2024-01-30","Tuesday",null,"January",1,null,null,null,30,6,31]
[45322,"2024-01-31","Wednesday",null,"January",1,null,null,null,31,6,31]
[45323,"2024-02-01","Thursday",null,"February",1,null,null,null,1,7,29]
[45324,"2024-02-02","Friday",null,"February",1,null,null,null,2,7,29]
[45325,"2024-02-03","Saturday",null,"February",null,1,null,null,3,7,29]
[45326,"2024-02-04","Sunday",null,"February",null,1,null,null,4,7,29]
[45327,"2024-02-05","Monday",null,"February",1,null,null,null,5,7,29]
[45328,"2024-02-06","Tuesday",null,"February",1,null,null,null,6,7,29]
[45329,"2024-02-07","Wednesday",null,"February",1,null,null,null,7,7,29]
[45330,"2024-02-08","Thursday",null,"February",1,null,null,null,8,7,29]
[45331,"2024-02-09","Friday",null,"February",1,null,null,null,9,7,29]
[45332,"2024-02-10","Saturday",null,"February",null,1,null,null,10,7,29]
[45333,"2024-02-11","Sunday",null,"February"," ",1,null,null,11,7,29]
[45334,"2024-02-12","Monday","NC","February",null,1,null,null,12,7,29]
[45335,"2024-02-13","Tuesday",null,"February",1,null,null,null,13,7,29]
[45336,"2024-02-14","Wednesday",null,"February",1,null,null,null,14,7,29]
[45337,"2024-02-15","Thursday",null,"February",1,null,null,null,15,7,29]
[45338,"2024-02-16","Friday",null,"February",1,null,null,null,16,7,29]
[45339,"2024-02-17","Saturday",null,"February",null,1,null,null,17,7,29]
[45340,"2024-02-18","Sunday",null,"February",null,1,null,null,18,7,29]
[45341,"2024-02-19","Monday",null,"February",1,null,null,null,19,7,29]
[45342,"2024-02-20","Tuesday",null,"February",1,null,null,null,20,7,29]
[45343,"2024-02-21","Wednesday",null,"February",1,null,null,null,21,7,29]
[45344,"2024-02-22","Thursday",null,"February",1,null,null,null,22,7,29]
[45345,"2024-02-23","Friday",null,"February",1,null,null,null,23,7,29]
[45346,"2024-02-24","Saturday",null,"February",null,1,null,null,24,7,29]
[45347,"2024-02-25","Sunday",null,"February"," ",1,null,null,25,7,29]
[45348,"2024-02-26","Monday",null,"February",1,null,null,null,26,7,29]
[45349,"2024-02-27","Tuesday",null,"February",1,null,null,null,27,7,29]
[45350,"2024-02-28","Wednesday",null,"February",1,null,null,null,28,7,29]
[{"$f":"B195","v":45351},"2024-02-29","Thursday",null,"February",1,null,null,null,29,7,29]
[45352,"2024-03-01","Friday",null,"March",1,null,null,null,1,8,31]
[45353,"2024-03-02","Saturday",null,"March",null,1,null,null,2,8,31]
[45354,"2024-03-03","Sunday",null,"March",null,1,null,null,3,8,31]
[45355,"2024-03-04","Monday",null,"March",1,null,null,null,4,8,31]
[45356,"2024-03-05","Tuesday",null,"March",1,null,null,null,5,8,31]
[45357,"2024-03-06","Wednesday",null,"March",1,null,null,null,6,8,31]
[45358,"2024-03-07","Thursday",null,"March",1,null,null,null,7,8,31]
[45359,"2024-03-08","Friday",null,"March",1,null,null,null,8,8,31]
[45360,"2024-03-09","Saturday",null,"March",null,1,null,null,9,8,31]
[45361,"2024-03-10","Sunday",null,"March"," ",1,null,null,10,8,31]
[45362,"2024-03-11","Monday",null,"March",1,null,null,null,11,8,31]
[45363,"2024-03-12","Tuesday",null,"March",1,null,null,null,12,8,31]
[45364,"2024-03-13","Wednesday",null,"March",1,null,null,null,13,8,31]
[45365,"2024-03-14","Thursday",null,"March",1,null,null,null,14,8,31]
[45366,"2024-03-15","Friday",null,"March",1,null,null,null,15,8,31]
[45367,"2024-03-16","Saturday",null,"March",null,1,null,null,16,8,31]
[45368,"2024-03-17","Sunday",null,"March",null,1,null,null,17,8,31]
[45369,"2024-03-18","Monday",null,"March",1,null,null,null,18,8,31]
[45370,"2024-03-19","Tuesday",null,"March",1,null,null,null,19,8,31]
[45371,"2024-03-20","Wednesday",null,"March",1,null,null,null,20,8,31]
[45372,"2024-03-21","Thursday",null,"March",1,null,null,null,21,8,31]
[45373,"2024-03-22","Friday",null,"March",1,null,null,null,22,8,31]
[45374,"2024-03-23","Saturday",null,"March",null,1,null,null,23,8,31]
[45375,"2024-03-24","Sunday",null,"March"," ",1,null,null,24,8,31]
[45376,"2024-03-25","Monday",null,"March",1,null,null,null,25,8,31]
[45377,"2024-03-26","Tuesday",null,"March",1,null,null,null,26,8,31]
[45378,"2024-03-27","Wednesday",null,"March",1,null,null,null,27,8,31]
[45379,"2024-03-28","Thursday",null,"March",1,null,null,null,28,8,31]
[45380,"2024-03-29","Friday","Hol","March",null,1,null,null,29,8,31]
[45381,"2024-03-30","Saturday",null,"March",null,1,null,null,30,8,31]
[45382,"2024-03-31","Sunday",null,"March",null,1,null,null,31,8,31]
[45383,"2024-04-01","Monday","Hol","April",null,1,null,null,1,9,30]
[45384,"2024-04-02","Tuesday","Hol","April",null,1,null,null,2,9,30]
[45385,"2024-04-03","Wednesday","Hol","April",null,1,null,null,3,9,30]
[45386,"2024-04-04","Thursday","Hol","April",null,1,null,null,4,9,30]
[45387,"2024-04-05","Friday","Hol","April",null,1,null,null,5,9,30]
[45388,"2024-04-06","Saturday",null,"April",null,1,null,null,6,9,30]
[45389,"2024-04-07","Sunday",null,"April"," ",1,null,null,7,9,30]
[45390,"2024-04-08","Monday","NC","April",null,1,null,null,8,9,30]
[45391,"2024-04-09","Tuesday","NC","April",null,1,null,null,9,9,30]
[45392,"2024-04-10","Wednesday","NC","April",null,1,null,null,10,9,30]
[45393,"2024-04-11","Thursday","NC","April",null,1,null,null,11,9,30]
[45394,"2024-04-12","Friday","NC","April",null,1,null,null,12,9,30]
[45395,"2024-04-13","Saturday",null,"April",null,1,null,null,13,9,30]
[45396,"2024-04-14","Sunday",null,"April",null,1,null,null,14,9,30]
[45397,"2024-04-15","Monday",null,"April",1,null,null,null,15,9,30]
[45398,"2024-04-16","Tuesday",null,"April",1,null,null,null,16,9,30]
[45399,"2024-04-17","Wednesday",null,"April",1,null,null,null,17,9,30]
[45400,"2024-04-18","Thursday",null,"April",1,null,null,null,18,9,30]
[45401,"2024-04-19","Friday",null,"April",1,null,null,null,19,9,30]
[45402,"2024-04-20","Saturday",null,"April",null,1,null,null,20,9,30]
[45403,"2024-04-21","Sunday",null,"April"," ",1,null,null,21,9,30]
[45404,"2024-04-22","Monday",null,"April",1,null,null,null,22,9,30]
[45405,"2024-04-23","Tuesday",null,"April",1,null,null,null,23,9,30]
[45406,"2024-04-24","Wednesday",null,"April",1,null,null,null,24,9,30]
[45407,"2024-04-25","Thursday",null,"April",1,null,null,null,25,9,30]
[45408,"2024-04-26","Friday",null,"April",1,null,null,null,26,9,30]
[45409,"2024-04-27","Saturday",null,"April",null,1,null,null,27,9,30]
[45410,"2024-04-28","Sunday",null,"April",null,1,null,null,28,9,30]
[45411,"2024-04-29","Monday",null,"April",1,null,null,null,29,9,30]
[45412,"2024-04-30","Tuesday",null,"April",1,null,null,null,30,9,30]
[45413,"2024-05-01","Wednesday",null,"May",1,null,null,null,1,10,31]
[45414,"2024-05-02","Thursday",null,"May",1,null,null,null,2,10,31]
[{"$f":"B259","v":45415},"2024-05-03","Friday",null,"May",1,null,null,null,3,10,31]
[45416,"2024-05-04","Saturday",null,"May",null,1,null,null,4,10,31]
[45417,"2024-05-05","Sunday",null,"May"," ",1,null,null,5,10,31]
[45418,"2024-05-06","Monday","NC","May",null,1,null,null,6,10,31]
[45419,"2024-05-07","Tuesday",null,"May",1,null,null,null,7,10,31]
[45420,"2024-05-08","Wednesday",null,"May",1,null,null,null,8,10,31]
[45421,"2024-05-09","Thursday",null,"May",1,null,null,null,9,10,31]
[45422,"2024-05-10","Friday",null,"May",1,null,null,null,10,10,31]
[45423,"2024-05-11","Saturday",null,"May",null,1,null,null,11,10,31]
[45424,"2024-05-12","Sunday",null,"May",null,1,null,null,12,10,31]
[45425,"2024-05-13","Monday",null,"May",1,null,null,null,13,10,31]
[45426,"2024-05-14","Tuesday",null,"May",1,null,null,null,14,10,31]
[45427,"2024-05-15","Wednesday",null,"May",1,null,null,null,15,10,31]
[45428,"2024-05-16","Thursday",null,"May",1,null,null,null,16,10,31]
[45429,"2024-05-17","Friday",null,"May",1,null,null,null,17,10,31]
[45430,"2024-05-18","Saturday",null,"May",null,1,null,null,18,10,31]
[45431,"2024-05-19","Sunday",null,"May",null,1,null,null,19,10,31]
[45432,"2024-05-20","Monday",null,"May",1,null,null,null,20,10,31]
[45433,"2024-05-21","Tuesday",null,"May",1,null,null,null,21,10,31]
[45434,"2024-05-22","Wednesday",null,"May",1,null,null,null,22,10,31]
[45435,"2024-05-23","Thursday",null,"May",1,null,null,null,23,10,31]
[45436,"2024-05-24","Friday",null,"May",1,null,null,null,24,10,31]
[45437,"2024-05-25","Saturday",null,"May",null,1,null,null,25,10,31]
[45438,"2024-05-26","Sunday",null,"May"," ",1,null,null,26,10,31]
[45439,"2024-05-27","Monday",null,"May",1,null,null,null,27,10,31]
[45440,"2024-05-28","Tuesday",null,"May",1,null,null,null,28,10,31]
[45441,"2024-05-29","Wednesday",null,"May",1,null,null,null,29,10,31]
[45442,"2024-05-30","Thursday",null,"May",1,null,null,null,30,10,31]
[45443,"2024-05-31","Friday",null,"May",1,null,null,null,31,10,31]
[45444,"2024-06-01","Saturday",null,"June",null,1,null,null,1,11,30]
[45445,"2024-06-02","Sunday",null,"June",null,1,null,null,2,11,30]
[45446,"2024-06-03","Monday",null,"June",1,null,null,null,3,11,30]
[45447,"2024-06-04","Tuesday",null,"June",1,null,null,null,4,11,30]
[45448,"2024-06-05","Wednesday",null,"June",1,null,null,null,5,11,30]
[45449,"2024-06-06","Thursday",null,"June",1,null,null,null,6,11,30]
[45450,"2024-06-07","Friday",null,"June",1,null,null,null,7,11,30]
[45451,"2024-06-08","Saturday",null,"June",null,1,null,null,8,11,30]
[45452,"2024-06-09","Sunday",null,"June"," ",1,null,null,9,11,30]
[45453,"2024-06-10","Monday",null,"June",1,null,null,null,10,11,30]
[45454,"2024-06-11","Tuesday",null,"June",1,null,null,null,11,11,30]
[45455,"2024-06-12","Wednesday",null,"June",1,null,null,null,12,11,30]
[45456,"2024-06-13","Thursday",null,"June",1,null,null,null,13,11,30]
[45457,"2024-06-14","Friday",null,"June",1,null,null,null,14,11,30]
[45458,"2024-06-15","Saturday",null,"June",null,1,null,null,15,11,30]
[45459,"2024-06-16","Sunday",null,"June",null,1,null,null,16,11,30]
[45460,"2024-06-17","Monday",null,"June",1,null,null,null,17,11,30]
[45461,"2024-06-18","Tuesday",null,"June",1,null,null,null,18,11,30]
[45462,"2024-06-19","Wednesday",null,"June",1,null,null,null,19,11,30]
[45463,"2024-06-20","Thursday",null,"June",1,null,null,null,20,11,30]
[45464,"2024-06-21","Friday",null,"June",1,null,null,null,21,11,30]
[45465,"2024-06-22","Saturday",null,"June",null,1,null,null,22,11,30]
[45466,"2024-06-23","Sunday",null,"June"," ",1,null,null,23,11,30]
[45467,"2024-06-24","Monday",null,"June",1,null,null,null,24,11,30]
[45468,"2024-06-25","Tuesday",null,"June",1,null,null,null,25,11,30]
[45469,"2024-06-26","Wednesday",null,"June",1,null,null,null,26,11,30]
[45470,"2024-06-27","Thursday",null,"June",1,null,null,null,27,11,30]
[45471,"2024-06-28","Friday",null,"June",1,null,null,null,28,11,30]
[45472,"2024-06-29","Saturday",null,"June",null,1,null,null,29,11,30]
[45473,"2024-06-30","Sunday",null,"June",null,1,null,null,30,11,30]
[45474,"2024-07-01","Monday",null,"July",1,null,null,null,1,12,31]
[45475,"2024-07-02","Tuesday",null,"July",1,null,null,null,2,12,31]
[45476,"2024-07-03","Wednesday",null,"July",1,null,null,null,3,12,31]
[45477,"2024-07-04","Thursday",null,"July",1,null,null,null,4,12,31]
[45478,"2024-07-05","Friday",null,"July",1,null,null,null,5,12,31]
[{"$f":"B323","v":45479},"2024-07-06","Saturday",null,"July",null,1,null,null,6,12,31]
[45480,"2024-07-07","Sunday",null,"July"," ",1,null,null,7,12,31]
[45481,"2024-07-08","Monday","Hol","July",null,1,null,null,8,12,31]
[45482,"2024-07-09","Tuesday","Hol","July",null,1,null,null,9,12,31]
[45483,"2024-07-10","Wednesday","Hol","July",null,1,null,null,10,12,31]
[45484,"2024-07-11","Thursday","Hol","July",null,1,null,null,11,12,31]
[45485,"2024-07-12","Friday","Hol","July",null,1,null,null,12,12,31]
[45486,"2024-07-13","Saturday",null,"July",null,1,null,null,13,12,31]
[45487,"2024-07-14","Sunday",null,"July",null,1,null,null,14,12,31]
[45488,"2024-07-15","Monday","Hol","July",null,1,null,null,15,12,31]
[45489,"2024-07-16","Tuesday","Hol","July",null,1,null,null,16,12,31]
[45490,"2024-07-17","Wednesday","Hol","July",null,1,null,null,17,12,31]
[45491,"2024-07-18","Thursday","Hol","July",null,1,null,null,18,12,31]
[45492,"2024-07-19","Friday","Hol","July",null,1,null,null,19,12,31]
[45493,"2024-07-20","Saturday",null,"July",null,1,null,null,20,12,31]
[45494,"2024-07-21","Sunday",null,"July",null,1,null,null,21,12,31]
[45495,"2024-07-22","Monday","Hol","July",null,1,null,null,22,12,31]
[45496,"2024-07-23","Tuesday","Hol","July",null,1,null,null,23,12,31]
[45497,"2024-07-24","Wednesday","Hol","July",null,1,null,null,24,12,31]
[45498,"2024-07-25","Thursday","Hol","July",null,1,null,null,25,12,31]
[45499,"2024-07-26","Friday","Hol","July",null,1,null,null,26,12,31]
[45500,"2024-07-27","Saturday",null,"July",null,1,null,null,27,12,31]
[45501,"2024-07-28","Sunday",null,"July",null,1,null,null,28,12,31]
[45502,"2024-07-29","Monday","Hol","July",null,1,null,null,29,12,31]
[45503,"2024-07-30","Tuesday","Hol","July",null,1,null,null,30,12,31]
[45504,"2024-07-31","Wednesday","Hol","July",null,1,null,null,31,12,31]
[45505,"2024-08-01","Thursday","Hol","August",null,1,null,null,1,13,31]
[45506,"2024-08-02","Friday","Hol","August",null,1,null,null,2,13,31]
[45507,"2024-08-03","Saturday",null,"August",null,1,null,null,3,13,31]
[45508,"2024-08-04","Sunday",null,"August",null,1,null,null,4,13,31]
[45509,"2024-08-05","Monday","NC","August",null,1,null,null,5,13,31]
[45510,"2024-08-06","Tuesday","NC","August",null,1,null,null,6,13,31]
[45511,"2024-08-07","Wednesday","NC","August",null,1,null,null,7,13,31]
[45512,"2024-08-08","Thursday","NC","August",null,1,null,null,8,13,31]
[45513,"2024-08-09","Friday","NC","August",null,1,null,null,9,13,31]
[45514,"2024-08-10","Saturday",null,"August",null,1,null,null,10,13,31]
[45515,"2024-08-11","Sunday",null,"August",null,1,null,null,11,13,31]
[45516,"2024-08-12","Monday","NC","August",null,1,null,null,12,13,31]
[45517,"2024-08-13","Tuesday","NC","August",null,1,null,null,13,13,31]
[45518,"2024-08-14","Wednesday","NC","August",null,1,null,null,14,13,31]
[45519,"2024-08-15","Thursday","NC","August",null,1,null,null,15,13,31]
[45520,"2024-08-16","Friday","NC","August",null,1,null,null,16,13,31]
[45521,"2024-08-17","Saturday",null,"August",null,1,null,null,17,13,31]
[45522,"2024-08-18","Sunday",null,"August",null,1,null,null,18,13,31]
[45523,"2024-08-19","Monday",null,"August",null,null,null,null,19,13,31]
[null,null,null,null,null,{"$f":"SUM(F3:F366)","v":197},{"$f":"SUM(G3:G367)","v":167}]

{"sheet":"Occ Days List","index":3,"n_rows":520,"n_cols":2,"rows_kept":520,"cut":false,"hidden":true,"merged":[]}
["NO SCHOOL","Date"]
["Aberchirder School","2023-02-09"]
["Aberchirder School","2023-02-10"]
["Aberchirder School","2023-06-05"]
["Aboyne Academy","2023-02-09"]
["Aboyne Academy","2023-02-10"]
["Aboyne Academy","2023-06-05"]
["Aboyne School","2023-02-09"]
["Aboyne School","2023-02-10"]
["Aboyne School","2023-06-05"]
["Alehousewells School","2023-02-09"]
["Alehousewells School","2023-02-10"]
["Alehousewells School","2023-06-05"]
["Alford Academy","2022-12-23"]
["Alford Academy","2023-02-10"]
["Alford Academy","2023-06-05"]
["Alford School","2022-12-23"]
["Alford School","2023-02-10"]
["Alford School","2023-06-05"]
["Anna Ritchie School","2022-12-23"]
["Anna Ritchie School","2023-02-10"]
["Anna Ritchie School","2023-06-05"]
["Arduthie School","2023-02-09"]
["Arduthie School","2023-02-10"]
["Arduthie School","2023-06-05"]
["Arnage School","2022-12-23"]
["Arnage School","2023-02-10"]
["Arnage School","2023-06-05"]
["Auchenblae School","2023-02-09"]
["Auchenblae School","2023-02-10"]
["Auchenblae School","2023-06-05"]
["Auchnagatt School","2022-12-23"]
["Auchnagatt School","2023-02-10"]
["Auchnagatt School","2023-06-05"]
["Auchterellon School","2022-12-23"]
["Auchterellon School","2023-02-10"]
["Auchterellon School","2023-06-05"]
["Auchterless School","2023-02-10"]
["Auchterless School","2023-06-05"]
["Auchterless School","2023-06-06"]
["Ballater School","2023-02-09"]
["Ballater School","2023-02-10"]
["Ballater School","2023-06-05"]
["Balmedie School  ","2022-12-23"]
["Balmedie School  ","2023-02-10"]
["Balmedie School  ","2023-06-05"]
["Banchory Academy","2023-02-09"]
["Banchory Academy","2023-02-10"]
["Banchory Academy","2023-06-05"]
["Banchory School","2023-02-09"]
["Banchory School","2023-02-10"]
["Banchory School","2023-06-05"]
["Banchory-Devenick Sch.","2023-02-08"]
["Banchory-Devenick Sch.","2023-02-09"]
["Banchory-Devenick Sch.","2023-02-10"]
["Banff  School","2023-02-09"]
["Banff  School","2023-02-10"]
["Banff  School","2023-06-05"]
["Banff Academy","2023-02-09"]
["Banff Academy","2023-02-10"]
["Banff Academy","2023-06-05"]
["Barthol Chapel School","2023-02-10"]
["Barthol Chapel School","2023-06-02"]
["Barthol Chapel School","2023-06-05"]
["Bervie School","2023-02-09"]
["Bervie School","2023-02-10"]
["Bervie School","2023-06-05"]
["Boddam School","2022-12-23"]
["Boddam School","2023-02-10"]
["Boddam School","2023-06-05"]
["Bracoden School","2023-02-09"]
["Bracoden School","2023-02-10"]
["Bracoden School","2023-06-05"]
["Braemar School","2023-02-09"]
["Braemar School","2023-02-10"]
["Braemar School","2023-06-05"]
["Buchanhaven School","2022-12-23"]
["Buchanhaven School","2023-02-10"]
["Buchanhaven School","2023-06-05"]
["Burnhaven School","2022-12-23"]
["Burnhaven School","2023-02-10"]
["Burnhaven School","2023-06-05"]
["Cairney School","2023-02-09"]
["Cairney School","2023-02-10"]
["Cairney School","2023-06-05"]
["Carronhill School","2023-02-09"]
["Carronhill School","2023-02-10"]
["Carronhill School","2023-06-05"]
["Catterline School","2023-02-09"]
["Catterline School","2023-02-10"]
["Catterline School","2023-06-05"]
["Chapel of Garioch School","2023-02-09"]
["Chapel of Garioch School","2023-02-10"]
["Chapel of Garioch School","2023-06-05"]
["Clatt School","2023-02-09"]
["Clatt School","2023-02-10"]
["Clatt School","2023-06-05"]
["Clerkhill School","2022-12-23"]
["Clerkhill School","2023-02-10"]
["Clerkhill School","2023-06-05"]
["Cluny School","2022-12-23"]
["Cluny School","2023-02-10"]
["Cluny School","2023-06-05"]
["Craigievar School","2022-12-23"]
["Craigievar School","2023-02-10"]
["Craigievar School","2023-06-05"]
["Crathes School","2023-02-09"]
["Crathes School","2023-02-10"]
["Crathes School","2023-06-05"]
["Crathie School","2023-02-09"]
["Crathie School","2023-02-10"]
["Crathie School","2023-06-05"]
["Crimond School","2023-02-09"]
["Crimond School","2023-02-10"]
["Crimond School","2023-06-05"]
["Crombie School","2022-12-23"]
["Crombie School","2023-02-09"]
["Crombie School","2023-02-10"]
["Crudie School","2023-02-10"]
["Crudie School","2023-06-05"]
["Crudie School","2023-06-06"]
["Cultercullen School","2023-02-10"]
["Cultercullen School","2023-06-02"]
["Cultercullen School","2023-06-05"]
["Dales Park School","2022-12-23"]
["Dales Park School","2023-02-10"]
["Dales Park School","2023-06-05"]
["Daviot School","2023-02-10"]
["Daviot School","2023-06-02"]
["Daviot School","2023-06-05"]
["Drumblade School","2023-02-09"]
["Drumblade School","2023-02-10"]
["Drumblade School","2023-06-05"]
["Drumoak School","2023-02-09"]
["Drumoak School","2023-02-10"]
["Drumoak School","2023-06-05"]
["Dunecht School","2022-12-23"]
["Dunecht School","2023-02-10"]
["Dunecht School","2023-06-05"]
["Dunnottar School","2023-02-09"]
["Dunnottar School","2023-02-10"]
["Dunnottar School","2023-06-05"]
["Durris School","2023-02-09"]
["Durris School","2023-02-10"]
["Durris School","2023-06-05"]
["Easterfield School","2023-02-10"]
["Easterfield School","2023-06-05"]
["Easterfield School","2023-06-06"]
["Echt School","2022-12-23"]
["Echt School","2023-02-10"]
["Echt School","2023-06-05"]
["Ellon Academy","2022-12-23"]
["Ellon Academy","2023-02-10"]
["Ellon Academy","2023-06-05"]
["Ellon School","2022-12-23"]
["Ellon School","2023-02-10"]
["Ellon School","2023-06-05"]
["Elrick School","2022-12-23"]
["Elrick School","2023-02-09"]
["Elrick School","2023-02-10"]
["Fetterangus School","2022-12-23"]
["Fetterangus School","2023-02-10"]
["Fetterangus School","2023-06-05"]
["Fettercairn School","2023-02-09"]
["Fettercairn School","2023-02-10"]
["Fettercairn School","2023-06-05"]
["Fintry School","2023-02-10"]
["Fintry School","2023-06-05"]
["Fintry School","2023-06-06"]
["Finzean School","2023-02-09"]
["Finzean School","2023-02-10"]
["Finzean School","2023-06-05"]
["Fisherford School","2023-02-10"]
["Fisherford School","2023-06-05"]
["Fisherford School","2023-06-06"]
["Fishermoss School","2023-02-08"]
["Fishermoss School","2023-02-09"]
["Fishermoss School","2023-02-10"]
["Fordyce School","2023-02-09"]
["Fordyce School","2023-02-10"]
["Fordyce School","2023-06-05"]
["Forgue School","2023-02-09"]
["Forgue School","2023-02-10"]
["Forgue School","2023-06-05"]
["Foveran School","2022-12-23"]
["Foveran School","2023-02-10"]
["Foveran School","2023-06-05"]
["Fraserburgh Academy","2023-02-09"]
["Fraserburgh Academy","2023-02-10"]
["Fraserburgh Academy","2023-06-05"]
["Fraserburgh North School","2023-02-09"]
["Fraserburgh North School","2023-02-10"]
["Fraserburgh North School","2023-06-05"]
["Fraserburgh South Park","2023-02-09"]
["Fraserburgh South Park","2023-02-10"]
["Fraserburgh South Park","2023-06-05"]
["Fyvie School","2023-02-10"]
["Fyvie School","2023-06-05"]
["Fyvie School","2023-06-06"]
["Gartly School","2023-02-09"]
["Gartly School","2023-02-10"]
["Gartly School","2023-06-05"]
["Glass School","2023-02-09"]
["Glass School","2023-02-10"]
["Glass School","2023-06-05"]
["Glenbervie School","2023-02-09"]
["Glenbervie School","2023-02-10"]
["Glenbervie School","2023-06-05"]
["Gordon Schools (The)","2023-02-09"]
["Gordon Schools (The)","2023-02-10"]
["Gordon Schools (The)","2023-06-05"]
["GordonSchool","2023-02-09"]
["GordonSchool","2023-02-10"]
["GordonSchool","2023-06-05"]
["Gourdon School","2023-02-09"]
["Gourdon School","2023-02-10"]
["Gourdon School","2023-06-05"]
["Hatton Fintray School","2023-02-09"]
["Hatton Fintray School","2023-02-10"]
["Hatton Fintray School","2023-06-05"]
["Hatton School, Cruden","2022-12-23"]
["Hatton School, Cruden","2023-02-10"]
["Hatton School, Cruden","2023-06-05"]
["Hill of Banchory School","2023-02-09"]
["Hill of Banchory School","2023-02-10"]
["Hill of Banchory School","2023-06-05"]
["Hillside School","2023-02-08"]
["Hillside School","2023-02-09"]
["Hillside School","2023-02-10"]
["Insch School","2023-02-09"]
["Insch School","2023-02-10"]
["Insch School","2023-06-05"]
["Inverallochy School","2023-02-09"]
["Inverallochy School","2023-02-10"]
["Inverallochy School","2023-06-05"]
["Inverurie Academy","2023-02-09"]
["Inverurie Academy","2023-02-10"]
["Inverurie Academy","2023-06-05"]
["Johnshaven School","2023-02-09"]
["Johnshaven School","2023-02-10"]
["Johnshaven School","2023-06-05"]
["Keig School","2022-12-23"]
["Keig School","2023-02-10"]
["Keig School","2023-06-05"]
["Keithhall School","2023-02-09"]
["Keithhall School","2023-02-10"]
["Keithhall School","2023-06-05"]
["Kellands School","2023-02-09"]
["Kellands School","2023-02-10"]
["Kellands School","2023-06-05"]
["Kemnay Academy","2023-02-09"]
["Kemnay Academy","2023-02-10"]
["Kemnay Academy","2023-06-05"]
["Kemnay School","2023-02-09"]
["Kemnay School","2023-02-10"]
["Kemnay School","2023-06-05"]
["Kennethmont School","2023-02-09"]
["Kennethmont School","2023-02-10"]
["Kennethmont School","2023-06-05"]
["Kincardine O’Neil School","2023-02-09"]
["Kincardine O’Neil School","2023-02-10"]
["Kincardine O’Neil School","2023-06-05"]
["Kinellar School","2023-02-09"]
["Kinellar School","2023-02-10"]
["Kinellar School","2023-06-05"]
["King Edward School","2023-02-10"]
["King Edward School","2023-06-05"]
["King Edward School","2023-06-06"]
["Kininmonth School","2022-12-23"]
["Kininmonth School","2023-02-10"]
["Kininmonth School","2023-06-05"]
["Kinneff School","2023-02-09"]
["Kinneff School","2023-02-10"]
["Kinneff School","2023-06-05"]
["Kintore School","2023-02-09"]
["Kintore School","2023-02-10"]
["Kintore School","2023-06-05"]
["Lairhillock School","2023-02-09"]
["Lairhillock School","2023-02-10"]
["Lairhillock School","2023-06-05"]
["Largue School","2023-02-09"]
["Largue School","2023-02-10"]
["Largue School","2023-06-05"]
["Laurencekirk School","2023-02-09"]
["Laurencekirk School","2023-02-10"]
["Laurencekirk School","2023-06-05"]
["Lochpots School","2023-02-09"]
["Lochpots School","2023-02-10"]
["Lochpots School","2023-06-05"]
["Logie Coldstone School","2023-02-09"]
["Logie Coldstone School","2023-02-10"]
["Logie Coldstone School","2023-06-05"]
["Logie Durno School","2023-02-10"]
["Logie Durno School","2023-06-02"]
["Logie Durno School","2023-06-05"]
["Longhaven School","2022-12-23"]
["Longhaven School","2023-02-10"]
["Longhaven School","2023-06-05"]
["Longside School","2022-12-23"]
["Longside School","2023-02-10"]
["Longside School","2023-06-05"]
["Lumphanan School","2023-02-09"]
["Lumphanan School","2023-02-10"]
["Lumphanan School","2023-06-05"]
["Lumsden School","2022-12-23"]
["Lumsden School","2023-02-10"]
["Lumsden School","2023-06-05"]
["Luthermuir School","2023-02-09"]
["Luthermuir School","2023-02-10"]
["Luthermuir School","2023-06-05"]
["Macduff School","2023-02-09"]
["Macduff School","2023-02-10"]
["Macduff School","2023-06-05"]
["Mackie Academy","2023-02-09"]
["Mackie Academy","2023-02-10"]
["Mackie Academy","2023-06-05"]
["Marykirk School","2023-02-09"]
["Marykirk School","2023-02-10"]
["Marykirk School","2023-06-05"]
["Maud School","2022-12-23"]
["Maud School","2023-02-10"]
["Maud School","2023-06-05"]
["Mearns Academy","2023-02-09"]
["Mearns Academy","2023-02-10"]
["Mearns Academy","2023-06-05"]
["Meethill School","2022-12-23"]
["Meethill School","2023-02-10"]
["Meethill School","2023-06-05"]
["Meiklemill School","2022-12-23"]
["Meiklemill School","2023-02-10"]
["Meiklemill School","2023-06-05"]
["Meldrum Academy","2023-02-10"]
["Meldrum Academy","2023-06-02"]
["Meldrum Academy","2023-06-05"]
["Meldrum School","2023-02-10"]
["Meldrum School","2023-06-02"]
["Meldrum School","2023-06-05"]
["Methlick School","2023-02-10"]
["Methlick School","2023-06-02"]
["Methlick School","2023-06-05"]
["Midmar School","2022-12-23"]
["Midmar School","2023-02-10"]
["Midmar School","2023-06-05"]
["Midmill School","2023-02-09"]
["Midmill School","2023-02-10"]
["Midmill School","2023-06-05"]
["Mill O’Forest School","2023-02-09"]
["Mill O’Forest School","2023-02-10"]
["Mill O’Forest School","2023-06-05"]
["Mintlaw Academy","2022-12-23"]
["Mintlaw Academy","2023-02-10"]
["Mintlaw Academy","2023-06-05"]
["Mintlaw School","2022-12-23"]
["Mintlaw School","2023-02-10"]
["Mintlaw School","2023-06-05"]
["Monquhitter School","2023-02-10"]
["Monquhitter School","2023-06-05"]
["Monquhitter School","2023-06-06"]
["Monymusk School","2022-12-23"]
["Monymusk School","2023-02-10"]
["Monymusk School","2023-06-05"]
["New Deer School","2022-12-23"]
["New Deer School","2023-02-10"]
["New Deer School","2023-06-05"]
["New Machar School   ","2023-02-09"]
["New Machar School   ","2023-02-10"]
["New Machar School   ","2023-06-05"]
["New Pitsligo & St John’s School","2022-12-23"]
["New Pitsligo & St John’s School","2023-02-10"]
["New Pitsligo & St John’s School","2023-06-05"]
["Newburgh Mathers School","2022-12-23"]
["Newburgh Mathers School","2023-02-10"]
["Newburgh Mathers School","2023-06-05"]
["Newtonhill School","2023-02-08"]
["Newtonhill School","2023-02-09"]
["Newtonhill School","2023-02-10"]
["Old Rayne School","2023-02-10"]
["Old Rayne School","2023-06-02"]
["Old Rayne School","2023-06-05"]
["Ordiquhill School","2023-02-09"]
["Ordiquhill School","2023-02-10"]
["Ordiquhill School","2023-06-05"]
["Oyne School","2023-02-09"]
["Oyne School","2023-02-10"]
["Oyne School","2023-06-05"]
["Peterhead Academy","2022-12-23"]
["Peterhead Academy","2023-02-10"]
["Peterhead Academy","2023-06-05"]
["Peterhead Central School","2022-12-23"]
["Peterhead Central School","2023-02-10"]
["Peterhead Central School","2023-06-05"]
["Pitfour School","2022-12-23"]
["Pitfour School","2023-02-10"]
["Pitfour School","2023-06-05"]
["Pitmedden School","2023-02-10"]
["Pitmedden School","2023-06-02"]
["Pitmedden School","2023-06-05"]
["Port Elphinstone School","2023-02-09"]
["Port Elphinstone School","2023-02-10"]
["Port Elphinstone School","2023-06-05"]
["Port Erroll School","2022-12-23"]
["Port Erroll School","2023-02-10"]
["Port Erroll School","2023-06-05"]
["Portlethen Academy","2023-02-08"]
["Portlethen Academy","2023-02-09"]
["Portlethen Academy","2023-02-10"]
["Portlethen School","2023-02-08"]
["Portlethen School","2023-02-09"]
["Portlethen School","2023-02-10"]
["Portsoy School","2023-02-09"]
["Portsoy School","2023-02-10"]
["Portsoy School","2023-06-05"]
["Premnay School","2023-02-09"]
["Premnay School","2023-02-10"]
["Premnay School","2023-06-05"]
["Rathen School","2023-02-09"]
["Rathen School","2023-02-10"]
["Rathen School","2023-06-05"]
["Rayne North School","2023-02-10"]
["Rayne North School","2023-06-02"]
["Rayne North School","2023-06-05"]
["Redmyre School","2023-02-09"]
["Redmyre School","2023-02-10"]
["Redmyre School","2023-06-05"]
["Rhynie School","2023-02-09"]
["Rhynie School","2023-02-10"]
["Rhynie School","2023-06-05"]
["Rosehearty School","2023-02-09"]
["Rosehearty School","2023-02-10"]
["Rosehearty School","2023-06-05"]
["Rothienorman School","2023-02-10"]
["Rothienorman School","2023-06-02"]
["Rothienorman School","2023-06-05"]
["Sandhaven School","2023-02-09"]
["Sandhaven School","2023-02-10"]
["Sandhaven School","2023-06-05"]
["Skene School","2022-12-23"]
["Skene School","2023-02-09"]
["Skene School","2023-02-10"]
["Slains School","2022-12-23"]
["Slains School","2023-02-10"]
["Slains School","2023-06-05"]
["St Andrew’s School","2023-02-09"]
["St Andrew’s School","2023-02-09"]
["St Andrew’s School","2023-02-10"]
["St Andrew’s School","2023-02-10"]
["St Andrew’s School","2023-06-05"]
["St Andrew’s School","2023-06-05"]
["St Combs School","2023-02-09"]
["St Combs School","2023-02-10"]
["St Combs School","2023-06-05"]
["St Cyrus School","2023-02-09"]
["St Cyrus School","2023-02-10"]
["St Cyrus School","2023-06-05"]
["St Fergus School","2022-12-23"]
["St Fergus School","2023-02-10"]
["St Fergus School","2023-06-05"]
["Strachan School","2023-02-09"]
["Strachan School","2023-02-10"]
["Strachan School","2023-06-05"]
["Strathburn School","2023-02-09"]
["Strathburn School","2023-02-10"]
["Strathburn School","2023-06-05"]
["Strathdon School","2022-12-23"]
["Strathdon School","2023-02-10"]
["Strathdon School","2023-06-05"]
["Strichen School","2022-12-23"]
["Strichen School","2023-02-10"]
["Strichen School","2023-06-05"]
["Stuartfield School","2022-12-23"]
["Stuartfield School","2023-02-10"]
["Stuartfield School","2023-06-05"]
["Tarland School","2023-02-09"]
["Tarland School","2023-02-10"]
["Tarland School","2023-06-05"]
["Tarves School","2023-02-10"]
["Tarves School","2023-06-02"]
["Tarves School","2023-06-05"]
["Tipperty School","2022-12-23"]
["Tipperty School","2023-02-10"]
["Tipperty School","2023-06-05"]
["Torphins School","2023-02-09"]
["Torphins School","2023-02-10"]
["Torphins School","2023-06-05"]
["Tough School","2022-12-23"]
["Tough School","2023-02-10"]
["Tough School","2023-06-05"]
["Towie School","2022-12-23"]
["Towie School","2023-02-10"]
["Towie School","2023-06-05"]
["Tullynessle School","2022-12-23"]
["Tullynessle School","2023-02-10"]
["Tullynessle School","2023-06-05"]
["Turriff Academy","2023-02-10"]
["Turriff Academy","2023-06-05"]
["Turriff Academy","2023-06-06"]
["Turriff School","2022-04-29"]
["Turriff School","2023-02-10"]
["Turriff School","2023-06-06"]
["Tyrie School","2023-02-09"]
["Tyrie School","2023-02-10"]
["Tyrie School","2023-06-05"]
["Udny Green School","2023-02-10"]
["Udny Green School","2023-06-02"]
["Udny Green School","2023-06-05"]
["Uryside School","2023-02-09"]
["Uryside School","2023-02-10"]
["Uryside School","2023-06-05"]
["Westfield School","2023-02-09"]
["Westfield School","2023-02-10"]
["Westfield School","2023-06-05"]
["Westhill  School","2022-12-23"]
["Westhill  School","2023-02-09"]
["Westhill  School","2023-02-10"]
["Westhill Academy","2022-12-23"]
["Westhill Academy","2023-02-09"]
["Westhill Academy","2023-02-10"]
["Whitehills School","2023-02-09"]
["Whitehills School","2023-02-10"]
["Whitehills School","2023-06-05"]

{"sheet":"Occasional Holidays","index":4,"n_rows":175,"n_cols":8,"rows_kept":175,"cut":false,"hidden":true,"merged":[]}
[null,"OCCASIONAL DAYS 2023-2024"]
["CSN","NO SCHOOL","Date","Numeric Date","Date","Numeric Date","Day1","Day2"]
["Banff","Aberchirder School","2024-02-09",45331,"2024-06-03",45446,"Friday","Monday"]
["Aboyne","Aboyne Academy","2024-02-08",45330,"2024-02-09",45331,"Thursday","Friday"]
["Aboyne","Aboyne School","2024-02-08",45330,"2024-02-09",45331,"Thursday","Friday"]
["Kemnay","Alehousewells School","2024-02-09",45331,"2024-06-03",45446,"Friday","Monday"]
["Alford","Alford Academy","2024-02-09",45331,"2024-06-03",45446,"Friday","Monday"]
["Alford","Alford School","2024-02-09",45331,"2024-06-03",45446,"Friday","Monday"]
["Peterhead","Anna Ritchie School","2024-02-09",45331,"2024-06-03",45446,"Friday","Monday"]
["Stonehaven","Arduthie School","2024-02-09",45331,"2024-06-03",45446,"Friday","Monday"]
["Ellon","Arnage School","2023-12-22",45282,"2024-02-09",45331,"Friday","Friday"]
["Mearns","Auchenblae School","2024-02-09",45331,"2024-06-10",45453,"Friday","Monday"]
["Mintlaw","Auchnagatt School","2024-02-09",45331,"2024-06-03",45446,"Friday","Monday"]
["Ellon","Auchterellon School","2023-12-22",45282,"2024-02-09",45331,"Friday","Friday"]
["Turriff","Auchterless School","2024-02-09",45331,"2024-06-03",45446,"Friday","Monday"]
["Aboyne","Ballater School","2024-02-08",45330,"2024-02-09",45331,"Thursday","Friday"]
["Ellon","Balmedie School  ","2023-12-22",45282,"2024-02-09",45331,"Friday","Friday"]
["Banchory","Banchory Academy","2024-02-09",45331,"2024-06-03",45446,"Friday","Monday"]
["Banchory","Banchory School","2024-02-09",45331,"2024-06-03",45446,"Friday","Monday"]
["Portlethen","Banchory-Devenick Sch.","2024-02-08",45330,"2024-02-09",45331,"Thursday","Friday"]
["Banff","Banff  School","2024-02-09",45331,"2024-06-03",45446,"Friday","Monday"]
["Banff","Banff Academy","2024-02-09",45331,"2024-06-03",45446,"Friday","Monday"]
["Meldrum","Barthol Chapel School","2024-02-09",45331,"2024-06-03",45446,"Friday","Monday"]
["Stonehaven","Bervie School","2024-02-09",45331,"2024-06-03",45446,"Friday","Monday"]
["Peterhead","Boddam School","2024-02-09",45331,"2024-06-03",45446,"Friday","Monday"]
["Banff","Bracoden School","2024-02-09",45331,"2024-06-03",45446,"Friday","Monday"]
["Aboyne","Braemar School","2024-02-08",45330,"2024-02-09",45331,"Thursday","Friday"]
["Peterhead","Buchanhaven School","2024-02-09",45331,"2024-06-03",45446,"Friday","Monday"]
["Peterhead","Burnhaven School","2024-02-09",45331,"2024-06-03",45446,"Friday","Monday"]
["Huntly","Cairney School","2024-02-09",45331,"2024-06-03",45446,"Friday","Monday"]
["Stonehaven","Carronhill School","2024-02-09",45331,"2024-06-03",45446,"Friday","Monday"]
["Stonehaven","Catterline School","2024-02-09",45331,"2024-06-03",45446,"Friday","Monday"]
["Inverurie","Chapel of Garioch School","2024-02-09",45331,"2024-06-03",45446,"Friday","Monday"]
["Huntly","Clatt School","2024-02-09",45331,"2024-06-03",45446,"Friday","Monday"]
["Peterhead","Clerkhill School","2024-02-09",45331,"2024-06-03",45446,"Friday","Monday"]
["Alford","Cluny School","2024-02-09",45331,"2024-06-03",45446,"Friday","Monday"]
["Alford","Craigievar School","2024-02-09",45331,"2024-06-03",45446,"Friday","Monday"]
["Banchory","Crathes School","2024-02-09",45331,"2024-06-03",45446,"Friday","Monday"]
["Aboyne","Crathie School","2024-02-08",45330,"2024-02-09",45331,"Thursday","Friday"]
["Fraserburgh","Crimond School","2024-02-08",45330,"2024-02-09",45331,"Thursday","Friday"]
["Westhill","Crombie School","2024-02-08",45330,"2024-02-09",45331,"Thursday","Friday"]
["Turriff","Crudie School","2024-02-09",45331,"2024-06-03",45446,"Friday","Monday"]
["Meldrum","Cultercullen School","2024-02-09",45331,"2024-06-03",45446,"Friday","Monday"]
["Peterhead","Dales Park School","2024-02-09",45331,"2024-06-03",45446,"Friday","Monday"]
["Meldrum","Daviot School","2024-02-09",45331,"2024-06-03",45446,"Friday","Monday"]
["Huntly","Drumblade School","2024-02-09",45331,"2024-06-03",45446,"Friday","Monday"]
["Banchory","Drumoak School","2024-02-09",45331,"2024-06-03",45446,"Friday","Monday"]
["Alford","Dunecht School","2024-02-09",45331,"2024-06-03",45446,"Friday","Monday"]
["Stonehaven","Dunnottar School","2024-02-09",45331,"2024-06-03",45446,"Friday","Monday"]
["Banchory","Durris School","2024-02-09",45331,"2024-06-03",45446,"Friday","Monday"]
["Turriff","Easterfield School","2024-02-09",45331,"2024-06-03",45446,"Friday","Monday"]
["Alford","Echt School","2024-02-09",45331,"2024-06-03",45446,"Friday","Monday"]
["Ellon","Ellon Academy","2023-12-22",45282,"2024-02-09",45331,"Friday","Friday"]
["Ellon","Ellon School","2023-12-22",45282,"2024-02-09",45331,"Friday","Friday"]
["Westhill","Elrick School","2024-02-08",45330,"2024-02-09",45331,"Thursday","Friday"]
["Mintlaw","Fetterangus School","2024-02-09",45331,"2024-06-03",45446,"Friday","Monday"]
["Mearns","Fettercairn School","2024-02-09",45331,"2024-06-10",45453,"Friday","Monday"]
["Turriff","Fintry School","2024-02-09",45331,"2024-06-03",45446,"Friday","Monday"]
["Aboyne","Finzean School","2024-02-08",45330,"2024-02-09",45331,"Thursday","Friday"]
["Turriff","Fisherford School","2024-02-09",45331,"2024-06-03",45446,"Friday","Monday"]
["Portlethen","Fishermoss School","2024-02-08",45330,"2024-02-09",45331,"Thursday","Friday"]
["Banff","Fordyce School","2024-02-09",45331,"2024-06-03",45446,"Friday","Monday"]
["Huntly","Forgue School","2024-02-09",45331,"2024-06-03",45446,"Friday","Monday"]
["Ellon","Foveran School","2023-12-22",45282,"2024-02-09",45331,"Friday","Friday"]
["Fraserburgh","Fraserburgh Academy","2024-02-08",45330,"2024-02-09",45331,"Thursday","Friday"]
["Fraserburgh","Fraserburgh North School","2024-02-08",45330,"2024-02-09",45331,"Thursday","Friday"]
["Fraserburgh","Fraserburgh South Park","2024-02-08",45330,"2024-02-09",45331,"Thursday","Friday"]
["Turriff","Fyvie School","2024-02-09",45331,"2024-06-03",45446,"Friday","Monday"]
["Huntly","Gartly School","2024-02-09",45331,"2024-06-03",45446,"Friday","Monday"]
["Huntly","Glass School","2024-02-09",45331,"2024-06-03",45446,"Friday","Monday"]
["Stonehaven","Glenbervie School","2024-02-09",45331,"2024-06-03",45446,"Friday","Monday"]
["Huntly","Gordon Schools (The)","2024-02-09",45331,"2024-06-03",45446,"Friday","Monday"]
["Huntly","GordonSchool","2024-02-09",45331,"2024-06-03",45446,"Friday","Monday"]
["Stonehaven","Gourdon School","2024-02-09",45331,"2024-06-03",45446,"Friday","Monday"]
["Inverurie","Hatton Fintray School","2024-02-09",45331,"2024-06-03",45446,"Friday","Monday"]
["Ellon","Hatton School, Cruden","2023-12-22",45282,"2024-02-09",45331,"Friday","Friday"]
["Banchory","Hill of Banchory School","2024-02-09",45331,"2024-06-03",45446,"Friday","Monday"]
["Portlethen","Hillside School","2024-02-08",45330,"2024-02-09",45331,"Thursday","Friday"]
["Huntly","Insch School","2024-02-09",45331,"2024-06-03",45446,"Friday","Monday"]
["Fraserburgh","Inverallochy School","2024-02-08",45330,"2024-02-09",45331,"Thursday","Friday"]
["Inverurie","Inverurie Academy","2024-02-09",45331,"2024-06-03",45446,"Friday","Monday"]
["Stonehaven","Johnshaven School","2024-02-09",45331,"2024-06-03",45446,"Friday","Monday"]
["Alford","Keig School","2024-02-09",45331,"2024-06-03",45446,"Friday","Monday"]
["Inverurie","Keithhall School","2024-02-09",45331,"2024-06-03",45446,"Friday","Monday"]
["Inverurie","Kellands School","2024-02-09",45331,"2024-06-03",45446,"Friday","Monday"]
["Kemnay","Kemnay Academy","2024-02-09",45331,"2024-06-03",45446,"Friday","Monday"]
["Kemnay","Kemnay School","2024-02-09",45331,"2024-06-03",45446,"Friday","Monday"]
["Huntly","Kennethmont School","2024-02-09",45331,"2024-06-03",45446,"Friday","Monday"]
["Aboyne","Kincardine O’Neil School","2024-02-08",45330,"2024-02-09",45331,"Thursday","Friday"]
["Kemnay","Kinellar School","2024-02-09",45331,"2024-06-03",45446,"Friday","Monday"]
["Turriff","King Edward School","2024-02-09",45331,"2024-06-03",45446,"Friday","Monday"]
["Mintlaw","Kininmonth School","2024-02-09",45331,"2024-06-03",45446,"Friday","Monday"]
["Stonehaven","Kinneff School","2024-02-09",45331,"2024-06-03",45446,"Friday","Monday"]
["Kemnay","Kintore School","2024-02-09",45331,"2024-06-03",45446,"Friday","Monday"]
["Stonehaven","Lairhillock School","2024-02-09",45331,"2024-06-03",45446,"Friday","Monday"]
["Huntly","Largue School","2024-02-09",45331,"2024-06-03",45446,"Friday","Monday"]
["Mearns","Laurencekirk School","2024-02-09",45331,"2024-06-10",45453,"Friday","Monday"]
["Fraserburgh","Lochpots School","2024-02-08",45330,"2024-02-09",45331,"Thursday","Friday"]
["Aboyne","Logie Coldstone School","2024-02-08",45330,"2024-02-09",45331,"Thursday","Friday"]
["Meldrum","Logie Durno School","2024-02-09",45331,"2024-06-03",45446,"Friday","Monday"]
["Peterhead","Longhaven School","2024-02-09",45331,"2024-06-03",45446,"Friday","Monday"]
["Mintlaw","Longside School","2024-02-09",45331,"2024-06-03",45446,"Friday","Monday"]
["Aboyne","Lumphanan School","2024-02-08",45330,"2024-02-09",45331,"Thursday","Friday"]
["Alford","Lumsden School","2024-02-09",45331,"2024-06-03",45446,"Friday","Monday"]
["Mearns","Luthermuir School","2024-02-09",45331,"2024-06-10",45453,"Friday","Monday"]
["Banff","Macduff School","2024-02-09",45331,"2024-06-03",45446,"Friday","Monday"]
["Stonehaven","Mackie Academy","2024-02-09",45331,"2024-06-03",45446,"Friday","Monday"]
["Mearns","Marykirk School","2024-02-09",45331,"2024-06-10",45453,"Friday","Monday"]
["Mintlaw","Maud School","2024-02-09",45331,"2024-06-03",45446,"Friday","Monday"]
["Mearns","Mearns Academy","2024-02-09",45331,"2024-06-10",45453,"Friday","Monday"]
["Peterhead","Meethill School","2024-02-09",45331,"2024-06-03",45446,"Friday","Monday"]
["Ellon","Meiklemill School","2023-12-22",45282,"2024-02-09",45331,"Friday","Friday"]
["Meldrum","Meldrum Academy","2024-02-09",45331,"2024-06-03",45446,"Friday","Monday"]
["Meldrum","Meldrum School","2024-02-09",45331,"2024-06-03",45446,"Friday","Monday"]
["Meldrum","Methlick School","2024-02-09",45331,"2024-06-03",45446,"Friday","Monday"]
["Alford","Midmar School","2024-02-09",45331,"2024-06-03",45446,"Friday","Monday"]
["Kemnay","Midmill School","2024-02-09",45331,"2024-06-03",45446,"Friday","Monday"]
["Stonehaven","Mill O’Forest School","2024-02-09",45331,"2024-06-03",45446,"Friday","Monday"]
["Mintlaw","Mintlaw Academy","2024-02-09",45331,"2024-06-03",45446,"Friday","Monday"]
["Mintlaw","Mintlaw School","2024-02-09",45331,"2024-06-03",45446,"Friday","Monday"]
["Turriff","Monquhitter School","2024-02-09",45331,"2024-06-03",45446,"Friday","Monday"]
["Alford","Monymusk School","2024-02-09",45331,"2024-06-03",45446,"Friday","Monday"]
["Mintlaw","New Deer School","2024-02-09",45331,"2024-06-03",45446,"Friday","Monday"]
["Inverurie","New Machar School   ","2024-02-09",45331,"2024-06-03",45446,"Friday","Monday"]
["Mintlaw","New Pitsligo & St John’s School","2024-02-09",45331,"2024-06-03",45446,"Friday","Monday"]
["Ellon","Newburgh Mathers School","2023-12-22",45282,"2024-02-09",45331,"Friday","Friday"]
["Portlethen","Newtonhill School","2024-02-08",45330,"2024-02-09",45331,"Thursday","Friday"]
["Meldrum","Old Rayne School","2024-02-09",45331,"2024-06-03",45446,"Friday","Monday"]
["Banff","Ordiquhill School","2024-02-09",45331,"2024-06-03",45446,"Friday","Monday"]
["Inverurie","Oyne School","2024-02-09",45331,"2024-06-03",45446,"Friday","Monday"]
["Peterhead","Peterhead Academy","2024-02-09",45331,"2024-06-03",45446,"Friday","Monday"]
["Peterhead","Peterhead Central School","2024-02-09",45331,"2024-06-03",45446,"Friday","Monday"]
["Mintlaw","Pitfour School","2024-02-09",45331,"2024-06-03",45446,"Friday","Monday"]
["Meldrum","Pitmedden School","2024-02-09",45331,"2024-06-03",45446,"Friday","Monday"]
["Inverurie","Port Elphinstone School","2024-02-09",45331,"2024-06-03",45446,"Friday","Monday"]
["Peterhead","Port Erroll School","2024-02-09",45331,"2024-06-03",45446,"Friday","Monday"]
["Portlethen","Portlethen Academy","2024-02-08",45330,"2024-02-09",45331,"Thursday","Friday"]
["Portlethen","Portlethen School","2024-02-08",45330,"2024-02-09",45331,"Thursday","Friday"]
["Banff","Portsoy School","2024-02-09",45331,"2024-06-03",45446,"Friday","Monday"]
["Huntly","Premnay School","2024-02-09",45331,"2024-06-03",45446,"Friday","Monday"]
["Fraserburgh","Rathen School","2024-02-08",45330,"2024-02-09",45331,"Thursday","Friday"]
["Meldrum","Rayne North School","2024-02-09",45331,"2024-06-03",45446,"Friday","Monday"]
["Mearns","Redmyre School","2024-02-09",45331,"2024-06-10",45453,"Friday","Monday"]
["Huntly","Rhynie School","2024-02-09",45331,"2024-06-03",45446,"Friday","Monday"]
["Fraserburgh","Rosehearty School","2024-02-08",45330,"2024-02-09",45331,"Thursday","Friday"]
["Meldrum","Rothienorman School","2024-02-09",45331,"2024-06-03",45446,"Friday","Monday"]
["Fraserburgh","Sandhaven School","2024-02-08",45330,"2024-02-09",45331,"Thursday","Friday"]
["Westhill","Skene School","2024-02-08",45330,"2024-02-09",45331,"Thursday","Friday"]
["Ellon","Slains School","2023-12-22",45282,"2024-02-09",45331,"Friday","Friday"]
["Fraserburgh","St Andrew’s School","2024-02-08",45330,"2024-02-09",45331,"Thursday","Friday"]
["Inverurie","St Andrew’s School","2024-02-09",45331,"2024-06-03",45446,"Friday","Monday"]
["Fraserburgh","St Combs School","2024-02-08",45330,"2024-02-09",45331,"Thursday","Friday"]
["Mearns","St Cyrus School","2024-02-09",45331,"2024-06-10",45453,"Friday","Monday"]
["Peterhead","St Fergus School","2024-02-09",45331,"2024-06-03",45446,"Friday","Monday"]
["Banchory","Strachan School","2024-02-09",45331,"2024-06-03",45446,"Friday","Monday"]
["Inverurie","Strathburn School","2024-02-09",45331,"2024-06-03",45446,"Friday","Monday"]
["Alford","Strathdon School","2024-02-09",45331,"2024-06-03",45446,"Friday","Monday"]
["Mintlaw","Strichen School","2024-02-09",45331,"2024-06-03",45446,"Friday","Monday"]
["Mintlaw","Stuartfield School","2024-02-09",45331,"2024-06-03",45446,"Friday","Monday"]
["Aboyne","Tarland School","2024-02-08",45330,"2024-02-09",45331,"Thursday","Friday"]
["Meldrum","Tarves School","2024-02-09",45331,"2024-06-03",45446,"Friday","Monday"]
["Ellon","Tipperty School","2023-12-22",45282,"2024-02-09",45331,"Friday","Friday"]
["Aboyne","Torphins School","2024-02-08",45330,"2024-02-09",45331,"Thursday","Friday"]
["Alford","Tough School","2024-02-09",45331,"2024-06-03",45446,"Friday","Monday"]
["Alford","Towie School","2024-02-09",45331,"2024-06-03",45446,"Friday","Monday"]
["Alford","Tullynessle School","2024-02-09",45331,"2024-06-03",45446,"Friday","Monday"]
["Turriff","Turriff Academy","2024-02-09",45331,"2024-06-03",45446,"Friday","Monday"]
["Turriff","Turriff School","2024-02-09",45331,"2024-06-03",45446,"Friday","Monday"]
["Fraserburgh","Tyrie School","2024-02-08",45330,"2024-02-09",45331,"Thursday","Friday"]
["Meldrum","Udny Green School","2024-02-09",45331,"2024-06-03",45446,"Friday","Monday"]
["Inverurie","Uryside School","2024-02-09",45331,"2024-06-03",45446,"Friday","Monday"]
["Fraserburgh","Westfield School","2024-02-08",45330,"2024-02-09",45331,"Thursday","Friday"]
["Westhill","Westhill  School","2024-02-08",45330,"2024-02-09",45331,"Thursday","Friday"]
["Westhill","Westhill Academy","2024-02-08",45330,"2024-02-09",45331,"Thursday","Friday"]
["Banff","Whitehills School","2024-02-09",45331,"2024-06-03",45446,"Friday","Monday"]

{"sheet":"non working list 2023-24","index":5,"n_rows":169,"n_cols":7,"rows_kept":169,"cut":false,"hidden":true,"merged":[]}
["Calendar for ","2022/23"]
[null,"Date","Day","Holidays/non contractual",null,"working days","Non working days "]
[{"$f":"B3","v":45164},"2023-08-26","Saturday",null,"August",null,1]
[45165,"2023-08-27","Sunday",null,"August"," ",1]
[45171,"2023-09-02","Saturday",null,"September",null,1]
[45172,"2023-09-03","Sunday",null,"September",null,1]
[45178,"2023-09-09","Saturday",null,"September",null,1]
[45179,"2023-09-10","Sunday",null,"September",null,1]
[45185,"2023-09-16","Saturday",null,"September",null,1]
[45186,"2023-09-17","Sunday",null,"September",null,1]
[45192,"2023-09-23","Saturday",null,"September",null,1]
[45193,"2023-09-24","Sunday",null,"September"," ",1]
[45199,"2023-09-30","Saturday",null,"September",null,1]
[45200,"2023-10-01","Sunday",null,"October",null,1]
[45206,"2023-10-07","Saturday",null,"October",null,1]
[45207,"2023-10-08","Sunday",null,"October"," ",1]
[45213,"2023-10-14","Saturday",null,"October",null,1]
[45214,"2023-10-15","Sunday",null,"October",null,1]
[45215,"2023-10-16","Monday","Hol","October",null,1]
[45216,"2023-10-17","Tuesday","Hol","October",null,1]
[45217,"2023-10-18","Wednesday","Hol","October",null,1]
[45218,"2023-10-19","Thursday","Hol","October",null,1]
[45219,"2023-10-20","Friday","Hol","October",null,1]
[45220,"2023-10-21","Saturday",null,"October",null,1]
[45221,"2023-10-22","Sunday",null,"October"," ",1]
[45222,"2023-10-23","Monday","Hol","October",null,1]
[{"$f":"B27","v":45223},"2023-10-24","Tuesday","Hol","October",null,1]
[45224,"2023-10-25","Wednesday","NC","October",null,1]
[45225,"2023-10-26","Thursday","NC","October",null,1]
[45226,"2023-10-27","Friday","NC","October",null,1]
[45227,"2023-10-28","Saturday",null,"October",null,1]
[45228,"2023-10-29","Sunday",null,"October",null,1]
[45234,"2023-11-04","Saturday",null,"November",null,1]
[45235,"2023-11-05","Sunday",null,"November"," ",1]
[45241,"2023-11-11","Saturday",null,"November",null,1]
[45242,"2023-11-12","Sunday",null,"November",null,1]
[45248,"2023-11-18","Saturday",null,"November",null,1]
[45249,"2023-11-19","Sunday",null,"November"," ",1]
[45255,"2023-11-25","Saturday",null,"November",null,1]
[45256,"2023-11-26","Sunday",null,"November",null,1]
[45262,"2023-12-02","Saturday",null,"December",null,1]
[45263,"2023-12-03","Sunday",null,"December"," ",1]
[45269,"2023-12-09","Saturday",null,"December",null,1]
[45270,"2023-12-10","Sunday",null,"December",null,1]
[45276,"2023-12-16","Saturday",null,"December",null,1]
[45277,"2023-12-17","Sunday",null,"December"," ",1]
[45283,"2023-12-23","Saturday",null,"December",null,1]
[45284,"2023-12-24","Sunday",null,"December",null,1]
[45285,"2023-12-25","Monday","Hol","December",null,1]
[45286,"2023-12-26","Tuesday","Hol","December",null,1]
[{"$f":"B51","v":45287},"2023-12-27","Wednesday","Hol","December",null,1]
[45288,"2023-12-28","Thursday","Hol","December",null,1]
[45289,"2023-12-29","Friday","Hol","December",null,1]
[45290,"2023-12-30","Saturday",null,"December",null,1]
[45291,"2023-12-31","Sunday",null,"December",null,1]
[45292,"2024-01-01","Monday","Hol","January",null,1]
[45293,"2024-01-02","Tuesday","Hol","January",null,1]
[45294,"2024-01-03","Wednesday","NC","January",null,1]
[45295,"2024-01-04","Thursday","NC","January",null,1]
[45296,"2024-01-05","Friday","NC","January",null,1]
[45297,"2024-01-06","Saturday",null,"January",null,1]
[45298,"2024-01-07","Sunday",null,"January",null,1]
[45304,"2024-01-13","Saturday",null,"January",null,1]
[45305,"2024-01-14","Sunday",null,"January"," ",1]
[45311,"2024-01-20","Saturday",null,"January",null,1]
[45312,"2024-01-21","Sunday",null,"January",null,1]
[45318,"2024-01-27","Saturday",null,"January",null,1]
[45319,"2024-01-28","Sunday",null,"January"," ",1]
[45325,"2024-02-03","Saturday",null,"February",null,1]
[45326,"2024-02-04","Sunday",null,"February",null,1]
[45332,"2024-02-10","Saturday",null,"February",null,1]
[45333,"2024-02-11","Sunday",null,"February"," ",1]
[45334,"2024-02-12","Monday","NC","February",null,1]
[45339,"2024-02-17","Saturday",null,"February",null,1]
[45340,"2024-02-18","Sunday",null,"February",null,1]
[45346,"2024-02-24","Saturday",null,"February",null,1]
[45347,"2024-02-25","Sunday",null,"February"," ",1]
[{"$f":"B78","v":45353},"2024-03-02","Saturday",null,"March",null,1]
[45354,"2024-03-03","Sunday",null,"March",null,1]
[45360,"2024-03-09","Saturday",null,"March",null,1]
[45361,"2024-03-10","Sunday",null,"March"," ",1]
[45367,"2024-03-16","Saturday",null,"March",null,1]
[45368,"2024-03-17","Sunday",null,"March",null,1]
[45374,"2024-03-23","Saturday",null,"March",null,1]
[45375,"2024-03-24","Sunday",null,"March"," ",1]
[45380,"2024-03-29","Friday","Hol","March",null,1]
[45381,"2024-03-30","Saturday",null,"March",null,1]
[45382,"2024-03-31","Sunday",null,"March",null,1]
[45383,"2024-04-01","Monday","Hol","April",null,1]
[45384,"2024-04-02","Tuesday","Hol","April",null,1]
[45385,"2024-04-03","Wednesday","Hol","April",null,1]
[45386,"2024-04-04","Thursday","Hol","April",null,1]
[45387,"2024-04-05","Friday","Hol","April",null,1]
[45388,"2024-04-06","Saturday",null,"April",null,1]
[45389,"2024-04-07","Sunday",null,"April"," ",1]
[45390,"2024-04-08","Monday","NC","April",null,1]
[45391,"2024-04-09","Tuesday","NC","April",null,1]
[45392,"2024-04-10","Wednesday","NC","April",null,1]
[45393,"2024-04-11","Thursday","NC","April",null,1]
[45394,"2024-04-12","Friday","NC","April",null,1]
[45395,"2024-04-13","Saturday",null,"April",null,1]
[45396,"2024-04-14","Sunday",null,"April",null,1]
[45402,"2024-04-20","Saturday",null,"April",null,1]
[45403,"2024-04-21","Sunday",null,"April"," ",1]
[45409,"2024-04-27","Saturday",null,"April",null,1]
[45410,"2024-04-28","Sunday",null,"April",null,1]
[{"$f":"B107","v":45416},"2024-05-04","Saturday",null,"May",null,1]
[45417,"2024-05-05","Sunday",null,"May"," ",1]
[45418,"2024-05-06","Monday","NC","May",null,1]
[45423,"2024-05-11","Saturday",null,"May",null,1]
[45424,"2024-05-12","Sunday",null,"May",null,1]
[45430,"2024-05-18","Saturday",null,"May",null,1]
[45431,"2024-05-19","Sunday",null,"May",null,1]
[45437,"2024-05-25","Saturday",null,"May",null,1]
[45438,"2024-05-26","Sunday",null,"May"," ",1]
[45444,"2024-06-01","Saturday",null,"June",null,1]
[45445,"2024-06-02","Sunday",null,"June",null,1]
[45451,"2024-06-08","Saturday",null,"June",null,1]
[45452,"2024-06-09","Sunday",null,"June"," ",1]
[45458,"2024-06-15","Saturday",null,"June",null,1]
[45459,"2024-06-16","Sunday",null,"June",null,1]
[45465,"2024-06-22","Saturday",null,"June",null,1]
[45466,"2024-06-23","Sunday",null,"June"," ",1]
[45472,"2024-06-29","Saturday",null,"June",null,1]
[45473,"2024-06-30","Sunday",null,"June",null,1]
[{"$f":"B126","v":45479},"2024-07-06","Saturday",null,"July",null,1]
[45480,"2024-07-07","Sunday",null,"July"," ",1]
[45481,"2024-07-08","Monday","Hol","July",null,1]
[45482,"2024-07-09","Tuesday","Hol","July",null,1]
[45483,"2024-07-10","Wednesday","Hol","July",null,1]
[45484,"2024-07-11","Thursday","Hol","July",null,1]
[45485,"2024-07-12","Friday","Hol","July",null,1]
[45486,"2024-07-13","Saturday",null,"July",null,1]
[45487,"2024-07-14","Sunday",null,"July",null,1]
[45488,"2024-07-15","Monday","Hol","July",null,1]
[45489,"2024-07-16","Tuesday","Hol","July",null,1]
[45490,"2024-07-17","Wednesday","Hol","July",null,1]
[45491,"2024-07-18","Thursday","Hol","July",null,1]
[45492,"2024-07-19","Friday","Hol","July",null,1]
[45493,"2024-07-20","Saturday",null,"July",null,1]
[45494,"2024-07-21","Sunday",null,"July",null,1]
[45495,"2024-07-22","Monday","Hol","July",null,1]
[45496,"2024-07-23","Tuesday","Hol","July",null,1]
[45497,"2024-07-24","Wednesday","Hol","July",null,1]
[45498,"2024-07-25","Thursday","Hol","July",null,1]
[45499,"2024-07-26","Friday","Hol","July",null,1]
[45500,"2024-07-27","Saturday",null,"July",null,1]
[45501,"2024-07-28","Sunday",null,"July",null,1]
[45502,"2024-07-29","Monday","Hol","July",null,1]
[45503,"2024-07-30","Tuesday","Hol","July",null,1]
[45504,"2024-07-31","Wednesday","Hol","July",null,1]
[45505,"2024-08-01","Thursday","Hol","August",null,1]
[45506,"2024-08-02","Friday","Hol","August",null,1]
[45507,"2024-08-03","Saturday",null,"August",null,1]
[45508,"2024-08-04","Sunday",null,"August",null,1]
[45509,"2024-08-05","Monday","NC","August",null,1]
[45510,"2024-08-06","Tuesday","NC","August",null,1]
[45511,"2024-08-07","Wednesday","NC","August",null,1]
[45512,"2024-08-08","Thursday","NC","August",null,1]
[45513,"2024-08-09","Friday","NC","August",null,1]
[45514,"2024-08-10","Saturday",null,"August",null,1]
[45515,"2024-08-11","Sunday",null,"August",null,1]
[45516,"2024-08-12","Monday","NC","August",null,1]
[45517,"2024-08-13","Tuesday","NC","August",null,1]
[45518,"2024-08-14","Wednesday","NC","August",null,1]
[45519,"2024-08-15","Thursday","NC","August",null,1]
[45520,"2024-08-16","Friday","NC","August",null,1]
[45521,"2024-08-17","Saturday",null,"August",null,1]
[45522,"2024-08-18","Sunday",null,"August",null,1]

{"sheet":"Single Occ Date Sheet","index":6,"n_rows":347,"n_cols":3,"rows_kept":347,"cut":false,"hidden":true,"merged":[]}
["NO SCHOOL","Date","Numeric Date"]
["Aberchirder School","2024-02-09",45331]
["Aberchirder School","2024-06-03",45446]
["Aboyne Academy","2024-02-08",45330]
["Aboyne Academy","2024-02-09",45331]
["Aboyne School","2024-02-08",45330]
["Aboyne School","2024-02-09",45331]
["Alehousewells School","2024-02-09",45331]
["Alehousewells School","2024-06-03",45446]
["Alford Academy","2024-02-09",45331]
["Alford Academy","2024-06-03",45446]
["Alford School","2024-02-09",45331]
["Alford School","2024-06-03",45446]
["Anna Ritchie School","2024-02-09",45331]
["Anna Ritchie School","2024-06-03",45446]
["Arduthie School","2024-02-09",45331]
["Arduthie School","2024-06-03",45446]
["Arnage School","2023-12-22",45282]
["Arnage School","2024-02-09",45331]
["Auchenblae School","2024-02-09",45331]
["Auchenblae School","2024-06-10",45453]
["Auchnagatt School","2024-02-09",45331]
["Auchnagatt School","2024-06-03",45446]
["Auchterellon School","2023-12-22",45282]
["Auchterellon School","2024-02-09",45331]
["Auchterless School","2024-02-09",45331]
["Auchterless School","2024-06-03",45446]
["Ballater School","2024-02-08",45330]
["Ballater School","2024-02-09",45331]
["Balmedie School  ","2023-12-22",45282]
["Balmedie School  ","2024-02-09",45331]
["Banchory Academy","2024-02-09",45331]
["Banchory Academy","2024-06-03",45446]
["Banchory School","2024-02-09",45331]
["Banchory School","2024-06-03",45446]
["Banchory-Devenick Sch.","2024-02-08",45330]
["Banchory-Devenick Sch.","2024-02-09",45331]
["Banff  School","2024-02-09",45331]
["Banff  School","2024-06-03",45446]
["Banff Academy","2024-02-09",45331]
["Banff Academy","2024-06-03",45446]
["Barthol Chapel School","2024-02-09",45331]
["Barthol Chapel School","2024-06-03",45446]
["Bervie School","2024-02-09",45331]
["Bervie School","2024-06-03",45446]
["Boddam School","2024-02-09",45331]
["Boddam School","2024-06-03",45446]
["Bracoden School","2024-02-09",45331]
["Bracoden School","2024-06-03",45446]
["Braemar School","2024-02-08",45330]
["Braemar School","2024-02-09",45331]
["Buchanhaven School","2024-02-09",45331]
["Buchanhaven School","2024-06-03",45446]
["Burnhaven School","2024-02-09",45331]
["Burnhaven School","2024-06-03",45446]
["Cairney School","2024-02-09",45331]
["Cairney School","2024-06-03",45446]
["Carronhill School","2024-02-09",45331]
["Carronhill School","2024-06-03",45446]
["Catterline School","2024-02-09",45331]
["Catterline School","2024-06-03",45446]
["Chapel of Garioch School","2024-02-09",45331]
["Chapel of Garioch School","2024-06-03",45446]
["Clatt School","2024-02-09",45331]
["Clatt School","2024-06-03",45446]
["Clerkhill School","2024-02-09",45331]
["Clerkhill School","2024-06-03",45446]
["Cluny School","2024-02-09",45331]
["Cluny School","2024-06-03",45446]
["Craigievar School","2024-02-09",45331]
["Craigievar School","2024-06-03",45446]
["Crathes School","2024-02-09",45331]
["Crathes School","2024-06-03",45446]
["Crathie School","2024-02-08",45330]
["Crathie School","2024-02-09",45331]
["Crimond School","2024-02-08",45330]
["Crimond School","2024-02-09",45331]
["Crombie School","2024-02-08",45330]
["Crombie School","2024-02-09",45331]
["Crudie School","2024-02-09",45331]
["Crudie School","2024-06-03",45446]
["Cultercullen School","2024-02-09",45331]
["Cultercullen School","2024-06-03",45446]
["Dales Park School","2024-02-09",45331]
["Dales Park School","2024-06-03",45446]
["Daviot School","2024-02-09",45331]
["Daviot School","2024-06-03",45446]
["Drumblade School","2024-02-09",45331]
["Drumblade School","2024-06-03",45446]
["Drumoak School","2024-02-09",45331]
["Drumoak School","2024-06-03",45446]
["Dunecht School","2024-02-09",45331]
["Dunecht School","2024-06-03",45446]
["Dunnottar School","2024-02-09",45331]
["Dunnottar School","2024-06-03",45446]
["Durris School","2024-02-09",45331]
["Durris School","2024-06-03",45446]
["Easterfield School","2024-02-09",45331]
["Easterfield School","2024-06-03",45446]
["Echt School","2024-02-09",45331]
["Echt School","2024-06-03",45446]
["Ellon Academy","2023-12-22",45282]
["Ellon Academy","2024-02-09",45331]
["Ellon School","2023-12-22",45282]
["Ellon School","2024-02-09",45331]
["Elrick School","2024-02-08",45330]
["Elrick School","2024-02-09",45331]
["Fetterangus School","2024-02-09",45331]
["Fetterangus School","2024-06-03",45446]
["Fettercairn School","2024-02-09",45331]
["Fettercairn School","2024-06-10",45453]
["Fintry School","2024-02-09",45331]
["Fintry School","2024-06-03",45446]
["Finzean School","2024-02-08",45330]
["Finzean School","2024-02-09",45331]
["Fisherford School","2024-02-09",45331]
["Fisherford School","2024-06-03",45446]
["Fishermoss School","2024-02-08",45330]
["Fishermoss School","2024-02-09",45331]
["Fordyce School","2024-02-09",45331]
["Fordyce School","2024-06-03",45446]
["Forgue School","2024-02-09",45331]
["Forgue School","2024-06-03",45446]
["Foveran School","2023-12-22",45282]
["Foveran School","2024-02-09",45331]
["Fraserburgh Academy","2024-02-08",45330]
["Fraserburgh Academy","2024-02-09",45331]
["Fraserburgh North School","2024-02-08",45330]
["Fraserburgh North School","2024-02-09",45331]
["Fraserburgh South Park","2024-02-08",45330]
["Fraserburgh South Park","2024-02-09",45331]
["Fyvie School","2024-02-09",45331]
["Fyvie School","2024-06-03",45446]
["Gartly School","2024-02-09",45331]
["Gartly School","2024-06-03",45446]
["Glass School","2024-02-09",45331]
["Glass School","2024-06-03",45446]
["Glenbervie School","2024-02-09",45331]
["Glenbervie School","2024-06-03",45446]
["Gordon Schools (The)","2024-02-09",45331]
["Gordon Schools (The)","2024-06-03",45446]
["GordonSchool","2024-02-09",45331]
["GordonSchool","2024-06-03",45446]
["Gourdon School","2024-02-09",45331]
["Gourdon School","2024-06-03",45446]
["Hatton Fintray School","2024-02-09",45331]
["Hatton Fintray School","2024-06-03",45446]
["Hatton School, Cruden","2023-12-22",45282]
["Hatton School, Cruden","2024-02-09",45331]
["Hill of Banchory School","2024-02-09",45331]
["Hill of Banchory School","2024-06-03",45446]
["Hillside School","2024-02-08",45330]
["Hillside School","2024-02-09",45331]
["Insch School","2024-02-09",45331]
["Insch School","2024-06-03",45446]
["Inverallochy School","2024-02-08",45330]
["Inverallochy School","2024-02-09",45331]
["Inverurie Academy","2024-02-09",45331]
["Inverurie Academy","2024-06-03",45446]
["Johnshaven School","2024-02-09",45331]
["Johnshaven School","2024-06-03",45446]
["Keig School","2024-02-09",45331]
["Keig School","2024-06-03",45446]
["Keithhall School","2024-02-09",45331]
["Keithhall School","2024-06-03",45446]
["Kellands School","2024-02-09",45331]
["Kellands School","2024-06-03",45446]
["Kemnay Academy","2024-02-09",45331]
["Kemnay Academy","2024-06-03",45446]
["Kemnay School","2024-02-09",45331]
["Kemnay School","2024-06-03",45446]
["Kennethmont School","2024-02-09",45331]
["Kennethmont School","2024-06-03",45446]
["Kincardine O’Neil School","2024-02-08",45330]
["Kincardine O’Neil School","2024-02-09",45331]
["Kinellar School","2024-02-09",45331]
["Kinellar School","2024-06-03",45446]
["King Edward School","2024-02-09",45331]
["King Edward School","2024-06-03",45446]
["Kininmonth School","2024-02-09",45331]
["Kininmonth School","2024-06-03",45446]
["Kinneff School","2024-02-09",45331]
["Kinneff School","2024-06-03",45446]
["Kintore School","2024-02-09",45331]
["Kintore School","2024-06-03",45446]
["Lairhillock School","2024-02-09",45331]
["Lairhillock School","2024-06-03",45446]
["Largue School","2024-02-09",45331]
["Largue School","2024-06-03",45446]
["Laurencekirk School","2024-02-09",45331]
["Laurencekirk School","2024-06-10",45453]
["Lochpots School","2024-02-08",45330]
["Lochpots School","2024-02-09",45331]
["Logie Coldstone School","2024-02-08",45330]
["Logie Coldstone School","2024-02-09",45331]
["Logie Durno School","2024-02-09",45331]
["Logie Durno School","2024-06-03",45446]
["Longhaven School","2024-02-09",45331]
["Longhaven School","2024-06-03",45446]
["Longside School","2024-02-09",45331]
["Longside School","2024-06-03",45446]
["Lumphanan School","2024-02-08",45330]
["Lumphanan School","2024-02-09",45331]
["Lumsden School","2024-02-09",45331]
["Lumsden School","2024-06-03",45446]
["Luthermuir School","2024-02-09",45331]
["Luthermuir School","2024-06-10",45453]
["Macduff School","2024-02-09",45331]
["Macduff School","2024-06-03",45446]
["Mackie Academy","2024-02-09",45331]
["Mackie Academy","2024-06-03",45446]
["Marykirk School","2024-02-09",45331]
["Marykirk School","2024-06-10",45453]
["Maud School","2024-02-09",45331]
["Maud School","2024-06-03",45446]
["Mearns Academy","2024-02-09",45331]
["Mearns Academy","2024-06-10",45453]
["Meethill School","2024-02-09",45331]
["Meethill School","2024-06-03",45446]
["Meiklemill School","2023-12-22",45282]
["Meiklemill School","2024-02-09",45331]
["Meldrum Academy","2024-02-09",45331]
["Meldrum Academy","2024-06-03",45446]
["Meldrum School","2024-02-09",45331]
["Meldrum School","2024-06-03",45446]
["Methlick School","2024-02-09",45331]
["Methlick School","2024-06-03",45446]
["Midmar School","2024-02-09",45331]
["Midmar School","2024-06-03",45446]
["Midmill School","2024-02-09",45331]
["Midmill School","2024-06-03",45446]
["Mill O’Forest School","2024-02-09",45331]
["Mill O’Forest School","2024-06-03",45446]
["Mintlaw Academy","2024-02-09",45331]
["Mintlaw Academy","2024-06-03",45446]
["Mintlaw School","2024-02-09",45331]
["Mintlaw School","2024-06-03",45446]
["Monquhitter School","2024-02-09",45331]
["Monquhitter School","2024-06-03",45446]
["Monymusk School","2024-02-09",45331]
["Monymusk School","2024-06-03",45446]
["New Deer School","2024-02-09",45331]
["New Deer School","2024-06-03",45446]
["New Machar School   ","2024-02-09",45331]
["New Machar School   ","2024-06-03",45446]
["New Pitsligo & St John’s School","2024-02-09",45331]
["New Pitsligo & St John’s School","2024-06-03",45446]
["Newburgh Mathers School","2023-12-22",45282]
["Newburgh Mathers School","2024-02-09",45331]
["Newtonhill School","2024-02-08",45330]
["Newtonhill School","2024-02-09",45331]
["Old Rayne School","2024-02-09",45331]
["Old Rayne School","2024-06-03",45446]
["Ordiquhill School","2024-02-09",45331]
["Ordiquhill School","2024-06-03",45446]
["Oyne School","2024-02-09",45331]
["Oyne School","2024-06-03",45446]
["Peterhead Academy","2024-02-09",45331]
["Peterhead Academy","2024-06-03",45446]
["Peterhead Central School","2024-02-09",45331]
["Peterhead Central School","2024-06-03",45446]
["Pitfour School","2024-02-09",45331]
["Pitfour School","2024-06-03",45446]
["Pitmedden School","2024-02-09",45331]
["Pitmedden School","2024-06-03",45446]
["Port Elphinstone School","2024-02-09",45331]
["Port Elphinstone School","2024-06-03",45446]
["Port Erroll School","2024-02-09",45331]
["Port Erroll School","2024-06-03",45446]
["Portlethen Academy","2024-02-08",45330]
["Portlethen Academy","2024-02-09",45331]
["Portlethen School","2024-02-08",45330]
["Portlethen School","2024-02-09",45331]
["Portsoy School","2024-02-09",45331]
["Portsoy School","2024-06-03",45446]
["Premnay School","2024-02-09",45331]
["Premnay School","2024-06-03",45446]
["Rathen School","2024-02-08",45330]
["Rathen School","2024-02-09",45331]
["Rayne North School","2024-02-09",45331]
["Rayne North School","2024-06-03",45446]
["Redmyre School","2024-02-09",45331]
["Redmyre School","2024-06-10",45453]
["Rhynie School","2024-02-09",45331]
["Rhynie School","2024-06-03",45446]
["Rosehearty School","2024-02-08",45330]
["Rosehearty School","2024-02-09",45331]
["Rothienorman School","2024-02-09",45331]
["Rothienorman School","2024-06-03",45446]
["Sandhaven School","2024-02-08",45330]
["Sandhaven School","2024-02-09",45331]
["Skene School","2024-02-08",45330]
["Skene School","2024-02-09",45331]
["Slains School","2023-12-22",45282]
["Slains School","2024-02-09",45331]
["St Andrew’s School","2024-02-08",45330]
["St Andrew’s School","2024-02-09",45331]
["St Andrew’s School","2024-02-09",45331]
["St Andrew’s School","2024-06-03",45446]
["St Combs School","2024-02-08",45330]
["St Combs School","2024-02-09",45331]
["St Cyrus School","2024-02-09",45331]
["St Cyrus School","2024-06-10",45453]
["St Fergus School","2024-02-09",45331]
["St Fergus School","2024-06-03",45446]
["Strachan School","2024-02-09",45331]
["Strachan School","2024-06-03",45446]
["Strathburn School","2024-02-09",45331]
["Strathburn School","2024-06-03",45446]
["Strathdon School","2024-02-09",45331]
["Strathdon School","2024-06-03",45446]
["Strichen School","2024-02-09",45331]
["Strichen School","2024-06-03",45446]
["Stuartfield School","2024-02-09",45331]
["Stuartfield School","2024-06-03",45446]
["Tarland School","2024-02-08",45330]
["Tarland School","2024-02-09",45331]
["Tarves School","2024-02-09",45331]
["Tarves School","2024-06-03",45446]
["Tipperty School","2023-12-22",45282]
["Tipperty School","2024-02-09",45331]
["Torphins School","2024-02-08",45330]
["Torphins School","2024-02-09",45331]
["Tough School","2024-02-09",45331]
["Tough School","2024-06-03",45446]
["Towie School","2024-02-09",45331]
["Towie School","2024-06-03",45446]
["Tullynessle School","2024-02-09",45331]
["Tullynessle School","2024-06-03",45446]
["Turriff Academy","2024-02-09",45331]
["Turriff Academy","2024-06-03",45446]
["Turriff School","2024-02-09",45331]
["Turriff School","2024-06-03",45446]
["Tyrie School","2024-02-08",45330]
["Tyrie School","2024-02-09",45331]
["Udny Green School","2024-02-09",45331]
["Udny Green School","2024-06-03",45446]
["Uryside School","2024-02-09",45331]
["Uryside School","2024-06-03",45446]
["Westfield School","2024-02-08",45330]
["Westfield School","2024-02-09",45331]
["Westhill  School","2024-02-08",45330]
["Westhill  School","2024-02-09",45331]
["Westhill Academy","2024-02-08",45330]
["Westhill Academy","2024-02-09",45331]
["Whitehills School","2024-02-09",45331]
["Whitehills School","2024-06-03",45446]

{"sheet":"Planner","index":7,"n_rows":384,"n_cols":43,"rows_kept":384,"cut":false,"hidden":false,"merged":[[15,2,15,3],[4,2,11,3],[16,7,16,11],[14,7,14,14],[13,7,13,14],[9,7,9,14],[15,7,15,14],[12,7,12,14],[11,7,11,14],[8,7,8,14],[16,2,16,3],[10,7,10,14],[13,2,13,3],[14,2,14,3],[32,2,32,20],[31,7,31,11],[18,7,18,14],[28,3,28,18],[17,7,17,11],[17,2,17,3],[21,7,21,14],[19,7,19,14],[18,2,18,3],[19,2,19,3],[20,2,20,3],[29,3,30,18],[23,7,24,15],[0,2,0,17],[3,7,3,20],[2,7,2,11],[1,2,1,14],[7,7,7,14],[4,7,4,14],[5,7,5,14],[6,7,6,14]]}
[null,null,"HOURS PLANNER 2023/2024"]
[]
[]
[null,null,null,null,null,null,null,"EMPLOYEE DETAILS:"]
[null,null,"For guidance on using the spreadsheet, please click on the\"Using the planner\" tab below.",null,null,null,null,"Name",null,null,null,null,null,null,null,null,null,null,null,null," "]
[null,null,null,null,null,null,null,"Payroll Number",null,null,null,null,null,null,null,null,null,null,null,null," "]
[null,null,null,null,null,null,null,"Establishment (Academy or School)",null,null,null,null,null,null,null,null,null,null,null,null,"Aberchirder School"]
[]
[null,null,null,null,null,null,null,"Contracted Days - Whole Session",null,null,null,null,null,null,null,null,null,null,null,null,0]
[null,null,null,null,null,null,null,"Total Hours to be  Worked - Whole Session",null,null,null,null,null,null,null,null,null,null,{"$f":"U9*7","v":0},null,{"$f":"S10","v":0}]
[null,null,null,null,null,null,null,"Standard Average Hours Paid Per Week",null,null,null,null,null,null,null,null,null,null,null,null,{"$f":"(U9/39)*7","v":0}]
[null,null,null,null,null,null,null,"Start Date",null,null,null,null,null,null,null,null,{"$f":"VALUE(U12)","v":"2023-08-21"},{"$f":"Q12-1","v":45158},{"$f":"VALUE(Q13-Q12)+1","v":364},null,"2023-08-21"]
[null,null,null,null,null,null,null,"End Date",null,null,null,null,null,null,null,null,{"$f":"VALUE(U13)","v":"2024-08-18"},{"$f":"Q13+1","v":45523},{"$f":"IF(S12 >322,322,S12)","v":322},null,"2024-08-18"]
[null,null,"In-service Days:",null,null,null,null,"Total Hours to be  Worked - Using Start & End Dates",null,null,null,null,null,null,null,"Non contractual",{"$f":"AD204+AM558","v":124},{"$f":"VALUE(Q14/5)","v":24.8},{"$f":"S13-Q14","v":198},null,{"$f":"(U10/195)*S14","v":0}]
[null,null,"2023-08-21",null,null,null,null,"Fixed Day 1"]
[null,null,"2023-11-16",null,null,null,null,"Fixed Day 2 "]
[null,null,"2023-11-17"]
[null,null,"2024-02-13"]
[null,null,"2024-02-14",null,null,null,null,"In-Service Hours Allocation ",null,null,null,null,null,null,null,null,null,null,{"$f":"VALUE(U14)","v":0},null,{"$f":"IF(Q12 > R20,\"\",S19*0.02564)","v":0}]
[null,null,null,null,null,null,null,"In-Service Days Allocation",null,null,null,null,null,null,null,null,null,"2024-02-16",{"$f":"U19/7","v":0},null,{"$f":"IF(Q12 > R20,\"\",S20)","v":0}]
[]
[null,null,null,null,null,null,null,"Average Daily Hours (excludes fixed days) :",null,null,null,null,null,null,null,{"$f":"AQ41","v":0},{"$f":"(P22*(S14/5))","v":0},{"$f":"(S14)-Q22","v":198},{"$f":"U14-(Q22*7)","v":0},null,{"$f":"S22/R22","v":0}]
[null,null,null,null,null,null,null,null,null,null,null,null,null,null,null,null,null,null,null,null,null,null,null,null,null,null,null,null,null,null,null,null,null,null,null,null,null,null,null,null,"Sck"]
[null,null,null,null,null,null,null,"Occasional Days For The Selected School Between Start and End Dates:",null,null,null,null,null,null,null,null,null,{"$f":"VLOOKUP(U7,'Occasional Holidays'!$B$3:$H$175,2,FALSE)","v":"2024-02-09"},null,null,{"$f":"IF(R24 <$Q$12,\"\",IF(R24>$Q$13,\"\",R24))","v":"2024-02-09"},null,null,null,null,null,null,null,null,null,null,null,null,null,null,null,null,null,null,null,"Mat"]
[null,null,null,null,null,null,null,null,null,null,null,null,null,null,null,null,null,{"$f":"VLOOKUP(U7,'Occasional Holidays'!$B$3:$H$175,4,FALSE)","v":"2024-06-03"},null,null,{"$f":"IF(R25 <$Q$12,\"\",IF(R25>$Q$13,\"\",R25))","v":"2024-06-03"},null,null,null,null,null,null,null,null,null,null,null,null,null,null,null,null,null,null,null,"Psl"]
[null,null,null,null,null,null,null,null,null,null,null,null,null,null,null,null,null,null,null,null,null,null,null,null,null,null,null,null,null,null,null,null,null,null,null,null,null,null,null,null,"Oth"]
[null,null,"Instructions:"]
[null,null,null,"Please enter the number of hours actually worked in the Hours Planner below."]
[null,null,null,"If the employee is on sickness absence, on maternity leave, paid special leave or unpaid special leave:  "]
[null,null,null,"  Please refer to section 3 of the guidance.  Note fixed days are highlighted in pink.  The drop down in the column following the hours is used to record absence reasons."]
[]
[]
[null,null,"HOURS PLANNER"]
[null,null,"Week Start Date","Monday","M","Tuesday","Tu","Wednesday","W","Thursday","Th","Friday","F","Saturday","Sunday","Sickness","Special Leave - Unpaid","Special Leave - Paid","Weekly Total",null,"Hours Remaining","Comments"]
[{"$f":"VALUE(C35)","v":45159},null,"2023-08-21",0,null,0,null,0,null,0,null,0,null,0,0,{"$f":"COUNTIF(D35:L35,\"LSA\")","v":0},{"$f":"COUNTIF(D35:L35,\"LHE\")","v":0},{"$f":"COUNTIF(D35:L35,\"LSL\")","v":0},{"$f":"SUM(D35:O35)","v":0},null,{"$f":"U14-S35","v":0},null,null,null,"non contractual days are listed:"]
[{"$f":"VALUE(C36)","v":45166},null,{"$f":"C35+7","v":"2023-08-28"},0,null,0,null,0,null,0,null,0,null,0,0,0,{"$f":"COUNTIF(D36:L36,\"LHE\")","v":0},0,0,null,{"$f":"U35-S36","v":0}]
[45173,null,"2023-09-04",0,null,0,null,0,null,0,null,0,null,0,0,0,0,0,0,null,0,null,null,null,null,null,null,"no contractual days","formula","value",null,null,null,"occ days"]
[45180,null,"2023-09-11",0,null,0,null,0,null,0,null,0,null,0,0,0,0,0,0,null,0,null,null,null,"start date value",{"$f":"Q12","v":45159},null,"2023-08-26",{"$f":"IF($AB38<$Z$38,\"0\",IF($AB38<$Z$39,\"1\",\"0\"))","v":"1"},{"$f":"VALUE(AC38)","v":1},"2021-08-21","Monday",null,"School",null,null,"Numeric Dates",{"$f":"IF(AH38<>$U$7,\"0\",IF(AK38<$Z$38,\"0\",IF(AK38<$Z$39,\"1\",\"0\")))","v":"0"},{"$f":"VALUE(AL38)","v":0},null,null,"Fixed Days"]
[45187,null,"2023-09-18",0,null,0,null,0,null,0,null,0,null,0,0,0,0,0,0,null,0,null,null,null,"end dat + 1 value",{"$f":"R13","v":45523},null,"2023-08-27","1",{"$f":"VALUE(AC39)","v":1},"2021-08-22","Tuesday",null,"Aberchirder School",{"$f":"IF(AH39 = $U$7,\"y\",\"n\")","v":"y"},"Aberchirder School","2024-02-09","1",{"$f":"VALUE(AL39)","v":1},1,null,{"$f":"IF(U15 = \"\",0,1)","v":0},{"$f":"VALUE(AP39)","v":0}]
[45194,null,"2023-09-25",0,null,0,null,0,null,0,null,0,null,0,0,0,0,0,0,null,0,null,null,null,null,null,null,"2023-09-02","1",1,"2021-08-28","Wednesday",null,"Aberchirder School",{"$f":"IF(AH40 = $U$7,\"y\",\"n\")","v":"y"},"Aberchirder School","2024-06-03","1",{"$f":"VALUE(AL40)","v":1},2,null,{"$f":"IF(U16 = \"\",0,1)","v":0},{"$f":"VALUE(AP40)","v":0}]
[45201,null,"2023-10-02",0,null,0,null,0,null,0,null,0,null,0,0,0,0,0,0,null,0,null,null,null,null,null,null,"2023-09-03","1",1,"2021-08-29","Thursday",null,"Aboyne Academy","n","Aboyne Academy","2024-02-08","0",0,1,null,null,{"$f":"SUM(AQ39:AQ40)","v":0}]
[45208,null,"2023-10-09",0,null,0,null,0,null,0,null,0,null,0,0,0,0,0,0,null,0,null,null,null,null,null,null,"2023-09-09","1",1,"2021-09-04","Friday",null,"Aboyne Academy","n","Aboyne Academy","2024-02-09","0",0,2]
[45215,null,"2023-10-16",0,null,0,null,0,null,0,null,0,null,0,0,0,0,0,0,null,0,null,null,null,null,null,null,"2023-09-10","1",1,"2021-09-05",null,null,"Aboyne School","n","Aboyne School","2024-02-08","0",0,1]
[45222,null,"2023-10-23",0,null,0,null,0,null,0,null,0,null,0,0,0,0,0,0,null,0,null,null,null,null,null,null,"2023-09-16","1",1,"2021-09-11",null,null,"Aboyne School","n","Aboyne School","2024-02-09","0",0,2]
[45229,null,"2023-10-30",0,null,0,null,0,null,0,null,0,null,0,0,0,0,0,0,null,0,null,null,null,null,null,null,"2023-09-17","1",1,"2021-09-12",null,null,"Alehousewells School","n","Alehousewells School","2024-02-09","0",0,1]
[45236,null,"2023-11-06",0,null,0,null,0,null,0,null,0,null,0,0,0,0,0,0,null,0,null,null,null,null,null,null,"2023-09-23","1",{"$f":"VALUE(AC46)","v":1},"2021-09-18",null,null,"Alehousewells School","n","Alehousewells School","2024-06-03","0",0,2]
[45243,null,"2023-11-13",0,null,0,null,0,null,0,null,0,null,0,0,0,0,0,0,null,0,null,null,null,null,null,null,"2023-09-24","1",1,"2021-09-19",null,null,"Alford Academy","n","Alford Academy","2024-02-09","0",0,1]
[45250,null,"2023-11-20",0,null,0,null,0,null,0,null,0,null,0,0,0,0,0,0,null,0,null,null,null,null,null,null,"2023-09-30","1",1,"2021-09-25",null,null,"Alford Academy","n","Alford Academy","2024-06-03","0",0,2]
[45257,null,"2023-11-27",0,null,0,null,0,null,0,null,0,null,0,0,0,0,0,0,null,0,null,null,null,null,null,null,"2023-10-01","1",1,"2021-09-26",null,null,"Alford School","n","Alford School","2024-02-09","0",0,1]
[45264,null,"2023-12-04",0,null,0,null,0,null,0,null,0,null,0,0,0,0,0,0,null,0,null,null,null,null,null,null,"2023-10-07","1",1,"2021-10-02",null,null,"Alford School","n","Alford School","2024-06-03","0",0,2]
[45271,null,"2023-12-11",0,null,0,null,0,null,0,null,0,null,0,0,0,0,0,0,null,0,null,null,null,null,null,null,"2023-10-08","1",1,"2021-10-03",null,null,"Anna Ritchie School","n","Anna Ritchie School","2024-02-09","0",0,1]
[45278,null,"2023-12-18",0,null,0,null,0,null,0,null,0,null,0,0,0,0,0,0,null,0,null,null,null,null,null,null,"2023-10-14","1",1,"2021-10-09",null,null,"Anna Ritchie School","n","Anna Ritchie School","2024-06-03","0",0,2]
[45285,null,"2023-12-25",0,null,0,null,0,null,0,null,0,null,0,0,0,0,0,0,null,0,null,null,null,null,null,null,"2023-10-15","1",1,"2021-10-10",null,null,"Arduthie School","n","Arduthie School","2024-02-09","0",0,1]
[45292,null,"2024-01-01",0,null,0,null,0,null,0,null,0,null,0,0,0,0,0,0,null,0,null,null,null,null,null,null,"2023-10-16","1",1,"2021-10-16",null,null,"Arduthie School","n","Arduthie School","2024-06-03","0",0,2]
[45299,null,"2024-01-08",0,null,0,null,0,null,0,null,0,null,0,0,0,0,0,0,null,0,null,null,null,null,null,null,"2023-10-17","1",1,"2021-10-17",null,null,"Arnage School","n","Arnage School","2023-12-22","0",0,1]
[45306,null,"2024-01-15",0,null,0,null,0,null,0,null,0,null,0,0,0,0,0,0,null,0,null,null,null,null,null,null,"2023-10-18","1",1,"2021-10-18",null,null,"Arnage School","n","Arnage School","2024-02-09","0",0,2]
[45313,null,"2024-01-22",0,null,0,null,0,null,0,null,0,null,0,0,0,0,0,0,null,0,null,null,null,null,null,null,"2023-10-19","1",1,"2021-10-19",null,null,"Auchenblae School","n","Auchenblae School","2024-02-09","0",0,1]
[45320,null,"2024-01-29",0,null,0,null,0,null,0,null,0,null,0,0,0,0,0,0,null,0,null,null,null,null,null,null,"2023-10-20","1",1,"2021-10-20",null,null,"Auchenblae School","n","Auchenblae School","2024-06-10","0",0,2]
[45327,null,"2024-02-05",0,null,0,null,0,null,0,null,0,null,0,0,0,0,0,0,null,0,null,null,null,null,null,null,"2023-10-21","1",1,"2021-10-21",null,null,"Auchnagatt School","n","Auchnagatt School","2024-02-09","0",0,1]
[45334,null,"2024-02-12",0,null,0,null,0,null,0,null,0,null,0,0,{"$f":"COUNTIF(D60:L60,\"LSA\")","v":0},{"$f":"COUNTIF(D60:L60,\"LHE\")","v":0},{"$f":"COUNTIF(D60:L60,\"LSL\")","v":0},{"$f":"SUM(D60:O60)","v":0},null,0,null,null,null,null,null,null,"2023-10-22","1",1,"2021-10-22",null,null,"Auchnagatt School","n","Auchnagatt School","2024-06-03","0",0,2]
[45341,null,"2024-02-19",0,null,0,null,0,null,0,null,0,null,0,0,0,0,0,0,null,0,null,null,null,null,null,null,"2023-10-23","1",1,"2021-10-23",null,null,"Auchterellon School","n","Auchterellon School","2023-12-22","0",0,1]
[45348,null,"2024-02-26",0,null,0,null,0,null,0,null,0,null,0,0,0,0,0,0,null,0,null,null,null,null,null,null,"2023-10-24","1",1,"2021-10-24",null,null,"Auchterellon School","n","Auchterellon School","2024-02-09","0",0,2]
[45355,null,"2024-03-04",0,null,0,null,0,null,0,null,0,null,0,0,0,0,0,0,null,0,null,null,null,null,null,null,"2023-10-25","1",1,"2021-10-25",null,null,"Auchterless School","n","Auchterless School","2024-02-09","0",0,1]
[45362,null,"2024-03-11",0,null,0,null,0,null,0,null,0,null,0,0,0,0,0,0,null,0,null,null,null,null,null,null,"2023-10-26","1",1,"2021-10-26",null,null,"Auchterless School","n","Auchterless School","2024-06-03","0",0,2]
[45369,null,"2024-03-18",0,null,0,null,0,null,0,null,0,null,0,0,0,0,0,0,null,0,null,null,null,null,null,null,"2023-10-27","1",1,"2021-10-27",null,null,"Ballater School","n","Ballater School","2024-02-08","0",0,1]
[45376,null,"2024-03-25",0,null,0,null,0,null,0,null,0,null,0,0,0,0,0,0,null,0,null,null,null,null,null,null,"2023-10-28","1",1,"2021-10-28",null,null,"Ballater School","n","Ballater School","2024-02-09","0",0,2]
[45383,null,"2024-04-01",0,null,0,null,0,null,0,null,0,null,0,0,0,0,{"$f":"COUNTIF(D67:L67,\"LSL\")","v":0},{"$f":"SUM(D67:O67)","v":0},null,0,null,null,null,null,null,null,"2023-10-29","1",1,"2021-10-29",null,null,"Balmedie School  ","n","Balmedie School  ","2023-12-22","0",0,1]
[45390,null,{"$f":"C67+7","v":"2024-04-08"},0,null,0,null,0,null,0,null,0,null,0,0,{"$f":"COUNTIF(D68:L68,\"LSA\")","v":0},0,0,0,null,{"$f":"U67-S68","v":0},null,null,null,null,null,null,"2023-11-04","1",1,"2021-10-30",null,null,"Balmedie School  ","n","Balmedie School  ","2024-02-09","0",0,2]
[45397,null,"2024-04-15",0,null,0,null,0,null,0,null,0,null,0,0,0,0,0,0,null,0,null,null,null,null,null,null,"2023-11-05","1",1,"2021-10-31",null,null,"Banchory Academy","n","Banchory Academy","2024-02-09","0",0,1]
[45404,null,"2024-04-22",0,null,0,null,0,null,0,null,0,null,0,0,0,0,0,0,null,0,null,null,null,null,null,null,"2023-11-11",{"$f":"IF($AB70<$Z$38,\"0\",IF($AB70<$Z$39,\"1\",\"0\"))","v":"1"},1,"2021-11-06",null,null,"Banchory Academy","n","Banchory Academy","2024-06-03","0",0,2]
[45411,null,"2024-04-29",0,null,0,null,0,null,0,null,0,null,0,0,0,0,0,0,null,0,null,null,null,null,null,null,"2023-11-12","1",1,"2021-11-07",null,null,"Banchory School","n","Banchory School","2024-02-09","0",0,1]
[45418,null,"2024-05-06",0,null,0,null,0,null,0,null,0,null,0,0,0,0,0,0,null,0,null,null,null,null,null,null,"2023-11-18","1",1,"2021-11-13",null,null,"Banchory School","n","Banchory School","2024-06-03","0",0,2]
[45425,null,"2024-05-13",0,null,0,null,0,null,0,null,0,null,0,0,0,0,0,0,null,0,null,null,null,null,null,null,"2023-11-19","1",1,"2021-11-14",null,null,"Banchory-Devenick Sch.","n","Banchory-Devenick Sch.","2024-02-08","0",0,1]
[45432,null,"2024-05-20",0,null,0,null,0,null,0,null,0,null,0,0,0,0,0,0,null,0,null,null,null,null,null,null,"2023-11-25","1",1,"2021-11-20",null,null,"Banchory-Devenick Sch.","n","Banchory-Devenick Sch.","2024-02-09","0",0,2]
[45439,null,"2024-05-27",0,null,0,null,0,null,0,null,0,null,0,0,0,0,0,0,null,0,null,null,null,null,null,null,"2023-11-26","1",1,"2021-11-21",null,null,"Banff  School","n","Banff  School","2024-02-09","0",0,1]
[45446,null,"2024-06-03",0,null,0,null,0,null,0,null,0,null,0,0,0,0,0,0,null,0,null,null,null,null,null,null,"2023-12-02","1",1,"2021-11-27",null,null,"Banff  School","n","Banff  School","2024-06-03","0",0,2]
[45453,null,"2024-06-10",0,null,0,null,0,null,0,null,0,null,0,0,0,0,0,0,null,0,null,null,null,null,null,null,"2023-12-03","1",1,"2021-11-28",null,null,"Banff Academy","n","Banff Academy","2024-02-09","0",0,1]
[45460,null,"2024-06-17",0,null,0,null,0,null,0,null,0,null,0,0,0,0,0,0,null,0,null,null,null,null,null,null,"2023-12-09","1",1,"2021-12-04",null,null,"Banff Academy","n","Banff Academy","2024-06-03","0",0,2]
[45467,null,"2024-06-24",0,null,0,null,0,null,0,null,0,null,0,0,0,0,0,0,null,0,null,null,null,null,null,null,"2023-12-10","1",1,"2021-12-05",null,null,"Barthol Chapel School","n","Barthol Chapel School","2024-02-09","0",0,1]
[45474,null,"2024-07-01",0,null,0,null,0,null,0,null,0,null,0,0,0,0,0,0,null,0,null,null,null,null,null,null,"2023-12-16","1",1,"2021-12-11",null,null,"Barthol Chapel School","n","Barthol Chapel School","2024-06-03","0",0,2]
[45481,null,"2024-07-08",0,null,0,null,0,null,0,null,0,null,0,0,0,0,0,0,null,0,null,null,null,null,null,null,"2023-12-17","1",1,"2021-12-12",null,null,"Bervie School","n","Bervie School","2024-02-09","0",0,1]
[45488,null,"2024-07-15",0,null,0,null,0,null,0,null,0,null,0,0,0,0,0,0,null,0,null,null,null,null,null,null,"2023-12-23","1",1,"2021-12-18",null,null,"Bervie School","n","Bervie School","2024-06-03","0",0,2]
[45495,null,"2024-07-22",0,null,0,null,0,null,0,null,0,null,0,0,0,0,0,0,null,0,null,null,null,null,null,null,"2023-12-24","1",1,"2021-12-19",null,null,"Boddam School","n","Boddam School","2024-02-09","0",0,1]
[45502,null,"2024-07-29",0,null,0,null,0,null,0,null,0,null,0,0,0,0,0,0,null,0,null,null,null,null,null,null,"2023-12-25","1",1,"2021-12-22",null,null,"Boddam School","n","Boddam School","2024-06-03","0",0,2]
[45509,null,"2024-08-05",0,null,0,null,0,null,0,null,0,null,0,0,0,0,0,0,null,0,null,null,null,null,null,null,"2023-12-26","1",1,"2021-12-23",null,null,"Bracoden School","n","Bracoden School","2024-02-09","0",0,1]
[45516,null,"2024-08-12",0,null,0,null,0,null,0,null,0,null,0,0,0,0,0,0,null,0,null,null,null,null,null,null,"2023-12-27","1",1,"2021-12-24",null,null,"Bracoden School","n","Bracoden School","2024-06-03","0",0,2]
[null,null,null,null,null,null,null,null,null,null,null,null,null,null,null,null,null,null,null,null,null,null,null,null,null,null,null,"2023-12-28","1",1,"2021-12-25",null,null,"Braemar School",{"$f":"IF(AH87 = $U$7,\"y\",\"n\")","v":"n"},"Braemar School","2024-02-08","0",{"$f":"VALUE(AL87)","v":0},1]
[null,null,null,null,null,null,null,null,null,null,null,null,null,null,null,null,null,null,null,null,null,null,null,null,null,null,null,"2023-12-29","1",1,"2021-12-26",null,null,"Braemar School","n","Braemar School","2024-02-09","0",0,2]
[null,null,null,null,null,null,null,null,null,null,null,null,null,null,null,null,null,null,null,null,null,null,null,null,null,null,null,"2023-12-30","1",1,"2021-12-27",null,null,"Buchanhaven School","n","Buchanhaven School","2024-02-09","0",0,1]
[null,null,null,null,null,null,null,null,null,null,null,null,null,null,null,null,null,null,null,null,null,null,null,null,null,null,null,"2023-12-31","1",1,"2021-12-28",null,null,"Buchanhaven School","n","Buchanhaven School","2024-06-03","0",0,2]
[null,null,null,null,null,null,null,null,null,null,null,null,null,null,null,null,null,null,null,null,null,null,null,null,null,null,null,"2024-01-01","1",1,"2021-12-29",null,null,"Burnhaven School","n","Burnhaven School","2024-02-09","0",0,1]
[null,null,null,null,null,null,null,null,null,null,null,null,null,null,null,null,null,null,null,null,null,null,null,null,null,null,null,"2024-01-02","1",1,"2021-12-30",null,null,"Burnhaven School","n","Burnhaven School","2024-06-03","0",0,2]
[null,null,null,null,null,null,null,null,null,null,null,null,null,null,null,null,null,null,null,null,null,null,null,null,null,null,null,"2024-01-03","1",1,"2021-12-31",null,null,"Cairney School","n","Cairney School","2024-02-09","0",0,1]
[null,null,null,null,null,null,null,null,null,null,null,null,null,null,null,null,null,null,null,null,null,null,null,null,null,null,null,"2024-01-04","1",1,"2022-01-01",null,null,"Cairney School","n","Cairney School","2024-06-03","0",0,2]
[null,null,null,null,null,null,null,null,null,null,null,null,null,null,null,null,null,null,null,null,null,null,null,null,null,null,null,"2024-01-05","1",1,"2022-01-02",null,null,"Carronhill School","n","Carronhill School","2024-02-09","0",0,1]
[null,null,null,null,null,null,null,null,null,null,null,null,null,null,null,null,null,null,null,null,null,null,null,null,null,null,null,"2024-01-06","1",1,"2022-01-03",null,null,"Carronhill School","n","Carronhill School","2024-06-03","0",0,2]
[null,null,null,null,null,null,null,null,null,null,null,null,null,null,null,null,null,null,null,null,null,null,null,null,null,null,null,"2024-01-07","1",1,"2022-01-04",null,null,"Catterline School","n","Catterline School","2024-02-09","0",0,1]
[null,null,null,null,null,null,null,null,null,null,null,null,null,null,null,null,null,null,null,null,null,null,null,null,null,null,null,"2024-01-13","1",1,"2022-01-08",null,null,"Catterline School","n","Catterline School","2024-06-03","0",0,2]
[null,null,null,null,null,null,null,null,null,null,null,null,null,null,null,null,null,null,null,null,null,null,null,null,null,null,null,"2024-01-14","1",1,"2022-01-09",null,null,"Chapel of Garioch School","n","Chapel of Garioch School","2024-02-09","0",0,1]
[null,null,null,null,null,null,null,null,null,null,null,null,null,null,null,null,null,null,null,null,null,null,null,null,null,null,null,"2024-01-20","1",1,"2022-01-15",null,null,"Chapel of Garioch School","n","Chapel of Garioch School","2024-06-03","0",0,2]
[null,null,null,null,null,null,null,null,null,null,null,null,null,null,null,null,null,null,null,null,null,null,null,null,null,null,null,"2024-01-21","1",{"$f":"VALUE(AC101)","v":1},"2022-01-16",null,null,"Clatt School",{"$f":"IF(AH101 = $U$7,\"y\",\"n\")","v":"n"},"Clatt School","2024-02-09","0",{"$f":"VALUE(AL101)","v":0},1]
[null,null,null,null,null,null,null,null,null,null,null,null,null,null,null,null,null,null,null,null,null,null,null,null,null,null,null,"2024-01-27",{"$f":"IF($AB102<$Z$38,\"0\",IF($AB102<$Z$39,\"1\",\"0\"))","v":"1"},1,"2022-01-22",null,null,"Clatt School","n","Clatt School","2024-06-03",{"$f":"IF(AH102<>$U$7,\"0\",IF(AK102<$Z$38,\"0\",IF(AK102<$Z$39,\"1\",\"0\")))","v":"0"},0,2]
[null,null,null,null,null,null,null,null,null,null,null,null,null,null,null,null,null,null,null,null,null,null,null,null,null,null,null,"2024-01-28","1",1,"2022-01-23",null,null,"Clerkhill School","n","Clerkhill School","2024-02-09","0",0,1]
[null,null,null,null,null,null,null,null,null,null,null,null,null,null,null,null,null,null,null,null,null,null,null,null,null,null,null,"2024-02-03","1",1,"2022-01-29",null,null,"Clerkhill School","n","Clerkhill School","2024-06-03","0",0,2]
[null,null,null,null,null,null,null,null,null,null,null,null,null,null,null,null,null,null,null,null,null,null,null,null,null,null,null,"2024-02-04","1",1,"2022-01-30",null,null,"Cluny School","n","Cluny School","2024-02-09","0",0,1]
[null,null,null,null,null,null,null,null,null,null,null,null,null,null,null,null,null,null,null,null,null,null,null,null,null,null,null,"2024-02-10","1",1,"2022-02-05",null,null,"Cluny School","n","Cluny School","2024-06-03","0",0,2]
[null,null,null,null,null,null,null,null,null,null,null,null,null,null,null,null,null,null,null,null,null,null,null,null,null,null,null,"2024-02-11","1",1,"2022-02-06",null,null,"Craigievar School","n","Craigievar School","2024-02-09","0",0,1]
[null,null,null,null,null,null,null,null,null,null,null,null,null,null,null,null,null,null,null,null,null,null,null,null,null,null,null,"2024-02-12","1",1,"2022-02-12",null,null,"Craigievar School","n","Craigievar School","2024-06-03","0",0,2]
[null,null,null,null,null,null,null,null,null,null,null,null,null,null,null,null,null,null,null,null,null,null,null,null,null,null,null,"2024-02-17","1",1,"2022-02-13",null,null,"Crathes School","n","Crathes School","2024-02-09","0",0,1]
[null,null,null,null,null,null,null,null,null,null,null,null,null,null,null,null,null,null,null,null,null,null,null,null,null,null,null,"2024-02-18","1",1,"2022-02-14",null,null,"Crathes School","n","Crathes School","2024-06-03","0",0,2]
[null,null,null,null,null,null,null,null,null,null,null,null,null,null,null,null,null,null,null,null,null,null,null,null,null,null,null,"2024-02-24","1",1,"2022-02-19",null,null,"Crathie School","n","Crathie School","2024-02-08","0",0,1]
[null,null,null,null,null,null,null,null,null,null,null,null,null,null,null,null,null,null,null,null,null,null,null,null,null,null,null,"2024-02-25","1",1,"2022-02-20",null,null,"Crathie School","n","Crathie School","2024-02-09","0",0,2]
[null,null,null,null,null,null,null,null,null,null,null,null,null,null,null,null,null,null,null,null,null,null,null,null,null,null,null,"2024-03-02","1",1,"2022-02-26",null,null,"Crimond School","n","Crimond School","2024-02-08","0",0,1]
[null,null,null,null,null,null,null,null,null,null,null,null,null,null,null,null,null,null,null,null,null,null,null,null,null,null,null,"2024-03-03","1",1,"2022-02-27",null,null,"Crimond School","n","Crimond School","2024-02-09","0",0,2]
[null,null,null,null,null,null,null,null,null,null,null,null,null,null,null,null,null,null,null,null,null,null,null,null,null,null,null,"2024-03-09","1",1,"2022-03-05",null,null,"Crombie School","n","Crombie School","2024-02-08","0",0,1]
[null,null,null,null,null,null,null,null,null,null,null,null,null,null,null,null,null,null,null,null,null,null,null,null,null,null,null,"2024-03-10","1",1,"2022-03-06",null,null,"Crombie School","n","Crombie School","2024-02-09","0",0,2]
[null,null,null,null,null,null,null,null,null,null,null,null,null,null,null,null,null,null,null,null,null,null,null,null,null,null,null,"2024-03-16","1",1,"2022-03-12",null,null,"Crudie School","n","Crudie School","2024-02-09","0",0,1]
[null,null,null,null,null,null,null,null,null,null,null,null,null,null,null,null,null,null,null,null,null,null,null,null,null,null,null,"2024-03-17","1",1,"2022-03-13",null,null,"Crudie School","n","Crudie School","2024-06-03","0",0,2]
[null,null,null,null,null,null,null,null,null,null,null,null,null,null,null,null,null,null,null,null,null,null,null,null,null,null,null,"2024-03-23","1",1,"2022-03-19",null,null,"Cultercullen School","n","Cultercullen School","2024-02-09","0",0,1]
[null,null,null,null,null,null,null,null,null,null,null,null,null,null,null,null,null,null,null,null,null,null,null,null,null,null,null,"2024-03-24","1",1,"2022-03-20",null,null,"Cultercullen School","n","Cultercullen School","2024-06-03","0",0,2]
[null,null,null,null,null,null,null,null,null,null,null,null,null,null,null,null,null,null,null,null,null,null,null,null,null,null,null,"2024-03-29","1",1,"2022-03-26",null,null,"Dales Park School","n","Dales Park School","2024-02-09","0",0,1]
[null,null,null,null,null,null,null,null,null,null,null,null,null,null,null,null,null,null,null,null,null,null,null,null,null,null,null,"2024-03-30","1",1,"2022-03-27",null,null,"Dales Park School","n","Dales Park School","2024-06-03","0",0,2]
[null,null,null,null,null,null,null,null,null,null,null,null,null,null,null,null,null,null,null,null,null,null,null,null,null,null,null,"2024-03-31","1",1,"2022-04-02",null,null,"Daviot School","n","Daviot School","2024-02-09","0",0,1]
[null,null,null,null,null,null,null,null,null,null,null,null,null,null,null,null,null,null,null,null,null,null,null,null,null,null,null,"2024-04-01","1",1,"2022-04-03",null,null,"Daviot School","n","Daviot School","2024-06-03","0",0,2]
[null,null,null,null,null,null,null,null,null,null,null,null,null,null,null,null,null,null,null,null,null,null,null,null,null,null,null,"2024-04-02","1",1,"2022-04-04",null,null,"Drumblade School","n","Drumblade School","2024-02-09","0",0,1]
[null,null,null,null,null,null,null,null,null,null,null,null,null,null,null,null,null,null,null,null,null,null,null,null,null,null,null,"2024-04-03","1",1,"2022-04-05",null,null,"Drumblade School","n","Drumblade School","2024-06-03","0",0,2]
[null,null,null,null,null,null,null,null,null,null,null,null,null,null,null,null,null,null,null,null,null,null,null,null,null,null,null,"2024-04-04","1",1,"2022-04-06",null,null,"Drumoak School","n","Drumoak School","2024-02-09","0",0,1]
[null,null,null,null,null,null,null,null,null,null,null,null,null,null,null,null,null,null,null,null,null,null,null,null,null,null,null,"2024-04-05","1",1,"2022-04-07",null,null,"Drumoak School","n","Drumoak School","2024-06-03","0",0,2]
[null,null,null,null,null,null,null,null,null,null,null,null,null,null,null,null,null,null,null,null,null,null,null,null,null,null,null,"2024-04-06","1",1,"2022-04-08",null,null,"Dunecht School","n","Dunecht School","2024-02-09","0",0,1]
[null,null,null,null,null,null,null,null,null,null,null,null,null,null,null,null,null,null,null,null,null,null,null,null,null,null,null,"2024-04-07","1",1,"2022-04-09",null,null,"Dunecht School","n","Dunecht School","2024-06-03","0",0,2]
[null,null,null,null,null,null,null,null,null,null,null,null,null,null,null,null,null,null,null,null,null,null,null,null,null,null,null,"2024-04-08","1",1,"2022-04-10",null,null,"Dunnottar School","n","Dunnottar School","2024-02-09","0",0,1]
[null,null,null,null,null,null,null,null,null,null,null,null,null,null,null,null,null,null,null,null,null,null,null,null,null,null,null,"2024-04-09","1",1,"2022-04-11",null,null,"Dunnottar School","n","Dunnottar School","2024-06-03","0",0,2]
[null,null,null,null,null,null,null,null,null,null,null,null,null,null,null,null,null,null,null,null,null,null,null,null,null,null,null,"2024-04-10","1",1,"2022-04-12",null,null,"Durris School","n","Durris School","2024-02-09","0",0,1]
[null,null,null,null,null,null,null,null,null,null,null,null,null,null,null,null,null,null,null,null,null,null,null,null,null,null,null,"2024-04-11",{"$f":"IF($AB134<$Z$38,\"0\",IF($AB134<$Z$39,\"1\",\"0\"))","v":"1"},1,"2022-04-13",null,null,"Durris School","n","Durris School","2024-06-03","0",0,2]
[null,null,null,null,null,null,null,null,null,null,null,null,null,null,null,null,null,null,null,null,null,null,null,null,null,null,null,"2024-04-12","1",1,"2022-04-14",null,null,"Easterfield School","n","Easterfield School","2024-02-09","0",0,1]
[null,null,null,null,null,null,null,null,null,null,null,null,null,null,null,null,null,null,null,null,null,null,null,null,null,null,null,"2024-04-13","1",1,"2022-04-15",null,null,"Easterfield School","n","Easterfield School","2024-06-03","0",0,2]
[null,null,null,null,null,null,null,null,null,null,null,null,null,null,null,null,null,null,null,null,null,null,null,null,null,null,null,"2024-04-14","1",1,"2022-04-16",null,null,"Echt School","n","Echt School","2024-02-09","0",0,1]
[null,null,null,null,null,null,null,null,null,null,null,null,null,null,null,null,null,null,null,null,null,null,null,null,null,null,null,"2024-04-20","1",1,"2022-04-17",null,null,"Echt School","n","Echt School","2024-06-03","0",0,2]
[null,null,null,null,null,null,null,null,null,null,null,null,null,null,null,null,null,null,null,null,null,null,null,null,null,null,null,"2024-04-21","1",1,"2022-04-23",null,null,"Ellon Academy","n","Ellon Academy","2023-12-22","0",0,1]
[null,null,null,null,null,null,null,null,null,null,null,null,null,null,null,null,null,null,null,null,null,null,null,null,null,null,null,"2024-04-27","1",1,"2022-04-24",null,null,"Ellon Academy","n","Ellon Academy","2024-02-09","0",0,2]
[null,null,null,null,null,null,null,null,null,null,null,null,null,null,null,null,null,null,null,null,null,null,null,null,null,null,null,"2024-04-28","1",1,"2022-04-30",null,null,"Ellon School","n","Ellon School","2023-12-22","0",0,1]
[null,null,null,null,null,null,null,null,null,null,null,null,null,null,null,null,null,null,null,null,null,null,null,null,null,null,null,"2024-05-04","1",1,"2022-05-01",null,null,"Ellon School","n","Ellon School","2024-02-09","0",0,2]
[null,null,null,null,null,null,null,null,null,null,null,null,null,null,null,null,null,null,null,null,null,null,null,null,null,null,null,"2024-05-05","1",1,"2022-05-02",null,null,"Elrick School","n","Elrick School","2024-02-08","0",0,1]
[null,null,null,null,null,null,null,null,null,null,null,null,null,null,null,null,null,null,null,null,null,null,null,null,null,null,null,"2024-05-06","1",1,"2022-05-07",null,null,"Elrick School","n","Elrick School","2024-02-09","0",0,2]
[null,null,null,null,null,null,null,null,null,null,null,null,null,null,null,null,null,null,null,null,null,null,null,null,null,null,null,"2024-05-11","1",1,"2022-05-08",null,null,"Fetterangus School","n","Fetterangus School","2024-02-09","0",0,1]
[null,null,null,null,null,null,null,null,null,null,null,null,null,null,null,null,null,null,null,null,null,null,null,null,null,null,null,"2024-05-12","1",1,"2022-05-14",null,null,"Fetterangus School","n","Fetterangus School","2024-06-03","0",0,2]
[null,null,null,null,null,null,null,null,null,null,null,null,null,null,null,null,null,null,null,null,null,null,null,null,null,null,null,"2024-05-18","1",1,"2022-05-15",null,null,"Fettercairn School","n","Fettercairn School","2024-02-09","0",0,1]
[null,null,null,null,null,null,null,null,null,null,null,null,null,null,null,null,null,null,null,null,null,null,null,null,null,null,null,"2024-05-19","1",1,"2022-05-21",null,null,"Fettercairn School","n","Fettercairn School","2024-06-10","0",0,2]
[null,null,null,null,null,null,null,null,null,null,null,null,null,null,null,null,null,null,null,null,null,null,null,null,null,null,null,"2024-05-25","1",1,"2022-05-22",null,null,"Fintry School","n","Fintry School","2024-02-09","0",0,1]
[null,null,null,null,null,null,null,null,null,null,null,null,null,null,null,null,null,null,null,null,null,null,null,null,null,null,null,"2024-05-26","1",1,"2022-05-28",null,null,"Fintry School","n","Fintry School","2024-06-03","0",0,2]
[null,null,null,null,null,null,null,null,null,null,null,null,null,null,null,null,null,null,null,null,null,null,null,null,null,null,null,"2024-06-01","1",1,"2022-05-29",null,null,"Finzean School","n","Finzean School","2024-02-08","0",0,1]
[null,null,null,null,null,null,null,null,null,null,null,null,null,null,null,null,null,null,null,null,null,null,null,null,null,null,null,"2024-06-02","1",1,"2022-06-04",null,null,"Finzean School","n","Finzean School","2024-02-09","0",0,2]
[null,null,null,null,null,null,null,null,null,null,null,null,null,null,null,null,null,null,null,null,null,null,null,null,null,null,null,"2024-06-08","1",1,"2022-06-05",null,null,"Fisherford School","n","Fisherford School","2024-02-09","0",0,1]
[null,null,null,null,null,null,null,null,null,null,null,null,null,null,null,null,null,null,null,null,null,null,null,null,null,null,null,"2024-06-09","1",1,"2022-06-11",null,null,"Fisherford School","n","Fisherford School","2024-06-03","0",0,2]
[null,null,null,null,null,null,null,null,null,null,null,null,null,null,null,null,null,null,null,null,null,null,null,null,null,null,null,"2024-06-15","1",1,"2022-06-12",null,null,"Fishermoss School","n","Fishermoss School","2024-02-08","0",0,1]
[null,null,null,null,null,null,null,null,null,null,null,null,null,null,null,null,null,null,null,null,null,null,null,null,null,null,null,"2024-06-16","1",{"$f":"VALUE(AC156)","v":1},"2022-06-18",null,null,"Fishermoss School","n","Fishermoss School","2024-02-09","0",0,2]
[null,null,null,null,null,null,null,null,null,null,null,null,null,null,null,null,null,null,null,null,null,null,null,null,null,null,null,"2024-06-22","1",1,"2022-06-19",null,null,"Fordyce School","n","Fordyce School","2024-02-09","0",0,1]
[null,null,null,null,null,null,null,null,null,null,null,null,null,null,null,null,null,null,null,null,null,null,null,null,null,null,null,"2024-06-23","1",1,"2022-06-25",null,null,"Fordyce School","n","Fordyce School","2024-06-03","0",0,2]
[null,null,null,null,null,null,null,null,null,null,null,null,null,null,null,null,null,null,null,null,null,null,null,null,null,null,null,"2024-06-29","1",1,"2022-06-26",null,null,"Forgue School","n","Forgue School","2024-02-09","0",0,1]
[null,null,null,null,null,null,null,null,null,null,null,null,null,null,null,null,null,null,null,null,null,null,null,null,null,null,null,"2024-06-30","1",1,"2022-07-02",null,null,"Forgue School","n","Forgue School","2024-06-03","0",0,2]
[null,null,null,null,null,null,null,null,null,null,null,null,null,null,null,null,null,null,null,null,null,null,null,null,null,null,null,"2024-07-06","1",{"$f":"VALUE(AC161)","v":1},"2022-07-03",null,null,"Foveran School","n","Foveran School","2023-12-22","0",0,1]
[null,null,null,null,null,null,null,null,null,null,null,null,null,null,null,null,null,null,null,null,null,null,null,null,null,null,null,"2024-07-07",0,0,"2022-07-04",null,null,"Foveran School","n","Foveran School","2024-02-09","0",0,2]
[null,null,null,null,null,null,null,null,null,null,null,null,null,null,null,null,null,null,null,null,null,null,null,null,null,null,null,"2024-07-08",0,0,"2022-07-05",null,null,"Fraserburgh Academy","n","Fraserburgh Academy","2024-02-08","0",0,1]
[null,null,null,null,null,null,null,null,null,null,null,null,null,null,null,null,null,null,null,null,null,null,null,null,null,null,null,"2024-07-09",0,0,"2022-07-06",null,null,"Fraserburgh Academy","n","Fraserburgh Academy","2024-02-09","0",0,2]
[null,null,null,null,null,null,null,null,null,null,null,null,null,null,null,null,null,null,null,null,null,null,null,null,null,null,null,"2024-07-10",0,0,"2022-07-07",null,null,"Fraserburgh North School",{"$f":"IF(AH165 = $U$7,\"y\",\"n\")","v":"n"},"Fraserburgh North School","2024-02-08","0",{"$f":"VALUE(AL165)","v":0},1]
[null,null,null,null,null,null,null,null,null,null,null,null,null,null,null,null,null,null,null,null,null,null,null,null,null,null,null,"2024-07-11",0,0,"2022-07-08",null,null,"Fraserburgh North School","n","Fraserburgh North School","2024-02-09",{"$f":"IF(AH166<>$U$7,\"0\",IF(AK166<$Z$38,\"0\",IF(AK166<$Z$39,\"1\",\"0\")))","v":"0"},0,2]
[null,null,null,null,null,null,null,null,null,null,null,null,null,null,null,null,null,null,null,null,null,null,null,null,null,null,null,"2024-07-12",0,0,"2022-07-09",null,null,"Fraserburgh South Park","n","Fraserburgh South Park","2024-02-08","0",0,1]
[null,null,null,null,null,null,null,null,null,null,null,null,null,null,null,null,null,null,null,null,null,null,null,null,null,null,null,"2024-07-13",0,0,"2022-07-10",null,null,"Fraserburgh South Park","n","Fraserburgh South Park","2024-02-09","0",0,2]
[null,null,null,null,null,null,null,null,null,null,null,null,null,null,null,null,null,null,null,null,null,null,null,null,null,null,null,"2024-07-14",0,0,"2022-07-11",null,null,"Fyvie School","n","Fyvie School","2024-02-09","0",0,1]
[null,null,null,null,null,null,null,null,null,null,null,null,null,null,null,null,null,null,null,null,null,null,null,null,null,null,null,"2024-07-15",0,0,"2022-07-12",null,null,"Fyvie School","n","Fyvie School","2024-06-03","0",0,2]
[null,null,null,null,null,null,null,null,null,null,null,null,null,null,null,null,null,null,null,null,null,null,null,null,null,null,null,"2024-07-16",0,0,"2022-07-13",null,null,"Gartly School","n","Gartly School","2024-02-09","0",0,1]
[null,null,null,null,null,null,null,null,null,null,null,null,null,null,null,null,null,null,null,null,null,null,null,null,null,null,null,"2024-07-17",0,0,"2022-07-14",null,null,"Gartly School","n","Gartly School","2024-06-03","0",0,2]
[null,null,null,null,null,null,null,null,null,null,null,null,null,null,null,null,null,null,null,null,null,null,null,null,null,null,null,"2024-07-18",0,0,"2022-07-15",null,null,"Glass School","n","Glass School","2024-02-09","0",0,1]
[null,null,null,null,null,null,null,null,null,null,null,null,null,null,null,null,null,null,null,null,null,null,null,null,null,null,null,"2024-07-19",0,0,"2022-07-16",null,null,"Glass School","n","Glass School","2024-06-03","0",0,2]
[null,null,null,null,null,null,null,null,null,null,null,null,null,null,null,null,null,null,null,null,null,null,null,null,null,null,null,"2024-07-20",0,0,"2022-07-17",null,null,"Glenbervie School","n","Glenbervie School","2024-02-09","0",0,1]
[null,null,null,null,null,null,null,null,null,null,null,null,null,null,null,null,null,null,null,null,null,null,null,null,null,null,null,"2024-07-21",0,0,"2022-07-18",null,null,"Glenbervie School","n","Glenbervie School","2024-06-03","0",0,2]
[null,null,null,null,null,null,null,null,null,null,null,null,null,null,null,null,null,null,null,null,null,null,null,null,null,null,null,"2024-07-22",0,0,"2022-07-19",null,null,"Gordon Schools (The)","n","Gordon Schools (The)","2024-02-09","0",0,1]
[null,null,null,null,null,null,null,null,null,null,null,null,null,null,null,null,null,null,null,null,null,null,null,null,null,null,null,"2024-07-23",0,0,"2022-07-20",null,null,"Gordon Schools (The)","n","Gordon Schools (The)","2024-06-03","0",0,2]
[null,null,null,null,null,null,null,null,null,null,null,null,null,null,null,null,null,null,null,null,null,null,null,null,null,null,null,"2024-07-24",0,0,"2022-07-21",null,null,"GordonSchool","n","GordonSchool","2024-02-09","0",0,1]
[null,null,null,null,null,null,null,null,null,null,null,null,null,null,null,null,null,null,null,null,null,null,null,null,null,null,null,"2024-07-25",0,0,"2022-07-22",null,null,"GordonSchool","n","GordonSchool","2024-06-03","0",0,2]
[null,null,null,null,null,null,null,null,null,null,null,null,null,null,null,null,null,null,null,null,null,null,null,null,null,null,null,"2024-07-26",0,0,"2022-07-23",null,null,"Gourdon School","n","Gourdon School","2024-02-09","0",0,1]
[null,null,null,null,null,null,null,null,null,null,null,null,null,null,null,null,null,null,null,null,null,null,null,null,null,null,null,"2024-07-27",0,0,"2022-07-24",null,null,"Gourdon School","n","Gourdon School","2024-06-03","0",0,2]
[null,null,null,null,null,null,null,null,null,null,null,null,null,null,null,null,null,null,null,null,null,null,null,null,null,null,null,"2024-07-28",0,0,"2022-07-25",null,null,"Hatton Fintray School","n","Hatton Fintray School","2024-02-09","0",0,1]
[null,null,null,null,null,null,null,null,null,null,null,null,null,null,null,null,null,null,null,null,null,null,null,null,null,null,null,"2024-07-29",0,0,"2022-07-26",null,null,"Hatton Fintray School","n","Hatton Fintray School","2024-06-03","0",0,2]
[null,null,null,null,null,null,null,null,null,null,null,null,null,null,null,null,null,null,null,null,null,null,null,null,null,null,null,"2024-07-30",0,0,"2022-07-27",null,null,"Hatton School, Cruden","n","Hatton School, Cruden","2023-12-22","0",0,1]
[null,null,null,null,null,null,null,null,null,null,null,null,null,null,null,null,null,null,null,null,null,null,null,null,null,null,null,"2024-07-31",0,0,"2022-07-28",null,null,"Hatton School, Cruden","n","Hatton School, Cruden","2024-02-09","0",0,2]
[null,null,null,null,null,null,null,null,null,null,null,null,null,null,null,null,null,null,null,null,null,null,null,null,null,null,null,"2024-08-01",0,0,"2022-07-29",null,null,"Hill of Banchory School","n","Hill of Banchory School","2024-02-09","0",0,1]
[null,null,null,null,null,null,null,null,null,null,null,null,null,null,null,null,null,null,null,null,null,null,null,null,null,null,null,"2024-08-02",0,0,"2022-07-30",null,null,"Hill of Banchory School","n","Hill of Banchory School","2024-06-03","0",0,2]
[null,null,null,null,null,null,null,null,null,null,null,null,null,null,null,null,null,null,null,null,null,null,null,null,null,null,null,"2024-08-03",0,0,"2022-07-31",null,null,"Hillside School","n","Hillside School","2024-02-08","0",0,1]
[null,null,null,null,null,null,null,null,null,null,null,null,null,null,null,null,null,null,null,null,null,null,null,null,null,null,null,"2024-08-04",0,0,"2022-08-01",null,null,"Hillside School","n","Hillside School","2024-02-09","0",0,2]
[null,null,null,null,null,null,null,null,null,null,null,null,null,null,null,null,null,null,null,null,null,null,null,null,null,null,null,"2024-08-05",0,0,"2022-08-02",null,null,"Insch School","n","Insch School","2024-02-09","0",0,1]
[null,null,null,null,null,null,null,null,null,null,null,null,null,null,null,null,null,null,null,null,null,null,null,null,null,null,null,"2024-08-06",0,0,"2022-08-03",null,null,"Insch School",{"$f":"IF(AH192 = $U$7,\"y\",\"n\")","v":"n"},"Insch School","2024-06-03","0",{"$f":"VALUE(AL192)","v":0},2]
[null,null,null,null,null,null,null,null,null,null,null,null,null,null,null,null,null,null,null,null,null,null,null,null,null,null,null,"2024-08-07",0,0,"2022-08-04",null,null,"Inverallochy School","n","Inverallochy School","2024-02-08","0",0,1]
[null,null,null,null,null,null,null,null,null,null,null,null,null,null,null,null,null,null,null,null,null,null,null,null,null,null,null,"2024-08-08",0,0,"2022-08-05",null,null,"Inverallochy School","n","Inverallochy School","2024-02-09","0",0,2]
[null,null,null,null,null,null,null,null,null,null,null,null,null,null,null,null,null,null,null,null,null,null,null,null,null,null,null,"2024-08-09",0,0,"2022-08-06",null,null,"Inverurie Academy","n","Inverurie Academy","2024-02-09","0",0,1]
[null,null,null,null,null,null,null,null,null,null,null,null,null,null,null,null,null,null,null,null,null,null,null,null,null,null,null,"2024-08-10",0,0,"2022-08-07",null,null,"Inverurie Academy","n","Inverurie Academy","2024-06-03","0",0,2]
[null,null,null,null,null,null,null,null,null,null,null,null,null,null,null,null,null,null,null,null,null,null,null,null,null,null,null,"2024-08-11",0,0,"2022-08-08",null,null,"Johnshaven School","n","Johnshaven School","2024-02-09","0",0,1]
[null,null,null,null,null,null,null,null,null,null,null,null,null,null,null,null,null,null,null,null,null,null,null,null,null,null,null,"2024-08-12",0,0,"2022-08-09",null,null,"Johnshaven School","n","Johnshaven School","2024-06-03","0",0,2]
[null,null,null,null,null,null,null,null,null,null,null,null,null,null,null,null,null,null,null,null,null,null,null,null,null,null,null,"2024-08-13",0,0,"2022-08-10",null,null,"Keig School","n","Keig School","2024-02-09","0",0,1]
[null,null,null,null,null,null,null,null,null,null,null,null,null,null,null,null,null,null,null,null,null,null,null,null,null,null,null,"2024-08-14",0,0,"2022-08-11",null,null,"Keig School","n","Keig School","2024-06-03","0",0,2]
[null,null,null,null,null,null,null,null,null,null,null,null,null,null,null,null,null,null,null,null,null,null,null,null,null,null,null,"2024-08-15",0,0,"2022-08-12",null,null,"Keithhall School","n","Keithhall School","2024-02-09","0",0,1]
[null,null,null,null,null,null,null,null,null,null,null,null,null,null,null,null,null,null,null,null,null,null,null,null,null,null,null,"2024-08-16",0,0,"2022-08-13",null,null,"Keithhall School","n","Keithhall School","2024-06-03","0",0,2]
[null,null,null,null,null,null,null,null,null,null,null,null,null,null,null,null,null,null,null,null,null,null,null,null,null,null,null,"2024-08-17",0,{"$f":"VALUE(AC203)","v":0},"2022-08-14",null,null,"Kellands School","n","Kellands School","2024-02-09","0",0,1]
[null,null,null,null,null,null,null,null,null,null,null,null,null,null,null,null,null,null,null,null,null,null,null,null,null,null,null,"2024-08-18",null,{"$f":"SUM(AD38:AD203)","v":124},null,null,null,"Kellands School","n","Kellands School","2024-06-03","0",{"$f":"VALUE(AL204)","v":0},2]
[null,null,null,null,null,null,null,null,null,null,null,null,null,null,null,null,null,null,null,null,null,null,null,null,null,null,null,null,null,null,null,null,null,"Kemnay Academy","n","Kemnay Academy","2024-02-09","0",0,1]
[null,null,null,null,null,null,null,null,null,null,null,null,null,null,null,null,null,null,null,null,null,null,null,null,null,null,null,null,null,null,null,null,null,"Kemnay Academy","n","Kemnay Academy","2024-06-03","0",0,2]
[null,null,null,null,null,null,null,null,null,null,null,null,null,null,null,null,null,null,null,null,null,null,null,null,null,null,null,null,null,null,null,null,null,"Kemnay School","n","Kemnay School","2024-02-09","0",0,1]
[null,null,null,null,null,null,null,null,null,null,null,null,null,null,null,null,null,null,null,null,null,null,null,null,null,null,null,null,null,null,null,null,null,"Kemnay School","n","Kemnay School","2024-06-03","0",0,2]
[null,null,null,null,null,null,null,null,null,null,null,null,null,null,null,null,null,null,null,null,null,null,null,null,null,null,null,null,null,null,null,null,null,"Kennethmont School","n","Kennethmont School","2024-02-09","0",0,1]
[null,null,null,null,null,null,null,null,null,null,null,null,null,null,null,null,null,null,null,null,null,null,null,null,null,null,null,null,null,null,null,null,null,"Kennethmont School","n","Kennethmont School","2024-06-03","0",0,2]
[null,null,null,null,null,null,null,null,null,null,null,null,null,null,null,null,null,null,null,null,null,null,null,null,null,null,null,null,null,null,null,null,null,"Kincardine O’Neil School","n","Kincardine O’Neil School","2024-02-08","0",0,1]
[null,null,null,null,null,null,null,null,null,null,null,null,null,null,null,null,null,null,null,null,null,null,null,null,null,null,null,null,null,null,null,null,null,"Kincardine O’Neil School","n","Kincardine O’Neil School","2024-02-09","0",0,2]
[null,null,null,null,null,null,null,null,null,null,null,null,null,null,null,null,null,null,null,null,null,null,null,null,null,null,null,null,null,null,null,null,null,"Kinellar School","n","Kinellar School","2024-02-09","0",0,1]
[null,null,null,null,null,null,null,null,null,null,null,null,null,null,null,null,null,null,null,null,null,null,null,null,null,null,null,null,null,null,null,null,null,"Kinellar School","n","Kinellar School","2024-06-03","0",0,2]
[null,null,null,null,null,null,null,null,null,null,null,null,null,null,null,null,null,null,null,null,null,null,null,null,null,null,null,null,null,null,null,null,null,"King Edward School","n","King Edward School","2024-02-09","0",0,1]
[null,null,null,null,null,null,null,null,null,null,null,null,null,null,null,null,null,null,null,null,null,null,null,null,null,null,null,null,null,null,null,null,null,"King Edward School","n","King Edward School","2024-06-03","0",0,2]
[null,null,null,null,null,null,null,null,null,null,null,null,null,null,null,null,null,null,null,null,null,null,null,null,null,null,null,null,null,null,null,null,null,"Kininmonth School","n","Kininmonth School","2024-02-09","0",0,1]
[null,null,null,null,null,null,null,null,null,null,null,null,null,null,null,null,null,null,null,null,null,null,null,null,null,null,null,null,null,null,null,null,null,"Kininmonth School","n","Kininmonth School","2024-06-03","0",0,2]
[null,null,null,null,null,null,null,null,null,null,null,null,null,null,null,null,null,null,null,null,null,null,null,null,null,null,null,null,null,null,null,null,null,"Kinneff School","n","Kinneff School","2024-02-09","0",0,1]
[null,null,null,null,null,null,null,null,null,null,null,null,null,null,null,null,null,null,null,null,null,null,null,null,null,null,null,null,null,null,null,null,null,"Kinneff School","n","Kinneff School","2024-06-03","0",0,2]
[null,null,null,null,null,null,null,null,null,null,null,null,null,null,null,null,null,null,null,null,null,null,null,null,null,null,null,null,null,null,null,null,null,"Kintore School","n","Kintore School","2024-02-09","0",0,1]
[null,null,null,null,null,null,null,null,null,null,null,null,null,null,null,null,null,null,null,null,null,null,null,null,null,null,null,null,null,null,null,null,null,"Kintore School","n","Kintore School","2024-06-03","0",0,2]
[null,null,null,null,null,null,null,null,null,null,null,null,null,null,null,null,null,null,null,null,null,null,null,null,null,null,null,null,null,null,null,null,null,"Lairhillock School","n","Lairhillock School","2024-02-09","0",0,1]
[null,null,null,null,null,null,null,null,null,null,null,null,null,null,null,null,null,null,null,null,null,null,null,null,null,null,null,null,null,null,null,null,null,"Lairhillock School","n","Lairhillock School","2024-06-03","0",0,2]
[null,null,null,null,null,null,null,null,null,null,null,null,null,null,null,null,null,null,null,null,null,null,null,null,null,null,null,null,null,null,null,null,null,"Largue School","n","Largue School","2024-02-09","0",0,1]
[null,null,null,null,null,null,null,null,null,null,null,null,null,null,null,null,null,null,null,null,null,null,null,null,null,null,null,null,null,null,null,null,null,"Largue School","n","Largue School","2024-06-03","0",0,2]
[null,null,null,null,null,null,null,null,null,null,null,null,null,null,null,null,null,null,null,null,null,null,null,null,null,null,null,null,null,null,null,null,null,"Laurencekirk School",{"$f":"IF(AH227 = $U$7,\"y\",\"n\")","v":"n"},"Laurencekirk School","2024-02-09","0",{"$f":"VALUE(AL227)","v":0},1]
[null,null,null,null,null,null,null,null,null,null,null,null,null,null,null,null,null,null,null,null,null,null,null,null,null,null,null,null,null,null,null,null,null,"Laurencekirk School","n","Laurencekirk School","2024-06-10","0",0,2]
[null,null,null,null,null,null,null,null,null,null,null,null,null,null,null,null,null,null,null,null,null,null,null,null,null,null,null,null,null,null,null,null,null,"Lochpots School","n","Lochpots School","2024-02-08","0",0,1]
[null,null,null,null,null,null,null,null,null,null,null,null,null,null,null,null,null,null,null,null,null,null,null,null,null,null,null,null,null,null,null,null,null,"Lochpots School","n","Lochpots School","2024-02-09",{"$f":"IF(AH230<>$U$7,\"0\",IF(AK230<$Z$38,\"0\",IF(AK230<$Z$39,\"1\",\"0\")))","v":"0"},0,2]
[null,null,null,null,null,null,null,null,null,null,null,null,null,null,null,null,null,null,null,null,null,null,null,null,null,null,null,null,null,null,null,null,null,"Logie Coldstone School","n","Logie Coldstone School","2024-02-08","0",0,1]
[null,null,null,null,null,null,null,null,null,null,null,null,null,null,null,null,null,null,null,null,null,null,null,null,null,null,null,null,null,null,null,null,null,"Logie Coldstone School","n","Logie Coldstone School","2024-02-09","0",0,2]
[null,null,null,null,null,null,null,null,null,null,null,null,null,null,null,null,null,null,null,null,null,null,null,null,null,null,null,null,null,null,null,null,null,"Logie Durno School","n","Logie Durno School","2024-02-09","0",0,1]
[null,null,null,null,null,null,null,null,null,null,null,null,null,null,null,null,null,null,null,null,null,null,null,null,null,null,null,null,null,null,null,null,null,"Logie Durno School","n","Logie Durno School","2024-06-03","0",0,2]
[null,null,null,null,null,null,null,null,null,null,null,null,null,null,null,null,null,null,null,null,null,null,null,null,null,null,null,null,null,null,null,null,null,"Longhaven School","n","Longhaven School","2024-02-09","0",0,1]
[null,null,null,null,null,null,null,null,null,null,null,null,null,null,null,null,null,null,null,null,null,null,null,null,null,null,null,null,null,null,null,null,null,"Longhaven School","n","Longhaven School","2024-06-03","0",0,2]
[null,null,null,null,null,null,null,null,null,null,null,null,null,null,null,null,null,null,null,null,null,null,null,null,null,null,null,null,null,null,null,null,null,"Longside School","n","Longside School","2024-02-09","0",0,1]
[null,null,null,null,null,null,null,null,null,null,null,null,null,null,null,null,null,null,null,null,null,null,null,null,null,null,null,null,null,null,null,null,null,"Longside School","n","Longside School","2024-06-03","0",0,2]
[null,null,null,null,null,null,null,null,null,null,null,null,null,null,null,null,null,null,null,null,null,null,null,null,null,null,null,null,null,null,null,null,null,"Lumphanan School","n","Lumphanan School","2024-02-08","0",0,1]
[null,null,null,null,null,null,null,null,null,null,null,null,null,null,null,null,null,null,null,null,null,null,null,null,null,null,null,null,null,null,null,null,null,"Lumphanan School","n","Lumphanan School","2024-02-09","0",0,2]
[null,null,null,null,null,null,null,null,null,null,null,null,null,null,null,null,null,null,null,null,null,null,null,null,null,null,null,null,null,null,null,null,null,"Lumsden School","n","Lumsden School","2024-02-09","0",0,1]
[null,null,null,null,null,null,null,null,null,null,null,null,null,null,null,null,null,null,null,null,null,null,null,null,null,null,null,null,null,null,null,null,null,"Lumsden School","n","Lumsden School","2024-06-03","0",0,2]
[null,null,null,null,null,null,null,null,null,null,null,null,null,null,null,null,null,null,null,null,null,null,null,null,null,null,null,null,null,null,null,null,null,"Luthermuir School","n","Luthermuir School","2024-02-09","0",0,1]
[null,null,null,null,null,null,null,null,null,null,null,null,null,null,null,null,null,null,null,null,null,null,null,null,null,null,null,null,null,null,null,null,null,"Luthermuir School","n","Luthermuir School","2024-06-10","0",0,2]
[null,null,null,null,null,null,null,null,null,null,null,null,null,null,null,null,null,null,null,null,null,null,null,null,null,null,null,null,null,null,null,null,null,"Macduff School","n","Macduff School","2024-02-09","0",0,1]
[null,null,null,null,null,null,null,null,null,null,null,null,null,null,null,null,null,null,null,null,null,null,null,null,null,null,null,null,null,null,null,null,null,"Macduff School","n","Macduff School","2024-06-03","0",0,2]
[null,null,null,null,null,null,null,null,null,null,null,null,null,null,null,null,null,null,null,null,null,null,null,null,null,null,null,null,null,null,null,null,null,"Mackie Academy","n","Mackie Academy","2024-02-09","0",0,1]
[null,null,null,null,null,null,null,null,null,null,null,null,null,null,null,null,null,null,null,null,null,null,null,null,null,null,null,null,null,null,null,null,null,"Mackie Academy","n","Mackie Academy","2024-06-03","0",0,2]
[null,null,null,null,null,null,null,null,null,null,null,null,null,null,null,null,null,null,null,null,null,null,null,null,null,null,null,null,null,null,null,null,null,"Marykirk School","n","Marykirk School","2024-02-09","0",0,1]
[null,null,null,null,null,null,null,null,null,null,null,null,null,null,null,null,null,null,null,null,null,null,null,null,null,null,null,null,null,null,null,null,null,"Marykirk School","n","Marykirk School","2024-06-10","0",0,2]
[null,null,null,null,null,null,null,null,null,null,null,null,null,null,null,null,null,null,null,null,null,null,null,null,null,null,null,null,null,null,null,null,null,"Maud School","n","Maud School","2024-02-09","0",0,1]
[null,null,null,null,null,null,null,null,null,null,null,null,null,null,null,null,null,null,null,null,null,null,null,null,null,null,null,null,null,null,null,null,null,"Maud School","n","Maud School","2024-06-03","0",0,2]
[null,null,null,null,null,null,null,null,null,null,null,null,null,null,null,null,null,null,null,null,null,null,null,null,null,null,null,null,null,null,null,null,null,"Mearns Academy","n","Mearns Academy","2024-02-09","0",0,1]
[null,null,null,null,null,null,null,null,null,null,null,null,null,null,null,null,null,null,null,null,null,null,null,null,null,null,null,null,null,null,null,null,null,"Mearns Academy","n","Mearns Academy","2024-06-10","0",0,2]
[null,null,null,null,null,null,null,null,null,null,null,null,null,null,null,null,null,null,null,null,null,null,null,null,null,null,null,null,null,null,null,null,null,"Meethill School","n","Meethill School","2024-02-09","0",0,1]
[null,null,null,null,null,null,null,null,null,null,null,null,null,null,null,null,null,null,null,null,null,null,null,null,null,null,null,null,null,null,null,null,null,"Meethill School","n","Meethill School","2024-06-03","0",0,2]
[null,null,null,null,null,null,null,null,null,null,null,null,null,null,null,null,null,null,null,null,null,null,null,null,null,null,null,null,null,null,null,null,null,"Meiklemill School","n","Meiklemill School","2023-12-22","0",0,1]
[null,null,null,null,null,null,null,null,null,null,null,null,null,null,null,null,null,null,null,null,null,null,null,null,null,null,null,null,null,null,null,null,null,"Meiklemill School","n","Meiklemill School","2024-02-09","0",0,2]
[null,null,null,null,null,null,null,null,null,null,null,null,null,null,null,null,null,null,null,null,null,null,null,null,null,null,null,null,null,null,null,null,null,"Meldrum Academy","n","Meldrum Academy","2024-02-09","0",0,1]
[null,null,null,null,null,null,null,null,null,null,null,null,null,null,null,null,null,null,null,null,null,null,null,null,null,null,null,null,null,null,null,null,null,"Meldrum Academy","n","Meldrum Academy","2024-06-03","0",0,2]
[null,null,null,null,null,null,null,null,null,null,null,null,null,null,null,null,null,null,null,null,null,null,null,null,null,null,null,null,null,null,null,null,null,"Meldrum School","n","Meldrum School","2024-02-09","0",0,1]
[null,null,null,null,null,null,null,null,null,null,null,null,null,null,null,null,null,null,null,null,null,null,null,null,null,null,null,null,null,null,null,null,null,"Meldrum School","n","Meldrum School","2024-06-03","0",0,2]
[null,null,null,null,null,null,null,null,null,null,null,null,null,null,null,null,null,null,null,null,null,null,null,null,null,null,null,null,null,null,null,null,null,"Methlick School","n","Methlick School","2024-02-09","0",0,1]
[null,null,null,null,null,null,null,null,null,null,null,null,null,null,null,null,null,null,null,null,null,null,null,null,null,null,null,null,null,null,null,null,null,"Methlick School","n","Methlick School","2024-06-03","0",0,2]
[null,null,null,null,null,null,null,null,null,null,null,null,null,null,null,null,null,null,null,null,null,null,null,null,null,null,null,null,null,null,null,null,null,"Midmar School","n","Midmar School","2024-02-09","0",0,1]
[null,null,null,null,null,null,null,null,null,null,null,null,null,null,null,null,null,null,null,null,null,null,null,null,null,null,null,null,null,null,null,null,null,"Midmar School","n","Midmar School","2024-06-03","0",0,2]
[null,null,null,null,null,null,null,null,null,null,null,null,null,null,null,null,null,null,null,null,null,null,null,null,null,null,null,null,null,null,null,null,null,"Midmill School","n","Midmill School","2024-02-09","0",0,1]
[null,null,null,null,null,null,null,null,null,null,null,null,null,null,null,null,null,null,null,null,null,null,null,null,null,null,null,null,null,null,null,null,null,"Midmill School","n","Midmill School","2024-06-03","0",0,2]
[null,null,null,null,null,null,null,null,null,null,null,null,null,null,null,null,null,null,null,null,null,null,null,null,null,null,null,null,null,null,null,null,null,"Mill O’Forest School","n","Mill O’Forest School","2024-02-09","0",0,1]
[null,null,null,null,null,null,null,null,null,null,null,null,null,null,null,null,null,null,null,null,null,null,null,null,null,null,null,null,null,null,null,null,null,"Mill O’Forest School","n","Mill O’Forest School","2024-06-03","0",0,2]
[null,null,null,null,null,null,null,null,null,null,null,null,null,null,null,null,null,null,null,null,null,null,null,null,null,null,null,null,null,null,null,null,null,"Mintlaw Academy","n","Mintlaw Academy","2024-02-09","0",0,1]
[null,null,null,null,null,null,null,null,null,null,null,null,null,null,null,null,null,null,null,null,null,null,null,null,null,null,null,null,null,null,null,null,null,"Mintlaw Academy","n","Mintlaw Academy","2024-06-03","0",0,2]
[null,null,null,null,null,null,null,null,null,null,null,null,null,null,null,null,null,null,null,null,null,null,null,null,null,null,null,null,null,null,null,null,null,"Mintlaw School","n","Mintlaw School","2024-02-09","0",0,1]
[null,null,null,null,null,null,null,null,null,null,null,null,null,null,null,null,null,null,null,null,null,null,null,null,null,null,null,null,null,null,null,null,null,"Mintlaw School","n","Mintlaw School","2024-06-03","0",0,2]
[null,null,null,null,null,null,null,null,null,null,null,null,null,null,null,null,null,null,null,null,null,null,null,null,null,null,null,null,null,null,null,null,null,"Monquhitter School","n","Monquhitter School","2024-02-09","0",0,1]
[null,null,null,null,null,null,null,null,null,null,null,null,null,null,null,null,null,null,null,null,null,null,null,null,null,null,null,null,null,null,null,null,null,"Monquhitter School","n","Monquhitter School","2024-06-03","0",0,2]
[null,null,null,null,null,null,null,null,null,null,null,null,null,null,null,null,null,null,null,null,null,null,null,null,null,null,null,null,null,null,null,null,null,"Monymusk School","n","Monymusk School","2024-02-09","0",0,1]
[null,null,null,null,null,null,null,null,null,null,null,null,null,null,null,null,null,null,null,null,null,null,null,null,null,null,null,null,null,null,null,null,null,"Monymusk School","n","Monymusk School","2024-06-03","0",0,2]
[null,null,null,null,null,null,null,null,null,null,null,null,null,null,null,null,null,null,null,null,null,null,null,null,null,null,null,null,null,null,null,null,null,"New Deer School","n","New Deer School","2024-02-09","0",0,1]
[null,null,null,null,null,null,null,null,null,null,null,null,null,null,null,null,null,null,null,null,null,null,null,null,null,null,null,null,null,null,null,null,null,"New Deer School","n","New Deer School","2024-06-03","0",0,2]
[null,null,null,null,null,null,null,null,null,null,null,null,null,null,null,null,null,null,null,null,null,null,null,null,null,null,null,null,null,null,null,null,null,"New Machar School   ","n","New Machar School   ","2024-02-09","0",0,1]
[null,null,null,null,null,null,null,null,null,null,null,null,null,null,null,null,null,null,null,null,null,null,null,null,null,null,null,null,null,null,null,null,null,"New Machar School   ","n","New Machar School   ","2024-06-03","0",0,2]
[null,null,null,null,null,null,null,null,null,null,null,null,null,null,null,null,null,null,null,null,null,null,null,null,null,null,null,null,null,null,null,null,null,"New Pitsligo & St John’s School","n","New Pitsligo & St John’s School","2024-02-09","0",0,1]
[null,null,null,null,null,null,null,null,null,null,null,null,null,null,null,null,null,null,null,null,null,null,null,null,null,null,null,null,null,null,null,null,null,"New Pitsligo & St John’s School","n","New Pitsligo & St John’s School","2024-06-03","0",0,2]
[null,null,null,null,null,null,null,null,null,null,null,null,null,null,null,null,null,null,null,null,null,null,null,null,null,null,null,null,null,null,null,null,null,"Newburgh Mathers School","n","Newburgh Mathers School","2023-12-22","0",0,1]
[null,null,null,null,null,null,null,null,null,null,null,null,null,null,null,null,null,null,null,null,null,null,null,null,null,null,null,null,null,null,null,null,null,"Newburgh Mathers School","n","Newburgh Mathers School","2024-02-09","0",0,2]
[null,null,null,null,null,null,null,null,null,null,null,null,null,null,null,null,null,null,null,null,null,null,null,null,null,null,null,null,null,null,null,null,null,"Newtonhill School","n","Newtonhill School","2024-02-08","0",0,1]
[null,null,null,null,null,null,null,null,null,null,null,null,null,null,null,null,null,null,null,null,null,null,null,null,null,null,null,null,null,null,null,null,null,"Newtonhill School","n","Newtonhill School","2024-02-09","0",0,2]
[null,null,null,null,null,null,null,null,null,null,null,null,null,null,null,null,null,null,null,null,null,null,null,null,null,null,null,null,null,null,null,null,null,"Old Rayne School","n","Old Rayne School","2024-02-09","0",0,1]
[null,null,null,null,null,null,null,null,null,null,null,null,null,null,null,null,null,null,null,null,null,null,null,null,null,null,null,null,null,null,null,null,null,"Old Rayne School","n","Old Rayne School","2024-06-03","0",0,2]
[null,null,null,null,null,null,null,null,null,null,null,null,null,null,null,null,null,null,null,null,null,null,null,null,null,null,null,null,null,null,null,null,null,"Ordiquhill School",{"$f":"IF(AH291 = $U$7,\"y\",\"n\")","v":"n"},"Ordiquhill School","2024-02-09","0",{"$f":"VALUE(AL291)","v":0},1]
[null,null,null,null,null,null,null,null,null,null,null,null,null,null,null,null,null,null,null,null,null,null,null,null,null,null,null,null,null,null,null,null,null,"Ordiquhill School","n","Ordiquhill School","2024-06-03","0",0,2]
[null,null,null,null,null,null,null,null,null,null,null,null,null,null,null,null,null,null,null,null,null,null,null,null,null,null,null,null,null,null,null,null,null,"Oyne School","n","Oyne School","2024-02-09","0",0,1]
[null,null,null,null,null,null,null,null,null,null,null,null,null,null,null,null,null,null,null,null,null,null,null,null,null,null,null,null,null,null,null,null,null,"Oyne School","n","Oyne School","2024-06-03",{"$f":"IF(AH294<>$U$7,\"0\",IF(AK294<$Z$38,\"0\",IF(AK294<$Z$39,\"1\",\"0\")))","v":"0"},0,2]
[null,null,null,null,null,null,null,null,null,null,null,null,null,null,null,null,null,null,null,null,null,null,null,null,null,null,null,null,null,null,null,null,null,"Peterhead Academy","n","Peterhead Academy","2024-02-09","0",0,1]
[null,null,null,null,null,null,null,null,null,null,null,null,null,null,null,null,null,null,null,null,null,null,null,null,null,null,null,null,null,null,null,null,null,"Peterhead Academy","n","Peterhead Academy","2024-06-03","0",0,2]
[null,null,null,null,null,null,null,null,null,null,null,null,null,null,null,null,null,null,null,null,null,null,null,null,null,null,null,null,null,null,null,null,null,"Peterhead Central School","n","Peterhead Central School","2024-02-09","0",0,1]
[null,null,null,null,null,null,null,null,null,null,null,null,null,null,null,null,null,null,null,null,null,null,null,null,null,null,null,null,null,null,null,null,null,"Peterhead Central School","n","Peterhead Central School","2024-06-03","0",0,2]
[null,null,null,null,null,null,null,null,null,null,null,null,null,null,null,null,null,null,null,null,null,null,null,null,null,null,null,null,null,null,null,null,null,"Pitfour School","n","Pitfour School","2024-02-09","0",0,1]
[null,null,null,null,null,null,null,null,null,null,null,null,null,null,null,null,null,null,null,null,null,null,null,null,null,null,null,null,null,null,null,null,null,"Pitfour School","n","Pitfour School","2024-06-03","0",0,2]
[null,null,null,null,null,null,null,null,null,null,null,null,null,null,null,null,null,null,null,null,null,null,null,null,null,null,null,null,null,null,null,null,null,"Pitmedden School","n","Pitmedden School","2024-02-09","0",0,1]
[null,null,null,null,null,null,null,null,null,null,null,null,null,null,null,null,null,null,null,null,null,null,null,null,null,null,null,null,null,null,null,null,null,"Pitmedden School","n","Pitmedden School","2024-06-03","0",0,2]
[null,null,null,null,null,null,null,null,null,null,null,null,null,null,null,null,null,null,null,null,null,null,null,null,null,null,null,null,null,null,null,null,null,"Port Elphinstone School","n","Port Elphinstone School","2024-02-09","0",0,1]
[null,null,null,null,null,null,null,null,null,null,null,null,null,null,null,null,null,null,null,null,null,null,null,null,null,null,null,null,null,null,null,null,null,"Port Elphinstone School","n","Port Elphinstone School","2024-06-03","0",0,2]
[null,null,null,null,null,null,null,null,null,null,null,null,null,null,null,null,null,null,null,null,null,null,null,null,null,null,null,null,null,null,null,null,null,"Port Erroll School","n","Port Erroll School","2024-02-09","0",0,1]
[null,null,null,null,null,null,null,null,null,null,null,null,null,null,null,null,null,null,null,null,null,null,null,null,null,null,null,null,null,null,null,null,null,"Port Erroll School","n","Port Erroll School","2024-06-03","0",0,2]
[null,null,null,null,null,null,null,null,null,null,null,null,null,null,null,null,null,null,null,null,null,null,null,null,null,null,null,null,null,null,null,null,null,"Portlethen Academy","n","Portlethen Academy","2024-02-08","0",0,1]
[null,null,null,null,null,null,null,null,null,null,null,null,null,null,null,null,null,null,null,null,null,null,null,null,null,null,null,null,null,null,null,null,null,"Portlethen Academy","n","Portlethen Academy","2024-02-09","0",0,2]
[null,null,null,null,null,null,null,null,null,null,null,null,null,null,null,null,null,null,null,null,null,null,null,null,null,null,null,null,null,null,null,null,null,"Portlethen School","n","Portlethen School","2024-02-08","0",0,1]
[null,null,null,null,null,null,null,null,null,null,null,null,null,null,null,null,null,null,null,null,null,null,null,null,null,null,null,null,null,null,null,null,null,"Portlethen School","n","Portlethen School","2024-02-09","0",0,2]
[null,null,null,null,null,null,null,null,null,null,null,null,null,null,null,null,null,null,null,null,null,null,null,null,null,null,null,null,null,null,null,null,null,"Portsoy School","n","Portsoy School","2024-02-09","0",0,1]
[null,null,null,null,null,null,null,null,null,null,null,null,null,null,null,null,null,null,null,null,null,null,null,null,null,null,null,null,null,null,null,null,null,"Portsoy School","n","Portsoy School","2024-06-03","0",0,2]
[null,null,null,null,null,null,null,null,null,null,null,null,null,null,null,null,null,null,null,null,null,null,null,null,null,null,null,null,null,null,null,null,null,"Premnay School","n","Premnay School","2024-02-09","0",0,1]
[null,null,null,null,null,null,null,null,null,null,null,null,null,null,null,null,null,null,null,null,null,null,null,null,null,null,null,null,null,null,null,null,null,"Premnay School","n","Premnay School","2024-06-03","0",0,2]
[null,null,null,null,null,null,null,null,null,null,null,null,null,null,null,null,null,null,null,null,null,null,null,null,null,null,null,null,null,null,null,null,null,"Rathen School","n","Rathen School","2024-02-08","0",0,1]
[null,null,null,null,null,null,null,null,null,null,null,null,null,null,null,null,null,null,null,null,null,null,null,null,null,null,null,null,null,null,null,null,null,"Rathen School","n","Rathen School","2024-02-09","0",0,2]
[null,null,null,null,null,null,null,null,null,null,null,null,null,null,null,null,null,null,null,null,null,null,null,null,null,null,null,null,null,null,null,null,null,"Rayne North School","n","Rayne North School","2024-02-09","0",0,1]
[null,null,null,null,null,null,null,null,null,null,null,null,null,null,null,null,null,null,null,null,null,null,null,null,null,null,null,null,null,null,null,null,null,"Rayne North School","n","Rayne North School","2024-06-03","0",0,2]
[null,null,null,null,null,null,null,null,null,null,null,null,null,null,null,null,null,null,null,null,null,null,null,null,null,null,null,null,null,null,null,null,null,"Redmyre School","n","Redmyre School","2024-02-09","0",0,1]
[null,null,null,null,null,null,null,null,null,null,null,null,null,null,null,null,null,null,null,null,null,null,null,null,null,null,null,null,null,null,null,null,null,"Redmyre School","n","Redmyre School","2024-06-10","0",0,2]
[null,null,null,null,null,null,null,null,null,null,null,null,null,null,null,null,null,null,null,null,null,null,null,null,null,null,null,null,null,null,null,null,null,"Rhynie School","n","Rhynie School","2024-02-09","0",0,1]
[null,null,null,null,null,null,null,null,null,null,null,null,null,null,null,null,null,null,null,null,null,null,null,null,null,null,null,null,null,null,null,null,null,"Rhynie School","n","Rhynie School","2024-06-03","0",0,2]
[null,null,null,null,null,null,null,null,null,null,null,null,null,null,null,null,null,null,null,null,null,null,null,null,null,null,null,null,null,null,null,null,null,"Rosehearty School","n","Rosehearty School","2024-02-08","0",0,1]
[null,null,null,null,null,null,null,null,null,null,null,null,null,null,null,null,null,null,null,null,null,null,null,null,null,null,null,null,null,null,null,null,null,"Rosehearty School","n","Rosehearty School","2024-02-09","0",0,2]
[null,null,null,null,null,null,null,null,null,null,null,null,null,null,null,null,null,null,null,null,null,null,null,null,null,null,null,null,null,null,null,null,null,"Rothienorman School","n","Rothienorman School","2024-02-09","0",0,1]
[null,null,null,null,null,null,null,null,null,null,null,null,null,null,null,null,null,null,null,null,null,null,null,null,null,null,null,null,null,null,null,null,null,"Rothienorman School","n","Rothienorman School","2024-06-03","0",0,2]
[null,null,null,null,null,null,null,null,null,null,null,null,null,null,null,null,null,null,null,null,null,null,null,null,null,null,null,null,null,null,null,null,null,"Sandhaven School","n","Sandhaven School","2024-02-08","0",0,1]
[null,null,null,null,null,null,null,null,null,null,null,null,null,null,null,null,null,null,null,null,null,null,null,null,null,null,null,null,null,null,null,null,null,"Sandhaven School","n","Sandhaven School","2024-02-09","0",0,2]
[null,null,null,null,null,null,null,null,null,null,null,null,null,null,null,null,null,null,null,null,null,null,null,null,null,null,null,null,null,null,null,null,null,"Skene School","n","Skene School","2024-02-08","0",0,1]
[null,null,null,null,null,null,null,null,null,null,null,null,null,null,null,null,null,null,null,null,null,null,null,null,null,null,null,null,null,null,null,null,null,"Skene School","n","Skene School","2024-02-09","0",0,2]
[null,null,null,null,null,null,null,null,null,null,null,null,null,null,null,null,null,null,null,null,null,null,null,null,null,null,null,null,null,null,null,null,null,"Slains School","n","Slains School","2023-12-22","0",0,1]
[null,null,null,null,null,null,null,null,null,null,null,null,null,null,null,null,null,null,null,null,null,null,null,null,null,null,null,null,null,null,null,null,null,"Slains School","n","Slains School","2024-02-09","0",0,2]
[null,null,null,null,null,null,null,null,null,null,null,null,null,null,null,null,null,null,null,null,null,null,null,null,null,null,null,null,null,null,null,null,null,"St Andrew’s School","n","St Andrew’s School","2024-02-08","0",0,1]
[null,null,null,null,null,null,null,null,null,null,null,null,null,null,null,null,null,null,null,null,null,null,null,null,null,null,null,null,null,null,null,null,null,"St Andrew’s School","n","St Andrew’s School","2024-02-09","0",0,2]
[null,null,null,null,null,null,null,null,null,null,null,null,null,null,null,null,null,null,null,null,null,null,null,null,null,null,null,null,null,null,null,null,null,"St Andrew’s School","n","St Andrew’s School","2024-02-09","0",0,1]
[null,null,null,null,null,null,null,null,null,null,null,null,null,null,null,null,null,null,null,null,null,null,null,null,null,null,null,null,null,null,null,null,null,"St Andrew’s School","n","St Andrew’s School","2024-06-03","0",0,2]
[null,null,null,null,null,null,null,null,null,null,null,null,null,null,null,null,null,null,null,null,null,null,null,null,null,null,null,null,null,null,null,null,null,"St Combs School","n","St Combs School","2024-02-08","0",0,1]
[null,null,null,null,null,null,null,null,null,null,null,null,null,null,null,null,null,null,null,null,null,null,null,null,null,null,null,null,null,null,null,null,null,"St Combs School","n","St Combs School","2024-02-09","0",0,2]
[null,null,null,null,null,null,null,null,null,null,null,null,null,null,null,null,null,null,null,null,null,null,null,null,null,null,null,null,null,null,null,null,null,"St Cyrus School","n","St Cyrus School","2024-02-09","0",0,1]
[null,null,null,null,null,null,null,null,null,null,null,null,null,null,null,null,null,null,null,null,null,null,null,null,null,null,null,null,null,null,null,null,null,"St Cyrus School","n","St Cyrus School","2024-06-10","0",0,2]
[null,null,null,null,null,null,null,null,null,null,null,null,null,null,null,null,null,null,null,null,null,null,null,null,null,null,null,null,null,null,null,null,null,"St Fergus School","n","St Fergus School","2024-02-09","0",0,1]
[null,null,null,null,null,null,null,null,null,null,null,null,null,null,null,null,null,null,null,null,null,null,null,null,null,null,null,null,null,null,null,null,null,"St Fergus School","n","St Fergus School","2024-06-03","0",0,2]
[null,null,null,null,null,null,null,null,null,null,null,null,null,null,null,null,null,null,null,null,null,null,null,null,null,null,null,null,null,null,null,null,null,"Strachan School","n","Strachan School","2024-02-09","0",0,1]
[null,null,null,null,null,null,null,null,null,null,null,null,null,null,null,null,null,null,null,null,null,null,null,null,null,null,null,null,null,null,null,null,null,"Strachan School","n","Strachan School","2024-06-03","0",0,2]
[null,null,null,null,null,null,null,null,null,null,null,null,null,null,null,null,null,null,null,null,null,null,null,null,null,null,null,null,null,null,null,null,null,"Strathburn School","n","Strathburn School","2024-02-09","0",0,1]
[null,null,null,null,null,null,null,null,null,null,null,null,null,null,null,null,null,null,null,null,null,null,null,null,null,null,null,null,null,null,null,null,null,"Strathburn School","n","Strathburn School","2024-06-03","0",0,2]
[null,null,null,null,null,null,null,null,null,null,null,null,null,null,null,null,null,null,null,null,null,null,null,null,null,null,null,null,null,null,null,null,null,"Strathdon School","n","Strathdon School","2024-02-09","0",0,1]
[null,null,null,null,null,null,null,null,null,null,null,null,null,null,null,null,null,null,null,null,null,null,null,null,null,null,null,null,null,null,null,null,null,"Strathdon School","n","Strathdon School","2024-06-03","0",0,2]
[null,null,null,null,null,null,null,null,null,null,null,null,null,null,null,null,null,null,null,null,null,null,null,null,null,null,null,null,null,null,null,null,null,"Strichen School","n","Strichen School","2024-02-09","0",0,1]
[null,null,null,null,null,null,null,null,null,null,null,null,null,null,null,null,null,null,null,null,null,null,null,null,null,null,null,null,null,null,null,null,null,"Strichen School","n","Strichen School","2024-06-03","0",0,2]
[null,null,null,null,null,null,null,null,null,null,null,null,null,null,null,null,null,null,null,null,null,null,null,null,null,null,null,null,null,null,null,null,null,"Stuartfield School","n","Stuartfield School","2024-02-09","0",0,1]
[null,null,null,null,null,null,null,null,null,null,null,null,null,null,null,null,null,null,null,null,null,null,null,null,null,null,null,null,null,null,null,null,null,"Stuartfield School","n","Stuartfield School","2024-06-03","0",0,2]
[null,null,null,null,null,null,null,null,null,null,null,null,null,null,null,null,null,null,null,null,null,null,null,null,null,null,null,null,null,null,null,null,null,"Tarland School","n","Tarland School","2024-02-08","0",0,1]
[null,null,null,null,null,null,null,null,null,null,null,null,null,null,null,null,null,null,null,null,null,null,null,null,null,null,null,null,null,null,null,null,null,"Tarland School","n","Tarland School","2024-02-09","0",0,2]
[null,null,null,null,null,null,null,null,null,null,null,null,null,null,null,null,null,null,null,null,null,null,null,null,null,null,null,null,null,null,null,null,null,"Tarves School",{"$f":"IF(AH355 = $U$7,\"y\",\"n\")","v":"n"},"Tarves School","2024-02-09","0",{"$f":"VALUE(AL355)","v":0},1]
[null,null,null,null,null,null,null,null,null,null,null,null,null,null,null,null,null,null,null,null,null,null,null,null,null,null,null,null,null,null,null,null,null,"Tarves School","n","Tarves School","2024-06-03","0",0,2]
[null,null,null,null,null,null,null,null,null,null,null,null,null,null,null,null,null,null,null,null,null,null,null,null,null,null,null,null,null,null,null,null,null,"Tipperty School","n","Tipperty School","2023-12-22","0",0,1]
[null,null,null,null,null,null,null,null,null,null,null,null,null,null,null,null,null,null,null,null,null,null,null,null,null,null,null,null,null,null,null,null,null,"Tipperty School","n","Tipperty School","2024-02-09",{"$f":"IF(AH358<>$U$7,\"0\",IF(AK358<$Z$38,\"0\",IF(AK358<$Z$39,\"1\",\"0\")))","v":"0"},0,2]
[null,null,null,null,null,null,null,null,null,null,null,null,null,null,null,null,null,null,null,null,null,null,null,null,null,null,null,null,null,null,null,null,null,"Torphins School","n","Torphins School","2024-02-08","0",0,1]
[null,null,null,null,null,null,null,null,null,null,null,null,null,null,null,null,null,null,null,null,null,null,null,null,null,null,null,null,null,null,null,null,null,"Torphins School","n","Torphins School","2024-02-09","0",0,2]
[null,null,null,null,null,null,null,null,null,null,null,null,null,null,null,null,null,null,null,null,null,null,null,null,null,null,null,null,null,null,null,null,null,"Tough School","n","Tough School","2024-02-09","0",0,1]
[null,null,null,null,null,null,null,null,null,null,null,null,null,null,null,null,null,null,null,null,null,null,null,null,null,null,null,null,null,null,null,null,null,"Tough School","n","Tough School","2024-06-03","0",0,2]
[null,null,null,null,null,null,null,null,null,null,null,null,null,null,null,null,null,null,null,null,null,null,null,null,null,null,null,null,null,null,null,null,null,"Towie School","n","Towie School","2024-02-09","0",0,1]
[null,null,null,null,null,null,null,null,null,null,null,null,null,null,null,null,null,null,null,null,null,null,null,null,null,null,null,null,null,null,null,null,null,"Towie School","n","Towie School","2024-06-03","0",0,2]
[null,null,null,null,null,null,null,null,null,null,null,null,null,null,null,null,null,null,null,null,null,null,null,null,null,null,null,null,null,null,null,null,null,"Tullynessle School","n","Tullynessle School","2024-02-09","0",0,1]
[null,null,null,null,null,null,null,null,null,null,null,null,null,null,null,null,null,null,null,null,null,null,null,null,null,null,null,null,null,null,null,null,null,"Tullynessle School","n","Tullynessle School","2024-06-03","0",0,2]
[null,null,null,null,null,null,null,null,null,null,null,null,null,null,null,null,null,null,null,null,null,null,null,null,null,null,null,null,null,null,null,null,null,"Turriff Academy","n","Turriff Academy","2024-02-09","0",0,1]
[null,null,null,null,null,null,null,null,null,null,null,null,null,null,null,null,null,null,null,null,null,null,null,null,null,null,null,null,null,null,null,null,null,"Turriff Academy","n","Turriff Academy","2024-06-03","0",0,2]
[null,null,null,null,null,null,null,null,null,null,null,null,null,null,null,null,null,null,null,null,null,null,null,null,null,null,null,null,null,null,null,null,null,"Turriff School","n","Turriff School","2024-02-09","0",0,1]
[null,null,null,null,null,null,null,null,null,null,null,null,null,null,null,null,null,null,null,null,null,null,null,null,null,null,null,null,null,null,null,null,null,"Turriff School","n","Turriff School","2024-06-03","0",0,2]
[null,null,null,null,null,null,null,null,null,null,null,null,null,null,null,null,null,null,null,null,null,null,null,null,null,null,null,null,null,null,null,null,null,"Tyrie School","n","Tyrie School","2024-02-08","0",0,1]
[null,null,null,null,null,null,null,null,null,null,null,null,null,null,null,null,null,null,null,null,null,null,null,null,null,null,null,null,null,null,null,null,null,"Tyrie School","n","Tyrie School","2024-02-09","0",0,2]
[null,null,null,null,null,null,null,null,null,null,null,null,null,null,null,null,null,null,null,null,null,null,null,null,null,null,null,null,null,null,null,null,null,"Udny Green School","n","Udny Green School","2024-02-09","0",0,1]
[null,null,null,null,null,null,null,null,null,null,null,null,null,null,null,null,null,null,null,null,null,null,null,null,null,null,null,null,null,null,null,null,null,"Udny Green School","n","Udny Green School","2024-06-03","0",0,2]
[null,null,null,null,null,null,null,null,null,null,null,null,null,null,null,null,null,null,null,null,null,null,null,null,null,null,null,null,null,null,null,null,null,"Uryside School","n","Uryside School","2024-02-09","0",0,1]
[null,null,null,null,null,null,null,null,null,null,null,null,null,null,null,null,null,null,null,null,null,null,null,null,null,null,null,null,null,null,null,null,null,"Uryside School","n","Uryside School","2024-06-03","0",0,2]
[null,null,null,null,null,null,null,null,null,null,null,null,null,null,null,null,null,null,null,null,null,null,null,null,null,null,null,null,null,null,null,null,null,"Westfield School","n","Westfield School","2024-02-08","0",0,1]
[null,null,null,null,null,null,null,null,null,null,null,null,null,null,null,null,null,null,null,null,null,null,null,null,null,null,null,null,null,null,null,null,null,"Westfield School","n","Westfield School","2024-02-09","0",0,2]
[null,null,null,null,null,null,null,null,null,null,null,null,null,null,null,null,null,null,null,null,null,null,null,null,null,null,null,null,null,null,null,null,null,"Westhill  School","n","Westhill  School","2024-02-08","0",0,1]
[null,null,null,null,null,null,null,null,null,null,null,null,null,null,null,null,null,null,null,null,null,null,null,null,null,null,null,null,null,null,null,null,null,"Westhill  School","n","Westhill  School","2024-02-09","0",0,2]
[null,null,null,null,null,null,null,null,null,null,null,null,null,null,null,null,null,null,null,null,null,null,null,null,null,null,null,null,null,null,null,null,null,"Westhill Academy","n","Westhill Academy","2024-02-08","0",0,1]
[null,null,null,null,null,null,null,null,null,null,null,null,null,null,null,null,null,null,null,null,null,null,null,null,null,null,null,null,null,null,null,null,null,"Westhill Academy","n","Westhill Academy","2024-02-09","0",0,2]
[null,null,null,null,null,null,null,null,null,null,null,null,null,null,null,null,null,null,null,null,null,null,null,null,null,null,null,null,null,null,null,null,null,"Whitehills School","n","Whitehills School","2024-02-09","0",0,1]
[null,null,null,null,null,null,null,null,null,null,null,null,null,null,null,null,null,null,null,null,null,null,null,null,null,null,null,null,null,null,null,null,null,"Whitehills School","n","Whitehills School","2024-06-03","0",0,2]